Organisation Name,Effective Date,Purch Date,Service Area,Expense Area,Beneficiary, Net amount,     Tax,     Gross,G/L Acct Long Text,MCC Description
Buckinghamshire Council ,30.04.2023,30.04.2023,Resources,AH&R - Res Dir,AO RETAIL LIMITED,704,0,704,Awaiting Coding,Household appliance stores
Buckinghamshire Council ,30.04.2023,30.04.2023,Deputy Chief Executive,Communities - DCE,ARGOS LTD,-329,0,-329,Other Personal Needs,Discount stores
Buckinghamshire Council ,30.04.2023,30.04.2023,Communities,Culture & Leisure - Communities Dir,AMZNBusiness,56,0,56,Awaiting Coding,Miscellaneous retail
Buckinghamshire Council ,30.04.2023,30.04.2023,Communities,Transport - Communities Dir,POUNDLAND LTD 1301,3,0,3,Awaiting Coding,Discount stores
Buckinghamshire Council ,30.04.2023,30.04.2023,Communities,Transport - Communities Dir,EURO CAR PARTS P,8.59,0,8.59,Awaiting Coding,Automotive parts & accessories
Buckinghamshire Council ,30.04.2023,30.04.2023,Communities,Climate Change & Environment - Community,TWITTER ONLINE ADS,5.58,0,5.58,Awaiting Coding,Advertising services
Buckinghamshire Council ,30.04.2023,30.04.2023,Communities,Climate Change & Environment - Community,PAYPAL,28,0,28,Awaiting Coding,Advertising services
Buckinghamshire Council ,30.04.2023,30.04.2023,Deputy Chief Executive,Leader - DCE,FACEBK AXS3FPFQN2,718.24,0,718.24,Awaiting Coding,Advertising services
Buckinghamshire Council ,30.04.2023,30.04.2023,Children's Services,Education & Childrens Services - CS Dir,TRAVELODGE GB0846,13,0,13,Awaiting Coding,Travelodge
Buckinghamshire Council ,30.04.2023,29.04.2023,Communities,Culture & Leisure - Communities Dir,WWW.ARGOS.CO.UK,20,0,20,Awaiting Coding,Department stores
Buckinghamshire Council ,30.04.2023,29.04.2023,Children's Services,Education & Childrens Services - CS Dir,TRAVELODGE GB0846,8.89,0,8.89,Awaiting Coding,Travelodge
Buckinghamshire Council ,30.04.2023,29.04.2023,"Planning, Growth & Sustainability",Climate Change & Environment - PGS,TWITTER ONLINE ADS,67.44,0,67.44,Awaiting Coding,Advertising services
Buckinghamshire Council ,30.04.2023,29.04.2023,Deputy Chief Executive,AH&R- DCE Dir,STORAGEMART UK #5318,84.98,0,84.98,Awaiting Coding,"Haulage, removals & delivery"
Buckinghamshire Council ,30.04.2023,29.04.2023,Children's Services,Education & Childrens Services - CS Dir,EAT AND REPEAT,35.9,0,35.9,Awaiting Coding,Restaurants
Buckinghamshire Council ,30.04.2023,29.04.2023,Communities,Climate Change & Environment - Community,PAYPAL,28,0,28,Awaiting Coding,Advertising services
Buckinghamshire Council ,30.04.2023,29.04.2023,"Planning, Growth & Sustainability",Climate Change & Environment - PGS,AMZNMKTPLACE,11.07,2.22,13.29,Awaiting Coding,Miscellaneous retail
Buckinghamshire Council ,30.04.2023,29.04.2023,"Planning, Growth & Sustainability","lanning, Growth & Sustain - Partnership",123 REG LTD 007032878,28.78,0,28.78,Awaiting Coding,Computer network information services
Buckinghamshire Council ,30.04.2023,29.04.2023,"Planning, Growth & Sustainability",Planning & Regeneration - PGS,LINKEDIN ADS 8997067934,15.05,0,15.05,Awaiting Coding,Advertising services
Buckinghamshire Council ,30.04.2023,29.04.2023,Resources,AH&R - Res Dir,LINKEDIN ADS 8997465964,34.27,0,34.27,Awaiting Coding,Advertising services
Buckinghamshire Council ,30.04.2023,29.04.2023,Resources,AH&R - Res Dir,FACEBK *6GTWTLF742,25,0,25,Awaiting Coding,Advertising services
Buckinghamshire Council ,30.04.2023,29.04.2023,Communities,Culture & Leisure - Communities Dir,POUNDLAND LTD,12,0,12,Awaiting Coding,Discount stores
Buckinghamshire Council ,30.04.2023,29.04.2023,Communities,Culture & Leisure - Communities Dir,ICELAND,4,0,4,Awaiting Coding,Grocery stores
Buckinghamshire Council ,30.04.2023,29.04.2023,Resources,AH&R - Res Dir,TESCO STORES 6747,9.6,0,9.6,Awaiting Coding,Grocery stores
Buckinghamshire Council ,30.04.2023,28.04.2023,Children's Services,Education & Childrens Services - CS Dir,AMZNMKTPLACE,33.49,0,33.49,Awaiting Coding,Miscellaneous retail
Buckinghamshire Council ,30.04.2023,28.04.2023,Communities,Culture & Leisure - Communities Dir,AMZNMktplace,31.44,0,31.44,Awaiting Coding,Miscellaneous retail
Buckinghamshire Council ,30.04.2023,28.04.2023,"Planning, Growth & Sustainability",Housing & Homelessness & Regulatory PGS,ROYAL MAIL ONLINE SHOP,55,0,55,Awaiting Coding,Postal services
Buckinghamshire Council ,30.04.2023,28.04.2023,Children's Services,Education & Childrens Services - CS Dir,TRAVELODGE GB0000,569.61,0,569.61,Awaiting Coding,Travelodge
Buckinghamshire Council ,30.04.2023,28.04.2023,Children's Services,Education & Childrens Services - CS Dir,TRAVELODGE GB0846,13,0,13,Awaiting Coding,Travelodge
Buckinghamshire Council ,30.04.2023,28.04.2023,Children's Services,Education & Childrens Services - CS Dir,THE OXFORDSHIRE TAXI COMP,290,0,290,Awaiting Coding,Taxicabs & limousines
Buckinghamshire Council ,30.04.2023,28.04.2023,Resources,AH&R - Res Dir,WWW.BUCKINGHAMSHIRE.GOV,32.15,0,32.15,Awaiting Coding,Government services
Buckinghamshire Council ,30.04.2023,28.04.2023,Resources,AH&R - Res Dir,BENSONSFORBEDSRETAIL,573.94,0,573.94,Awaiting Coding,Furniture & home furnishing
Buckinghamshire Council ,30.04.2023,28.04.2023,Resources,AH&R - Res Dir,WWW.PETSATHOME.COM,65,0,65,Awaiting Coding,"Pet shops, food & supply"
Buckinghamshire Council ,30.04.2023,28.04.2023,Resources,AH&R - Res Dir,AO RETAIL LIMITED,703,0,703,Awaiting Coding,Household appliance stores
Buckinghamshire Council ,30.04.2023,28.04.2023,Children's Services,Education & Childrens Services - CS Dir,CPD ONLINE COLLEGE,117.6,0,117.6,Awaiting Coding,Schools
Buckinghamshire Council ,30.04.2023,28.04.2023,Children's Services,Education & Childrens Services - CS Dir,HOLIDAY INN HIGH W,105.73,0,105.73,Awaiting Coding,"Hotels, motels & resorts"
Buckinghamshire Council ,30.04.2023,28.04.2023,Deputy Chief Executive,Communities - DCE,AO RETAIL LIMITED,224.15,44.83,268.98,Awaiting Coding,Household appliance stores
Buckinghamshire Council ,30.04.2023,28.04.2023,Deputy Chief Executive,Communities - DCE,AO RETAIL LIMITED,0.02,0,0.02,Awaiting Coding,Household appliance stores
Buckinghamshire Council ,30.04.2023,28.04.2023,Deputy Chief Executive,Communities - DCE,AO RETAIL LIMITED,274.16,54.84,329,Awaiting Coding,Household appliance stores
Buckinghamshire Council ,30.04.2023,28.04.2023,Deputy Chief Executive,Communities - DCE,AO RETAIL LIMITED,607.5,121.5,729,Awaiting Coding,Household appliance stores
Buckinghamshire Council ,30.04.2023,28.04.2023,Deputy Chief Executive,Communities - DCE,HAPPY BEDS,977.92,0,977.92,Awaiting Coding,Furniture & home furnishing
Buckinghamshire Council ,30.04.2023,28.04.2023,Deputy Chief Executive,Communities - DCE,HAPPY BEDS,320.98,0,320.98,Awaiting Coding,Furniture & home furnishing
Buckinghamshire Council ,30.04.2023,28.04.2023,Deputy Chief Executive,Communities - DCE,WWW.ARGOS.CO.UK,50.79,10.16,60.95,Awaiting Coding,Department stores
Buckinghamshire Council ,30.04.2023,28.04.2023,Deputy Chief Executive,Communities - DCE,AO RETAIL LIMITED,865.8,173.16,"1,038.96",Awaiting Coding,Household appliance stores
Buckinghamshire Council ,30.04.2023,28.04.2023,Deputy Chief Executive,Communities - DCE,AO RETAIL LIMITED,0.04,0,0.04,Awaiting Coding,Household appliance stores
Buckinghamshire Council ,30.04.2023,28.04.2023,Deputy Chief Executive,Communities - DCE,ARGOS LTD,-2.95,0,-2.95,Awaiting Coding,Discount stores
Buckinghamshire Council ,30.04.2023,28.04.2023,Communities,Housing & Homelessness & Regulatory Comm,GRANT AND STONE,157.68,0,157.68,Awaiting Coding,Timber & building supplies
Buckinghamshire Council ,30.04.2023,28.04.2023,Communities,Housing & Homelessness & Regulatory Comm,GRANT AND STONE,118.92,0,118.92,Awaiting Coding,Timber & building supplies
Buckinghamshire Council ,30.04.2023,28.04.2023,Resources,AH&R - Res Dir,ROYAL MAIL GROUP LTD,11.65,0,11.65,Awaiting Coding,Postal services
Buckinghamshire Council ,30.04.2023,28.04.2023,Adults and Health,Health & Wellbeing - Adults & Health Dir,TESCO STORES 5135,208.9,0,208.9,Awaiting Coding,Grocery stores
Buckinghamshire Council ,30.04.2023,28.04.2023,Communities,Housing & Homelessness & Regulatory Comm,TRAVELODGE GB0000,242.65,48.53,291.18,Awaiting Coding,Travelodge
Buckinghamshire Council ,30.04.2023,28.04.2023,"Planning, Growth & Sustainability",AH&R - PGS Dir,TESCO STORES 5525,14.85,0,14.85,Awaiting Coding,Grocery stores
Buckinghamshire Council ,30.04.2023,28.04.2023,"Planning, Growth & Sustainability",AH&R - PGS Dir,SCREWFIX DIR LTD,50.08,0,50.08,Awaiting Coding,Timber & building supplies
Buckinghamshire Council ,30.04.2023,28.04.2023,Adults and Health,Health & Wellbeing - Adults & Health Dir,TESCO STORES 2162,15.08,0,15.08,Awaiting Coding,Grocery stores
Buckinghamshire Council ,30.04.2023,28.04.2023,Resources,AH&R - Res Dir,ABRATAX - MTD,10,2,12,Awaiting Coding,Computer software stores
Buckinghamshire Council ,30.04.2023,28.04.2023,Communities,Culture & Leisure - Communities Dir,Blaklader,160.68,0,160.68,Awaiting Coding,Uniforms & commercial clothing
Buckinghamshire Council ,30.04.2023,28.04.2023,Children's Services,Education & Childrens Services - CS Dir,WWW.INNKEEPERSLODG,102.6,0,102.6,Awaiting Coding,Restaurants
Buckinghamshire Council ,30.04.2023,28.04.2023,Children's Services,Education & Childrens Services - CS Dir,HTTP://SHOP.ICAN.ORG.U,58,0,58,Awaiting Coding,Charitable organisations
Buckinghamshire Council ,30.04.2023,28.04.2023,Children's Services,Education & Childrens Services - CS Dir,VINTAGEINNS,30,0,30,Awaiting Coding,"Gift, card & novelty shops"
Buckinghamshire Council ,30.04.2023,28.04.2023,Children's Services,Education & Childrens Services - CS Dir,LEAVERSHOODIES.COM,33.99,0,33.99,Awaiting Coding,Men & womens clothing shops
Buckinghamshire Council ,30.04.2023,28.04.2023,Children's Services,Education & Childrens Services - CS Dir,TICKETS.WWFC.COM/CASHD,45,0,45,Awaiting Coding,Sports clubs & promoters
Buckinghamshire Council ,30.04.2023,28.04.2023,Resources,AH&R - Res Dir,BUCKINGHAM HOTELS,"1,575.00",315,"1,890.00",Awaiting Coding,"Hotels, motels & resorts"
Buckinghamshire Council ,30.04.2023,28.04.2023,Adults and Health,Health & Wellbeing - Adults & Health Dir,TRAVELODGE GB0000,"1,739.86",0,"1,739.86",Awaiting Coding,Travelodge
Buckinghamshire Council ,30.04.2023,28.04.2023,"Planning, Growth & Sustainability",Climate Change & Environment - PGS,STORAGEMART UK #5318,727.48,145.5,872.98,Awaiting Coding,"Haulage, removals & delivery"
Buckinghamshire Council ,30.04.2023,28.04.2023,Children's Services,Education & Childrens Services - CS Dir,ONE4ALL,10,0,10,Awaiting Coding,Department stores
Buckinghamshire Council ,30.04.2023,28.04.2023,Communities,Culture & Leisure - Communities Dir,ROOFING MEGASTORE LIMITED,280,56,336,Awaiting Coding,Timber & building supplies
Buckinghamshire Council ,30.04.2023,28.04.2023,Resources,AH&R - Res Dir,PAYPAL,7.2,0,7.2,Awaiting Coding,Computer network information services
Buckinghamshire Council ,30.04.2023,28.04.2023,"Planning, Growth & Sustainability",AH&R - PGS Dir,COMPANIESHOUSE WEB FILING,13,0,13,Awaiting Coding,Government services
Buckinghamshire Council ,30.04.2023,28.04.2023,Deputy Chief Executive,Leader - DCE,AMZNMKTPLACE,123,0,123,Awaiting Coding,Miscellaneous retail
Buckinghamshire Council ,30.04.2023,28.04.2023,Deputy Chief Executive,AH&R- DCE Dir,MILTON KEYNES PARKING,1,0,1,Awaiting Coding,Car parking & garages
Buckinghamshire Council ,30.04.2023,28.04.2023,Adults and Health,Health & Wellbeing - Adults & Health Dir,AMZNMKTPLACE,32.16,0,32.16,Awaiting Coding,Miscellaneous retail
Buckinghamshire Council ,30.04.2023,28.04.2023,Deputy Chief Executive,AH&R- DCE Dir,PAYPAL,252.95,0,252.95,Awaiting Coding,Variety stores
Buckinghamshire Council ,30.04.2023,28.04.2023,Deputy Chief Executive,AH&R- DCE Dir,PAYPAL,521.99,0,521.99,Awaiting Coding,Variety stores
Buckinghamshire Council ,30.04.2023,28.04.2023,Communities,Culture & Leisure - Communities Dir,DOBBIES,161.64,0,161.64,Awaiting Coding,Lawn & garden supply/nursery
Buckinghamshire Council ,30.04.2023,28.04.2023,Children's Services,Education & Childrens Services - CS Dir,WWW.EVERYONEACTIVE.COM,5,0,5,Awaiting Coding,Sport & recreational camps
Buckinghamshire Council ,30.04.2023,28.04.2023,"Planning, Growth & Sustainability",Leader - PGS,WESTMINSTER FORUM PROJ,624,0,624,Awaiting Coding,Consultants & public relation services
Buckinghamshire Council ,30.04.2023,28.04.2023,Deputy Chief Executive,AH&R- DCE Dir,AMZNMKTPLACE,50.81,0,50.81,Awaiting Coding,Miscellaneous retail
Buckinghamshire Council ,30.04.2023,28.04.2023,Resources,AH&R - Res Dir,ARRIVA UK BUS,15.6,0,15.6,Awaiting Coding,"Buses, charter & tour"
Buckinghamshire Council ,30.04.2023,28.04.2023,Adults and Health,Health & Wellbeing - Adults & Health Dir,AMZNMKTPLACE,54.96,0,54.96,Awaiting Coding,Miscellaneous retail
Buckinghamshire Council ,30.04.2023,28.04.2023,Children's Services,Education & Childrens Services - CS Dir,LEAVERSHOODIES.COM,-33.99,0,-33.99,Awaiting Coding,Men & womens clothing shops
Buckinghamshire Council ,30.04.2023,27.04.2023,Adults and Health,Health & Wellbeing - Adults & Health Dir,SP DECHOKER EUROPE,134.39,0,134.39,Awaiting Coding,"Laboratory, medical & hospital equipment"
Buckinghamshire Council ,30.04.2023,27.04.2023,Children's Services,Education & Childrens Services - CS Dir,NEALES TAXIS LTD,96,0,96,Awaiting Coding,Taxicabs & limousines
Buckinghamshire Council ,30.04.2023,27.04.2023,Deputy Chief Executive,Communities - DCE,WWW.ARGOS.CO.UK,168.95,0,168.95,Awaiting Coding,Department stores
Buckinghamshire Council ,30.04.2023,27.04.2023,Deputy Chief Executive,Communities - DCE,WWW.ARGOS.CO.UK,58.95,0,58.95,Awaiting Coding,Department stores
Buckinghamshire Council ,30.04.2023,27.04.2023,Deputy Chief Executive,Communities - DCE,WWW.ARGOS.CO.UK,147.95,0,147.95,Awaiting Coding,Department stores
Buckinghamshire Council ,30.04.2023,27.04.2023,Deputy Chief Executive,Communities - DCE,AO RETAIL LIMITED,65,0,65,Awaiting Coding,Household appliance stores
Buckinghamshire Council ,30.04.2023,27.04.2023,Deputy Chief Executive,Communities - DCE,AO RETAIL LIMITED,573,0,573,Awaiting Coding,Household appliance stores
Buckinghamshire Council ,30.04.2023,27.04.2023,Deputy Chief Executive,Communities - DCE,AO RETAIL LIMITED,379,0,379,Awaiting Coding,Household appliance stores
Buckinghamshire Council ,30.04.2023,27.04.2023,Deputy Chief Executive,Communities - DCE,AO RETAIL LIMITED,"1,060.00",0,"1,060.00",Awaiting Coding,Household appliance stores
Buckinghamshire Council ,30.04.2023,27.04.2023,Deputy Chief Executive,Communities - DCE,AO RETAIL LIMITED,746,0,746,Awaiting Coding,Household appliance stores
Buckinghamshire Council ,30.04.2023,27.04.2023,Deputy Chief Executive,Communities - DCE,AO RETAIL LIMITED,593,0,593,Awaiting Coding,Household appliance stores
Buckinghamshire Council ,30.04.2023,27.04.2023,Deputy Chief Executive,Communities - DCE,VOUCHER EXPRESS,250,0,250,Awaiting Coding,Misc business services
Buckinghamshire Council ,30.04.2023,27.04.2023,Deputy Chief Executive,Communities - DCE,AO RETAIL LIMITED,284,0,284,Awaiting Coding,Household appliance stores
Buckinghamshire Council ,30.04.2023,27.04.2023,Deputy Chief Executive,Communities - DCE,WWW.ARGOS.CO.UK,608.95,0,608.95,Awaiting Coding,Department stores
Buckinghamshire Council ,30.04.2023,27.04.2023,Children's Services,Education & Childrens Services - CS Dir,YELLOW CARS HW LTD,350,0,350,Awaiting Coding,Taxicabs & limousines
Buckinghamshire Council ,30.04.2023,27.04.2023,Deputy Chief Executive,Communities - DCE,DARVELL AND SONS,37,0,37,Awaiting Coding,Bakeries
Buckinghamshire Council ,30.04.2023,27.04.2023,Deputy Chief Executive,Communities - DCE,TESCO STORES 2020,79.74,0,79.74,Awaiting Coding,Grocery stores
Buckinghamshire Council ,30.04.2023,27.04.2023,Resources,AH&R - Res Dir,WWW.BUCKINGHAMSHIRE.GOV,38,0,38,Awaiting Coding,Government services
Buckinghamshire Council ,30.04.2023,27.04.2023,Communities,Culture & Leisure - Communities Dir,TESCO STORES 2038,47.24,0,47.24,Awaiting Coding,Grocery stores
Buckinghamshire Council ,30.04.2023,27.04.2023,"Planning, Growth & Sustainability",AH&R - PGS Dir,AMZNMKTPLACE,44.99,0,44.99,Awaiting Coding,Miscellaneous retail
Buckinghamshire Council ,30.04.2023,27.04.2023,Deputy Chief Executive,AH&R- DCE Dir,TRAVELODGE GB0000,161.14,0,161.14,Awaiting Coding,Travelodge
Buckinghamshire Council ,30.04.2023,27.04.2023,Deputy Chief Executive,Communities - DCE,AO RETAIL LIMITED,-100,0,-100,Awaiting Coding,Household appliance stores
Buckinghamshire Council ,30.04.2023,27.04.2023,Deputy Chief Executive,Communities - DCE,AO RETAIL LIMITED,-329,0,-329,Awaiting Coding,Household appliance stores
Buckinghamshire Council ,30.04.2023,27.04.2023,Children's Services,Education & Childrens Services - CS Dir,DINOTROPOLIS.CO.UK,51,0,51,Awaiting Coding,Misc. recreational services
Buckinghamshire Council ,30.04.2023,27.04.2023,Communities,Culture & Leisure - Communities Dir,AMZNMKTPLACE,20.23,4.05,24.28,Awaiting Coding,Miscellaneous retail
Buckinghamshire Council ,30.04.2023,27.04.2023,Deputy Chief Executive,AH&R- DCE Dir,UNIVERSITY OF NOTTINGHAM,195,0,195,Awaiting Coding,Colleges & universities
Buckinghamshire Council ,30.04.2023,27.04.2023,Communities,Housing & Homelessness & Regulatory Comm,FARNHAM COMMON NURSERI,553.2,0,553.2,Awaiting Coding,Lawn & garden supply/nursery
Buckinghamshire Council ,30.04.2023,27.04.2023,Adults and Health,Health & Wellbeing - Adults & Health Dir,TESCO STORES 2162,46.43,0,46.43,Awaiting Coding,Grocery stores
Buckinghamshire Council ,30.04.2023,27.04.2023,Adults and Health,Health & Wellbeing - Adults & Health Dir,WICKES AYLESBURY,33.6,0,33.6,Awaiting Coding,Timber & building supplies
Buckinghamshire Council ,30.04.2023,27.04.2023,Communities,Housing & Homelessness & Regulatory Comm,AMZNMKTPLACE,23.24,4.66,27.9,Awaiting Coding,Miscellaneous retail
Buckinghamshire Council ,30.04.2023,27.04.2023,Children's Services,Education & Childrens Services - CS Dir,MYMEMORY LTD,-133.25,-26.65,-159.9,Awaiting Coding,Electronics shops
Buckinghamshire Council ,30.04.2023,27.04.2023,"Planning, Growth & Sustainability",AH&R - PGS Dir,EDMUNDSON ELECTRICAL,72.84,0,72.84,Awaiting Coding,Electrical parts & equipment
Buckinghamshire Council ,30.04.2023,27.04.2023,Deputy Chief Executive,AH&R- DCE Dir,DOMESTIC APPLIANCES LTD,91.95,0,91.95,Awaiting Coding,Miscellaneous retail
Buckinghamshire Council ,30.04.2023,27.04.2023,Adults and Health,Health & Wellbeing - Adults & Health Dir,WICKES CHESHAM,20,0,20,Awaiting Coding,Timber & building supplies
Buckinghamshire Council ,30.04.2023,27.04.2023,Children's Services,Education & Childrens Services - CS Dir,ONE4ALL,250.99,0,250.99,Awaiting Coding,Department stores
Buckinghamshire Council ,30.04.2023,27.04.2023,Deputy Chief Executive,Communities - DCE,RINGGO PARKING,0.95,0,0.95,Awaiting Coding,Car parking & garages
Buckinghamshire Council ,30.04.2023,27.04.2023,Deputy Chief Executive,Communities - DCE,PARKING-EASTONST,2.1,0,2.1,Awaiting Coding,Car parking & garages
Buckinghamshire Council ,30.04.2023,27.04.2023,Children's Services,Education & Childrens Services - CS Dir,ROOT OF IT/MEN* COURSE,840,0,840,Awaiting Coding,Schools
Buckinghamshire Council ,30.04.2023,27.04.2023,Children's Services,Education & Childrens Services - CS Dir,ALDI 110 775,32.77,0,32.77,Awaiting Coding,Grocery stores
Buckinghamshire Council ,30.04.2023,27.04.2023,Adults and Health,Health & Wellbeing - Adults & Health Dir,TRAVELODGE GB0000,867.72,0,867.72,Awaiting Coding,Travelodge
Buckinghamshire Council ,30.04.2023,27.04.2023,Adults and Health,Health & Wellbeing - Adults & Health Dir,TRAVELODGE GB0000,373.93,0,373.93,Awaiting Coding,Travelodge
Buckinghamshire Council ,30.04.2023,27.04.2023,Communities,Climate Change & Environment - Community,GOOGLE ADS2753042584,500,0,500,Awaiting Coding,Advertising services
Buckinghamshire Council ,30.04.2023,27.04.2023,Communities,Climate Change & Environment - Community,1000.0313.9554,184.8,0,184.8,Awaiting Coding,Publishing & printing services
Buckinghamshire Council ,30.04.2023,27.04.2023,Children's Services,Education & Childrens Services - CS Dir,TRAVELODGE GB0000,55.57,0,55.57,Awaiting Coding,Travelodge
Buckinghamshire Council ,30.04.2023,27.04.2023,Children's Services,Education & Childrens Services - CS Dir,HOBBYCRAFT,3.5,0,3.5,Awaiting Coding,Art & craft shops
Buckinghamshire Council ,30.04.2023,27.04.2023,,,BAKER ROSS,50.43,0,50.43,Awaiting Coding,Art & craft shops
Buckinghamshire Council ,30.04.2023,27.04.2023,Children's Services,Education & Childrens Services - CS Dir,ODEON AYLESBURY,4.25,0,4.25,Awaiting Coding,Cinemas
Buckinghamshire Council ,30.04.2023,27.04.2023,Children's Services,Education & Childrens Services - CS Dir,ODEON AYLESBURY,2.6,0,2.6,Awaiting Coding,Cinemas
Buckinghamshire Council ,30.04.2023,27.04.2023,Children's Services,Education & Childrens Services - CS Dir,CARDS DIRECT AYLESBURY,2.54,0,2.54,Awaiting Coding,Stationery & office supplies
Buckinghamshire Council ,30.04.2023,27.04.2023,Deputy Chief Executive,Leader - DCE,AMZNMKTPLACE,23.36,0,23.36,Awaiting Coding,Miscellaneous retail
Buckinghamshire Council ,30.04.2023,27.04.2023,Children's Services,Education & Childrens Services - CS Dir,WWW.SCREWFIX.COM,10.9,0,10.9,Awaiting Coding,Timber & building supplies
Buckinghamshire Council ,30.04.2023,27.04.2023,Adults and Health,Health & Wellbeing - Adults & Health Dir,ALDI 110 775,11.96,0,11.96,Awaiting Coding,Grocery stores
Buckinghamshire Council ,30.04.2023,27.04.2023,Communities,ommunities - Trust Accounts,BOOKER LIMITED ECOM,479.9,0,479.9,Awaiting Coding,Grocery stores
Buckinghamshire Council ,30.04.2023,27.04.2023,Communities,ommunities - Trust Accounts,WEXHAM MOWER SVCS,235.87,0,235.87,Awaiting Coding,Lawn & garden supply/nursery
Buckinghamshire Council ,30.04.2023,27.04.2023,Communities,ommunities - Trust Accounts,COSTCO WHOLESALE #102,12.28,0,12.28,Awaiting Coding,Buying & shopping services/clubs
Buckinghamshire Council ,30.04.2023,27.04.2023,Deputy Chief Executive,AH&R- DCE Dir,WWW.ARGOS.CO.UK,733.32,146.67,879.99,Awaiting Coding,Department stores
Buckinghamshire Council ,30.04.2023,27.04.2023,"Planning, Growth & Sustainability",Planning & Regeneration - PGS,TFL TRAVEL CH,5.5,0,5.5,Awaiting Coding,Local commuter transport
Buckinghamshire Council ,30.04.2023,27.04.2023,"Planning, Growth & Sustainability",Planning & Regeneration - PGS,UBR* PENDING.UBER.COM,6.93,0,6.93,Awaiting Coding,Taxicabs & limousines
Buckinghamshire Council ,30.04.2023,27.04.2023,"Planning, Growth & Sustainability",Planning & Regeneration - PGS,TRAINLINE,16.5,0,16.5,Awaiting Coding,Passenger railways
Buckinghamshire Council ,30.04.2023,27.04.2023,Children's Services,Education & Childrens Services - CS Dir,COOKSON PRECIOUS M,28.2,5.64,33.84,Awaiting Coding,"Precious stones, metals & jewellery"
Buckinghamshire Council ,30.04.2023,27.04.2023,Children's Services,Education & Childrens Services - CS Dir,COOKSON PRECIOUS M,0.02,0,0.02,Awaiting Coding,"Precious stones, metals & jewellery"
Buckinghamshire Council ,30.04.2023,27.04.2023,Children's Services,Education & Childrens Services - CS Dir,AMAZON PRIME,8.99,0,8.99,Awaiting Coding,Continuous subscriptions
Buckinghamshire Council ,30.04.2023,27.04.2023,Communities,Climate Change & Environment - Community,AMZNMktplace,58.9,0,58.9,Awaiting Coding,Miscellaneous retail
Buckinghamshire Council ,30.04.2023,27.04.2023,Adults and Health,Health & Wellbeing - Adults & Health Dir,FLUID BRANDING LIMITED,832.5,166.5,999,Awaiting Coding,Misc non-durable goods
Buckinghamshire Council ,30.04.2023,27.04.2023,"Planning, Growth & Sustainability",Housing & Homelessness & Regulatory PGS,AMZNMKTPLACE,308.81,0,308.81,Awaiting Coding,Miscellaneous retail
Buckinghamshire Council ,30.04.2023,27.04.2023,Resources,AH&R - Res Dir,AMZNMktplace,742.8,0,742.8,Awaiting Coding,Miscellaneous retail
Buckinghamshire Council ,30.04.2023,27.04.2023,Children's Services,Education & Childrens Services - CS Dir,TAXIPAY,15,0,15,Awaiting Coding,Taxicabs & limousines
Buckinghamshire Council ,30.04.2023,27.04.2023,Children's Services,Education & Childrens Services - CS Dir,TRAVELODGE GB0846,13,0,13,Awaiting Coding,Travelodge
Buckinghamshire Council ,30.04.2023,27.04.2023,Children's Services,Education & Childrens Services - CS Dir,TRAVELODGE GB0955,13,0,13,Awaiting Coding,Travelodge
Buckinghamshire Council ,30.04.2023,27.04.2023,Communities,Climate Change & Environment - Community,PAYPAL,28,0,28,Awaiting Coding,Advertising services
Buckinghamshire Council ,30.04.2023,27.04.2023,Deputy Chief Executive,AH&R- DCE Dir,PAYPAL,824.95,0,824.95,Awaiting Coding,Variety stores
Buckinghamshire Council ,30.04.2023,27.04.2023,Deputy Chief Executive,AH&R- DCE Dir,PAYPAL,144,0,144,Awaiting Coding,Variety stores
Buckinghamshire Council ,30.04.2023,27.04.2023,Deputy Chief Executive,AH&R- DCE Dir,PAYPAL,900.15,0,900.15,Awaiting Coding,Variety stores
Buckinghamshire Council ,30.04.2023,27.04.2023,Deputy Chief Executive,AH&R- DCE Dir,PAYPAL,752.5,0,752.5,Awaiting Coding,Variety stores
Buckinghamshire Council ,30.04.2023,27.04.2023,Adults and Health,Health & Wellbeing - Adults & Health Dir,PREMIER INN,89,0,89,Awaiting Coding,Premier Inn
Buckinghamshire Council ,30.04.2023,27.04.2023,Children's Services,Education & Childrens Services - CS Dir,AMZNMKTPLACE,266.37,0,266.37,Awaiting Coding,Miscellaneous retail
Buckinghamshire Council ,30.04.2023,26.04.2023,Children's Services,Education & Childrens Services - CS Dir,ENTERPRISE RENT A CAR,-168.94,0,-168.94,Awaiting Coding,Enterprise Rent-a-Car
Buckinghamshire Council ,30.04.2023,26.04.2023,"Planning, Growth & Sustainability",Leader - PGS,1 AND 1 IONOS LTD,16.82,0,16.82,Awaiting Coding,Computer network information services
Buckinghamshire Council ,30.04.2023,26.04.2023,Deputy Chief Executive,Communities - DCE,PAYPAL,80,0,80,Awaiting Coding,Variety stores
Buckinghamshire Council ,30.04.2023,26.04.2023,Deputy Chief Executive,Communities - DCE,PAYPAL,150.95,0,150.95,Awaiting Coding,Variety stores
Buckinghamshire Council ,30.04.2023,26.04.2023,Deputy Chief Executive,AH&R- DCE Dir,PAYPAL,784.95,0,784.95,Awaiting Coding,Variety stores
Buckinghamshire Council ,30.04.2023,26.04.2023,Deputy Chief Executive,AH&R- DCE Dir,PAYPAL,462.95,0,462.95,Awaiting Coding,Variety stores
Buckinghamshire Council ,30.04.2023,26.04.2023,Deputy Chief Executive,AH&R- DCE Dir,PAYPAL,573,0,573,Awaiting Coding,Variety stores
Buckinghamshire Council ,30.04.2023,26.04.2023,Deputy Chief Executive,AH&R- DCE Dir,PAYPAL,477,0,477,Awaiting Coding,Variety stores
Buckinghamshire Council ,30.04.2023,26.04.2023,"Planning, Growth & Sustainability",Planning & Regeneration - PGS,AMZNMKTPLACE,8.99,0,8.99,Awaiting Coding,Miscellaneous retail
Buckinghamshire Council ,30.04.2023,26.04.2023,Adults and Health,Health & Wellbeing - Adults & Health Dir,SAINSBURYS S/MKTS,2.5,0,2.5,Awaiting Coding,Grocery stores
Buckinghamshire Council ,30.04.2023,26.04.2023,Children's Services,Education & Childrens Services - CS Dir,ABSOLUTELY LEISURE.,160,0,160,Awaiting Coding,Amusement parks & circuses
Buckinghamshire Council ,30.04.2023,26.04.2023,Children's Services,Education & Childrens Services - CS Dir,GO APE,90,0,90,Awaiting Coding,Misc. recreational services
Buckinghamshire Council ,30.04.2023,26.04.2023,CC Obsolete Cost Centres,Obsolete Cost Centres,LAND REGISTRY ECOM CCC,3,0,3,Awaiting Coding,Government services
Buckinghamshire Council ,30.04.2023,26.04.2023,Children's Services,Education & Childrens Services - CS Dir,TRAVELODGE GB0862,39,0,39,Awaiting Coding,Travelodge
Buckinghamshire Council ,30.04.2023,26.04.2023,Children's Services,Education & Childrens Services - CS Dir,TRAVELODGE GB0862,13,0,13,Awaiting Coding,Travelodge
Buckinghamshire Council ,30.04.2023,26.04.2023,Children's Services,Education & Childrens Services - CS Dir,TRAVELODGE GB0000,516.61,0,516.61,Awaiting Coding,Travelodge
Buckinghamshire Council ,30.04.2023,26.04.2023,Children's Services,Education & Childrens Services - CS Dir,TRAVELODGE GB0000,821.39,0,821.39,Awaiting Coding,Travelodge
Buckinghamshire Council ,30.04.2023,26.04.2023,Deputy Chief Executive,Communities - DCE,AO RETAIL LIMITED,-240,0,-240,Awaiting Coding,Household appliance stores
Buckinghamshire Council ,30.04.2023,26.04.2023,Resources,AH&R - Res Dir,SUMUP  *TRAINING 4 U SERV,94.76,0,94.76,Awaiting Coding,Schools
Buckinghamshire Council ,30.04.2023,26.04.2023,Communities,Housing & Homelessness & Regulatory Comm,WWW.PLANNING.CO,148.2,0,148.2,Awaiting Coding,Misc business services
Buckinghamshire Council ,30.04.2023,26.04.2023,Deputy Chief Executive,Communities - DCE,WWW.ARGOS.CO.UK,21.6,4.32,25.92,Awaiting Coding,Department stores
Buckinghamshire Council ,30.04.2023,26.04.2023,Deputy Chief Executive,Communities - DCE,WWW.ARGOS.CO.UK,0.03,0,0.03,Awaiting Coding,Department stores
Buckinghamshire Council ,30.04.2023,26.04.2023,Deputy Chief Executive,Communities - DCE,WWW.ARGOS.CO.UK,62.04,12.41,74.45,Awaiting Coding,Department stores
Buckinghamshire Council ,30.04.2023,26.04.2023,Deputy Chief Executive,Communities - DCE,HAPPY BEDS,689.96,0,689.96,Awaiting Coding,Furniture & home furnishing
Buckinghamshire Council ,30.04.2023,26.04.2023,Deputy Chief Executive,Communities - DCE,AO RETAIL LIMITED,236.65,47.33,283.98,Awaiting Coding,Household appliance stores
Buckinghamshire Council ,30.04.2023,26.04.2023,Deputy Chief Executive,Communities - DCE,AO RETAIL LIMITED,0.02,0,0.02,Awaiting Coding,Household appliance stores
Buckinghamshire Council ,30.04.2023,26.04.2023,Deputy Chief Executive,Communities - DCE,AO RETAIL LIMITED,-39.99,0,-39.99,Awaiting Coding,Household appliance stores
Buckinghamshire Council ,30.04.2023,26.04.2023,Communities,Culture & Leisure - Communities Dir,WAITROSE 769,5,0,5,Awaiting Coding,Grocery stores
Buckinghamshire Council ,30.04.2023,26.04.2023,Resources,AH&R - Res Dir,ROYAL MAIL GROUP LTD,11.65,0,11.65,Awaiting Coding,Postal services
Buckinghamshire Council ,30.04.2023,26.04.2023,Children's Services,Education & Childrens Services - CS Dir,TRAVELODGE GB0000,97.9,0,97.9,Awaiting Coding,Travelodge
Buckinghamshire Council ,30.04.2023,26.04.2023,Adults and Health,Health & Wellbeing - Adults & Health Dir,AMZNMKTPLACE,44.9,0,44.9,Awaiting Coding,Miscellaneous retail
Buckinghamshire Council ,30.04.2023,26.04.2023,"Planning, Growth & Sustainability",AH&R - PGS Dir,WWW.SCREWFIX.COM,13.49,0,13.49,Awaiting Coding,Timber & building supplies
Buckinghamshire Council ,30.04.2023,26.04.2023,Communities,Housing & Homelessness & Regulatory Comm,AMZ,-44.1,-8.82,-52.92,Awaiting Coding,Direct sales companies
Buckinghamshire Council ,30.04.2023,26.04.2023,Communities,Housing & Homelessness & Regulatory Comm,AMZ,-0.04,0,-0.04,Awaiting Coding,Direct sales companies
Buckinghamshire Council ,30.04.2023,26.04.2023,"Planning, Growth & Sustainability",AH&R - PGS Dir,MARKS&SPENCER PLC SACA,6.2,0,6.2,Awaiting Coding,Grocery stores
Buckinghamshire Council ,30.04.2023,26.04.2023,"Planning, Growth & Sustainability",AH&R - PGS Dir,SCREWFIX DIR LTD,239.98,0,239.98,Awaiting Coding,Timber & building supplies
Buckinghamshire Council ,30.04.2023,26.04.2023,"Planning, Growth & Sustainability",AH&R - PGS Dir,LOCK & KEY CENTRE,-296,0,-296,Awaiting Coding,Shoe repairs
Buckinghamshire Council ,30.04.2023,26.04.2023,Communities,Culture & Leisure - Communities Dir,AMZNBUSINESS,79.8,15.96,95.76,Awaiting Coding,Miscellaneous retail
Buckinghamshire Council ,30.04.2023,26.04.2023,Communities,Culture & Leisure - Communities Dir,AMZNBUSINESS,0.24,0,0.24,Awaiting Coding,Miscellaneous retail
Buckinghamshire Council ,30.04.2023,26.04.2023,Communities,Culture & Leisure - Communities Dir,TESCO STORES 3099,10,0,10,Awaiting Coding,Grocery stores
Buckinghamshire Council ,30.04.2023,26.04.2023,Communities,Culture & Leisure - Communities Dir,AMZNMKTPLACE,14.75,2.95,17.7,Awaiting Coding,Miscellaneous retail
Buckinghamshire Council ,30.04.2023,26.04.2023,Children's Services,Education & Childrens Services - CS Dir,AMZNMKTPLACE,8.37,0,8.37,Awaiting Coding,Miscellaneous retail
Buckinghamshire Council ,30.04.2023,26.04.2023,Adults and Health,Health & Wellbeing - Adults & Health Dir,AMZNMKTPLACE,49.48,0,49.48,Awaiting Coding,Miscellaneous retail
Buckinghamshire Council ,30.04.2023,26.04.2023,Communities,Climate Change & Environment - Community,SP CARDWORKS,465.12,0,465.12,Awaiting Coding,Computer software stores
Buckinghamshire Council ,30.04.2023,26.04.2023,"Planning, Growth & Sustainability",AH&R - PGS Dir,WREN DAVIS LIMITED,215.15,0,215.15,Awaiting Coding,Grocery stores
Buckinghamshire Council ,30.04.2023,26.04.2023,Deputy Chief Executive,Leader - DCE,WP ENGINE,29.93,0,29.93,Awaiting Coding,Computer network information services
Buckinghamshire Council ,30.04.2023,26.04.2023,Children's Services,Education & Childrens Services - CS Dir,ASDA  STORES 4396,6.5,0,6.5,Awaiting Coding,Grocery stores
Buckinghamshire Council ,30.04.2023,26.04.2023,Children's Services,Education & Childrens Services - CS Dir,ODEON AYLESBURY,3.55,0,3.55,Awaiting Coding,Cinemas
Buckinghamshire Council ,30.04.2023,26.04.2023,Deputy Chief Executive,Leader - DCE,LLOYDS BANK COMMERCIAL F,69.6,0,69.6,Awaiting Coding,Financial institutions
Buckinghamshire Council ,30.04.2023,26.04.2023,Adults and Health,Communities - Adults & Health,SP RLSS UK SHOP,53.23,0,53.23,Awaiting Coding,Men & womens clothing shops
Buckinghamshire Council ,30.04.2023,26.04.2023,Communities,Culture & Leisure - Communities Dir,INDUSTRIAL PROTECT,47.35,9.47,56.82,Awaiting Coding,"Glass, paint & wallpaper stores"
Buckinghamshire Council ,30.04.2023,26.04.2023,Deputy Chief Executive,Communities - DCE,PAYPAL,25,0,25,Awaiting Coding,Charitable organisations
Buckinghamshire Council ,30.04.2023,26.04.2023,Communities,ommunities - Trust Accounts,ASDA SUPERSTORE,129,0,129,Awaiting Coding,Grocery stores
Buckinghamshire Council ,30.04.2023,26.04.2023,Communities,ommunities - Trust Accounts,ASDA SUPERSTORE,250,0,250,Awaiting Coding,Grocery stores
Buckinghamshire Council ,30.04.2023,26.04.2023,Communities,ommunities - Trust Accounts,ASDA SUPERSTORE,250,0,250,Awaiting Coding,Grocery stores
Buckinghamshire Council ,30.04.2023,26.04.2023,Communities,ommunities - Trust Accounts,ASDA SUPERSTORE,25,0,25,Awaiting Coding,Grocery stores
Buckinghamshire Council ,30.04.2023,26.04.2023,Deputy Chief Executive,AH&R- DCE Dir,WWW.ARGOS.CO.UK,251.95,0,251.95,Awaiting Coding,Department stores
Buckinghamshire Council ,30.04.2023,26.04.2023,"Planning, Growth & Sustainability",Housing & Homelessness & Regulatory PGS,AMZNMKTPLACE,49.99,0,49.99,Awaiting Coding,Miscellaneous retail
Buckinghamshire Council ,30.04.2023,26.04.2023,Communities,Climate Change & Environment - Community,GSF CAR PARTS,88.39,0,88.39,Awaiting Coding,Motor vehicle supplies & parts
Buckinghamshire Council ,30.04.2023,26.04.2023,Communities,Climate Change & Environment - Community,DVLA VEHICLE TAX,322.5,0,322.5,Awaiting Coding,Government services
Buckinghamshire Council ,30.04.2023,26.04.2023,Adults and Health,Health & Wellbeing - Adults & Health Dir,WM MORRISONS STORE,10,0,10,Awaiting Coding,Grocery stores
Buckinghamshire Council ,30.04.2023,26.04.2023,Adults and Health,Health & Wellbeing - Adults & Health Dir,WM MORRISONS STORE,28,0,28,Awaiting Coding,Grocery stores
Buckinghamshire Council ,30.04.2023,26.04.2023,Adults and Health,Health & Wellbeing - Adults & Health Dir,AMZNMktplace,28.29,0,28.29,Awaiting Coding,Miscellaneous retail
Buckinghamshire Council ,30.04.2023,25.04.2023,Deputy Chief Executive,Communities - DCE,PAYPAL,297.95,0,297.95,Awaiting Coding,Variety stores
Buckinghamshire Council ,30.04.2023,25.04.2023,Deputy Chief Executive,Communities - DCE,PAYPAL,130,0,130,Awaiting Coding,Variety stores
Buckinghamshire Council ,30.04.2023,25.04.2023,Deputy Chief Executive,Communities - DCE,PAYPAL,19.95,0,19.95,Awaiting Coding,Variety stores
Buckinghamshire Council ,30.04.2023,25.04.2023,Deputy Chief Executive,Communities - DCE,PAYPAL,18,0,18,Awaiting Coding,Variety stores
Buckinghamshire Council ,30.04.2023,25.04.2023,Deputy Chief Executive,Communities - DCE,PAYPAL,579,0,579,Awaiting Coding,Variety stores
Buckinghamshire Council ,30.04.2023,25.04.2023,Deputy Chief Executive,AH&R- DCE Dir,CURRYS ONLINE,-35,0,-35,Awaiting Coding,Electronics shops
Buckinghamshire Council ,30.04.2023,25.04.2023,Children's Services,Education & Childrens Services - CS Dir,AMZNMKTPLACE,5.89,0,5.89,Awaiting Coding,Miscellaneous retail
Buckinghamshire Council ,30.04.2023,25.04.2023,Children's Services,Education & Childrens Services - CS Dir,AMZNMKTPLACE,23.94,0,23.94,Awaiting Coding,Miscellaneous retail
Buckinghamshire Council ,30.04.2023,25.04.2023,"Planning, Growth & Sustainability",Housing & Homelessness & Regulatory PGS,LAND REGISTRY ECOM CCC,3,0,3,Awaiting Coding,Government services
Buckinghamshire Council ,30.04.2023,25.04.2023,"Planning, Growth & Sustainability",Housing & Homelessness & Regulatory PGS,LAND REGISTRY ECOM CCC,3,0,3,Awaiting Coding,Government services
Buckinghamshire Council ,30.04.2023,25.04.2023,"Planning, Growth & Sustainability",Housing & Homelessness & Regulatory PGS,CHARTERED INSTITUTE OF EN,55,0,55,Awaiting Coding,Charitable organisations
Buckinghamshire Council ,30.04.2023,25.04.2023,Deputy Chief Executive,Communities - DCE,AO RETAIL LIMITED,309,0,309,Awaiting Coding,Household appliance stores
Buckinghamshire Council ,30.04.2023,25.04.2023,Deputy Chief Executive,Communities - DCE,WWW.ARGOS.CO.UK,302.95,0,302.95,Awaiting Coding,Department stores
Buckinghamshire Council ,30.04.2023,25.04.2023,Deputy Chief Executive,Communities - DCE,WWW.ARGOS.CO.UK,255.95,0,255.95,Awaiting Coding,Department stores
Buckinghamshire Council ,30.04.2023,25.04.2023,Deputy Chief Executive,Communities - DCE,WWW.ARGOS.CO.UK,127.45,0,127.45,Awaiting Coding,Department stores
Buckinghamshire Council ,30.04.2023,25.04.2023,Deputy Chief Executive,Communities - DCE,WWW.ARGOS.CO.UK,545.95,0,545.95,Awaiting Coding,Department stores
Buckinghamshire Council ,30.04.2023,25.04.2023,Deputy Chief Executive,Communities - DCE,AO RETAIL LIMITED,663,0,663,Awaiting Coding,Household appliance stores
Buckinghamshire Council ,30.04.2023,25.04.2023,Deputy Chief Executive,Communities - DCE,AO RETAIL LIMITED,284,0,284,Awaiting Coding,Household appliance stores
Buckinghamshire Council ,30.04.2023,25.04.2023,Deputy Chief Executive,Communities - DCE,AO RETAIL LIMITED,379,0,379,Awaiting Coding,Household appliance stores
Buckinghamshire Council ,30.04.2023,25.04.2023,Children's Services,Education & Childrens Services - CS Dir,AMZNMKTPLACE,86.99,0,86.99,Awaiting Coding,Miscellaneous retail
Buckinghamshire Council ,30.04.2023,25.04.2023,Deputy Chief Executive,Communities - DCE,SUMUP  *THE COFFEE SNO,4.3,0,4.3,Awaiting Coding,Miscellaneous retail
Buckinghamshire Council ,30.04.2023,25.04.2023,Deputy Chief Executive,Communities - DCE,AMZNMKTPLACE,319.98,0,319.98,Awaiting Coding,Miscellaneous retail
Buckinghamshire Council ,30.04.2023,25.04.2023,"Planning, Growth & Sustainability",Climate Change & Environment - PGS,PAYPAL,280,0,280,Awaiting Coding,Charitable organisations
Buckinghamshire Council ,30.04.2023,25.04.2023,"Planning, Growth & Sustainability",Climate Change & Environment - PGS,PAYPAL,280,0,280,Awaiting Coding,Charitable organisations
Buckinghamshire Council ,30.04.2023,25.04.2023,Communities,Culture & Leisure - Communities Dir,MARKS&SPENCER PLC,50,0,50,Awaiting Coding,Grocery stores
Buckinghamshire Council ,30.04.2023,25.04.2023,Deputy Chief Executive,Communities - DCE,AO RETAIL LIMITED,726.65,145.33,871.98,Awaiting Coding,Household appliance stores
Buckinghamshire Council ,30.04.2023,25.04.2023,Deputy Chief Executive,Communities - DCE,AO RETAIL LIMITED,0.02,0,0.02,Awaiting Coding,Household appliance stores
Buckinghamshire Council ,30.04.2023,25.04.2023,Deputy Chief Executive,Communities - DCE,WWW.ARGOS.CO.UK,279.95,55.99,335.94,Awaiting Coding,Department stores
Buckinghamshire Council ,30.04.2023,25.04.2023,Deputy Chief Executive,Communities - DCE,WWW.ARGOS.CO.UK,0.01,0,0.01,Awaiting Coding,Department stores
Buckinghamshire Council ,30.04.2023,25.04.2023,Deputy Chief Executive,Communities - DCE,AO RETAIL LIMITED,889.95,177.99,"1,067.94",Awaiting Coding,Household appliance stores
Buckinghamshire Council ,30.04.2023,25.04.2023,Deputy Chief Executive,Communities - DCE,AO RETAIL LIMITED,0.06,0,0.06,Awaiting Coding,Household appliance stores
Buckinghamshire Council ,30.04.2023,25.04.2023,Deputy Chief Executive,Communities - DCE,AO RETAIL LIMITED,278.3,55.66,333.96,Awaiting Coding,Household appliance stores
Buckinghamshire Council ,30.04.2023,25.04.2023,Deputy Chief Executive,Communities - DCE,AO RETAIL LIMITED,0.04,0,0.04,Awaiting Coding,Household appliance stores
Buckinghamshire Council ,30.04.2023,25.04.2023,Children's Services,Education & Childrens Services - CS Dir,REUSE COMMUNITY PROJEC,416.5,0,416.5,Awaiting Coding,Used merchandise stores
Buckinghamshire Council ,30.04.2023,25.04.2023,Resources,AH&R - Res Dir,BUCKINGHAMSHIRE CNCL,11,0,11,Awaiting Coding,Government services
Buckinghamshire Council ,30.04.2023,25.04.2023,Deputy Chief Executive,AH&R- DCE Dir,SQ *GROUP CARDS,4.79,0,4.79,Awaiting Coding,"Gift, card & novelty shops"
Buckinghamshire Council ,30.04.2023,25.04.2023,Resources,AH&R - Res Dir,WH SMITH AYLESBURY,12.97,0,12.97,Awaiting Coding,Newspapers / newsagents
Buckinghamshire Council ,30.04.2023,25.04.2023,Communities,Culture & Leisure - Communities Dir,SP SAM TURNER & SONS,65.18,13.04,78.22,Awaiting Coding,Misc. general merchandise
Buckinghamshire Council ,30.04.2023,25.04.2023,Children's Services,Education & Childrens Services - CS Dir,TESCO STORES 2038,25.8,0,25.8,Awaiting Coding,Grocery stores
Buckinghamshire Council ,30.04.2023,25.04.2023,"Planning, Growth & Sustainability",AH&R - PGS Dir,AMZNMKTPLACE,15.95,0,15.95,Awaiting Coding,Miscellaneous retail
Buckinghamshire Council ,30.04.2023,25.04.2023,"Planning, Growth & Sustainability",AH&R - PGS Dir,LOCK & KEY CENTRE,296,0,296,Awaiting Coding,Shoe repairs
Buckinghamshire Council ,30.04.2023,25.04.2023,Communities,Climate Change & Environment - Community,TESCO STORES 2041,100,0,100,Awaiting Coding,Grocery stores
Buckinghamshire Council ,30.04.2023,25.04.2023,Communities,Climate Change & Environment - Community,TESCO STORES 2041,100,0,100,Awaiting Coding,Grocery stores
Buckinghamshire Council ,30.04.2023,25.04.2023,Communities,Culture & Leisure - Communities Dir,AMZNMKTPLACE,11.89,2.38,14.27,Awaiting Coding,Miscellaneous retail
Buckinghamshire Council ,30.04.2023,25.04.2023,Communities,Culture & Leisure - Communities Dir,AMZNMKTPLACE,15.19,3.04,18.23,Awaiting Coding,Miscellaneous retail
Buckinghamshire Council ,30.04.2023,25.04.2023,Adults and Health,Health & Wellbeing - Adults & Health Dir,TESCO STORES 2162,20.6,0,20.6,Awaiting Coding,Grocery stores
Buckinghamshire Council ,30.04.2023,25.04.2023,"Planning, Growth & Sustainability",AH&R - PGS Dir,ICELAND,6.2,0,6.2,Awaiting Coding,Grocery stores
Buckinghamshire Council ,30.04.2023,25.04.2023,Communities,Culture & Leisure - Communities Dir,AMZNMKTPLACE,13.75,2.75,16.5,Awaiting Coding,Miscellaneous retail
Buckinghamshire Council ,30.04.2023,25.04.2023,Communities,Culture & Leisure - Communities Dir,AMZNMKTPLACE,33.3,6.66,39.96,Awaiting Coding,Miscellaneous retail
Buckinghamshire Council ,30.04.2023,25.04.2023,Communities,Culture & Leisure - Communities Dir,WWW.LESAR.CO.UK,458.5,91.7,550.2,Awaiting Coding,Computer software stores
Buckinghamshire Council ,30.04.2023,25.04.2023,Resources,AH&R - Res Dir,GMO GLOBALSIGN LIM,615.6,0,615.6,Awaiting Coding,Computer network information services
Buckinghamshire Council ,30.04.2023,25.04.2023,Children's Services,Education & Childrens Services - CS Dir,TESCO STORES 5472,4,0,4,Awaiting Coding,Grocery stores
Buckinghamshire Council ,30.04.2023,25.04.2023,Resources,AH&R - Res Dir,C2E851601813J UKVI,"2,199.00",0,"2,199.00",Awaiting Coding,Government services
Buckinghamshire Council ,30.04.2023,25.04.2023,Resources,AH&R - Res Dir,C2E851600891S UKVI,"3,199.00",0,"3,199.00",Awaiting Coding,Government services
Buckinghamshire Council ,30.04.2023,25.04.2023,"Planning, Growth & Sustainability",Transport - PGS Dir,AMZNMKTPLACE,8.68,0,8.68,Awaiting Coding,Miscellaneous retail
Buckinghamshire Council ,30.04.2023,25.04.2023,Children's Services,Education & Childrens Services - CS Dir,WM MORRISONS STORE,51.89,0,51.89,Awaiting Coding,Grocery stores
Buckinghamshire Council ,30.04.2023,25.04.2023,Deputy Chief Executive,AH&R- DCE Dir,CURRYS ONLINE,278.33,55.67,334,Awaiting Coding,Electronics shops
Buckinghamshire Council ,30.04.2023,25.04.2023,Children's Services,Education & Childrens Services - CS Dir,AMAZON.CO.UK,37.99,0,37.99,Awaiting Coding,Direct sales companies
Buckinghamshire Council ,30.04.2023,25.04.2023,Children's Services,Education & Childrens Services - CS Dir,AMAZON.CO.UK,5.91,0,5.91,Awaiting Coding,Direct sales companies
Buckinghamshire Council ,30.04.2023,25.04.2023,Children's Services,Education & Childrens Services - CS Dir,WWW.ARGOS.CO.UK,40.95,0,40.95,Awaiting Coding,Department stores
Buckinghamshire Council ,30.04.2023,25.04.2023,"Planning, Growth & Sustainability",Planning & Regeneration - PGS,HIGH WYCOMBE STATION T,6.95,0,6.95,Awaiting Coding,Passenger railways
Buckinghamshire Council ,30.04.2023,25.04.2023,Communities,Culture & Leisure - Communities Dir,ELECTRICALS247,66.24,0,66.24,Awaiting Coding,Electrical parts & equipment
Buckinghamshire Council ,30.04.2023,25.04.2023,Adults and Health,Health & Wellbeing - Adults & Health Dir,TESCO STORES 4395,12.19,0,12.19,Awaiting Coding,Grocery stores
Buckinghamshire Council ,30.04.2023,25.04.2023,"Planning, Growth & Sustainability",Housing & Homelessness & Regulatory PGS,AMZNMKTPLACE,325.27,0,325.27,Awaiting Coding,Miscellaneous retail
Buckinghamshire Council ,30.04.2023,25.04.2023,Children's Services,Education & Childrens Services - CS Dir,TESCO GIFT CARD,20,0,20,Awaiting Coding,Grocery stores
Buckinghamshire Council ,30.04.2023,25.04.2023,Children's Services,Education & Childrens Services - CS Dir,TESCO STORES 3045,152.9,0,152.9,Awaiting Coding,Grocery stores
Buckinghamshire Council ,30.04.2023,25.04.2023,Adults and Health,Health & Wellbeing - Adults & Health Dir,ONE4ALL,256.5,0,256.5,Awaiting Coding,Department stores
Buckinghamshire Council ,30.04.2023,25.04.2023,Children's Services,Education & Childrens Services - CS Dir,WWW.ARGOS.CO.UK,14.5,0,14.5,Awaiting Coding,Department stores
Buckinghamshire Council ,30.04.2023,25.04.2023,Children's Services,Education & Childrens Services - CS Dir,VESTA,10,0,10,Awaiting Coding,Phone services
Buckinghamshire Council ,30.04.2023,25.04.2023,Children's Services,Education & Childrens Services - CS Dir,ARGOS HIGH WYCOMBE INSIDE,-1,0,-1,Awaiting Coding,Discount stores
Buckinghamshire Council ,30.04.2023,25.04.2023,Children's Services,Education & Childrens Services - CS Dir,TRAVELODGE GB0955,13,0,13,Awaiting Coding,Travelodge
Buckinghamshire Council ,30.04.2023,25.04.2023,Deputy Chief Executive,Communities - DCE,AO RETAIL LIMITED,240.83,48.17,289,Awaiting Coding,Household appliance stores
Buckinghamshire Council ,30.04.2023,24.04.2023,Communities,Culture & Leisure - Communities Dir,BAKER ROSS,20.8,0,20.8,Awaiting Coding,Art & craft shops
Buckinghamshire Council ,30.04.2023,24.04.2023,Children's Services,Education & Childrens Services - CS Dir,TAXIPAY,15,0,15,Awaiting Coding,Taxicabs & limousines
Buckinghamshire Council ,30.04.2023,24.04.2023,Children's Services,Education & Childrens Services - CS Dir,NEALES TAXIS LTD,96,0,96,Awaiting Coding,Taxicabs & limousines
Buckinghamshire Council ,30.04.2023,24.04.2023,Children's Services,Education & Childrens Services - CS Dir,NEALES TAXIS LTD,360,0,360,Awaiting Coding,Taxicabs & limousines
Buckinghamshire Council ,30.04.2023,24.04.2023,Children's Services,Education & Childrens Services - CS Dir,AMZNMKTPLACE,19.99,0,19.99,Awaiting Coding,Miscellaneous retail
Buckinghamshire Council ,30.04.2023,24.04.2023,Communities,Housing & Homelessness & Regulatory Comm,WWW.BUCKINGHAMSHIRE.GOV,36.4,0,36.4,Awaiting Coding,Government services
Buckinghamshire Council ,30.04.2023,24.04.2023,Communities,Housing & Homelessness & Regulatory Comm,WWW.BUCKINGHAMSHIRE.GOV,36.4,0,36.4,Awaiting Coding,Government services
Buckinghamshire Council ,30.04.2023,24.04.2023,"Planning, Growth & Sustainability",Climate Change & Environment - PGS,APCOA PARKING UK,4.25,0,4.25,Awaiting Coding,Car parking & garages
Buckinghamshire Council ,30.04.2023,24.04.2023,Resources,AH&R - Res Dir,QUADIENT UK LTD,762.24,0,762.24,Awaiting Coding,Stationery & office supplies
Buckinghamshire Council ,30.04.2023,24.04.2023,Deputy Chief Executive,Leader - DCE,SAINSBURY S S/MKTS,5.8,0,5.8,Awaiting Coding,Grocery stores
Buckinghamshire Council ,30.04.2023,24.04.2023,Deputy Chief Executive,Communities - DCE,WWW.ARGOS.CO.UK,360.79,72.16,432.95,Awaiting Coding,Department stores
Buckinghamshire Council ,30.04.2023,24.04.2023,Deputy Chief Executive,Communities - DCE,WWW.ARGOS.CO.UK,299.95,59.99,359.94,Awaiting Coding,Department stores
Buckinghamshire Council ,30.04.2023,24.04.2023,Deputy Chief Executive,Communities - DCE,WWW.ARGOS.CO.UK,0.01,0,0.01,Awaiting Coding,Department stores
Buckinghamshire Council ,30.04.2023,24.04.2023,Deputy Chief Executive,Communities - DCE,AO RETAIL LIMITED,720,144,864,Awaiting Coding,Household appliance stores
Buckinghamshire Council ,30.04.2023,24.04.2023,Deputy Chief Executive,Communities - DCE,AO RETAIL LIMITED,299.15,59.83,358.98,Awaiting Coding,Household appliance stores
Buckinghamshire Council ,30.04.2023,24.04.2023,Deputy Chief Executive,Communities - DCE,AO RETAIL LIMITED,0.02,0,0.02,Awaiting Coding,Household appliance stores
Buckinghamshire Council ,30.04.2023,24.04.2023,Deputy Chief Executive,Communities - DCE,AO RETAIL LIMITED,649.15,129.83,778.98,Awaiting Coding,Household appliance stores
Buckinghamshire Council ,30.04.2023,24.04.2023,Deputy Chief Executive,Communities - DCE,AO RETAIL LIMITED,0.02,0,0.02,Awaiting Coding,Household appliance stores
Buckinghamshire Council ,30.04.2023,24.04.2023,Deputy Chief Executive,Communities - DCE,AO RETAIL LIMITED,"1,039.95",207.99,"1,247.94",Awaiting Coding,Household appliance stores
Buckinghamshire Council ,30.04.2023,24.04.2023,Deputy Chief Executive,Communities - DCE,AO RETAIL LIMITED,0.06,0,0.06,Awaiting Coding,Household appliance stores
Buckinghamshire Council ,30.04.2023,24.04.2023,Deputy Chief Executive,Communities - DCE,AO RETAIL LIMITED,535.8,107.16,642.96,Awaiting Coding,Household appliance stores
Buckinghamshire Council ,30.04.2023,24.04.2023,Deputy Chief Executive,Communities - DCE,AO RETAIL LIMITED,0.04,0,0.04,Awaiting Coding,Household appliance stores
Buckinghamshire Council ,30.04.2023,24.04.2023,Deputy Chief Executive,Communities - DCE,AO RETAIL LIMITED,490,98,588,Awaiting Coding,Household appliance stores
Buckinghamshire Council ,30.04.2023,24.04.2023,Deputy Chief Executive,Communities - DCE,AO RETAIL LIMITED,490,98,588,Awaiting Coding,Household appliance stores
Buckinghamshire Council ,30.04.2023,24.04.2023,Deputy Chief Executive,Communities - DCE,AO RETAIL LIMITED,278.3,55.66,333.96,Awaiting Coding,Household appliance stores
Buckinghamshire Council ,30.04.2023,24.04.2023,Deputy Chief Executive,Communities - DCE,AO RETAIL LIMITED,0.04,0,0.04,Awaiting Coding,Household appliance stores
Buckinghamshire Council ,30.04.2023,24.04.2023,Deputy Chief Executive,AH&R- DCE Dir,LIDL GB OAKFIELD ROAD,3.38,0,3.38,Awaiting Coding,Grocery stores
Buckinghamshire Council ,30.04.2023,24.04.2023,Communities,Transport - Communities Dir,PARKING CO OFF,1.1,0,1.1,Awaiting Coding,Car parking & garages
Buckinghamshire Council ,30.04.2023,24.04.2023,Children's Services,Education & Childrens Services - CS Dir,BUCKINGHAMSHIRE COUN MOT,"1,560.10",0,"1,560.10",Awaiting Coding,Government services
Buckinghamshire Council ,30.04.2023,24.04.2023,Resources,AH&R - Res Dir,GEN REGISTER OFFICE,14,0,14,Awaiting Coding,Government services
Buckinghamshire Council ,30.04.2023,24.04.2023,Adults and Health,Health & Wellbeing - Adults & Health Dir,WM MORRISONS STORE,110.26,0,110.26,Awaiting Coding,Grocery stores
Buckinghamshire Council ,30.04.2023,24.04.2023,Communities,Housing & Homelessness & Regulatory Comm,BOOKER LTD - 38534944,646.38,129.28,948.67,Awaiting Coding,Grocery stores
Buckinghamshire Council ,30.04.2023,24.04.2023,Communities,Housing & Homelessness & Regulatory Comm,BOOKER LTD - 38534944,111.18,0,111.18,Awaiting Coding,Grocery stores
Buckinghamshire Council ,30.04.2023,24.04.2023,Communities,Housing & Homelessness & Regulatory Comm,BOOKER LTD - 38534944,51.52,10.31,948.67,Awaiting Coding,Grocery stores
Buckinghamshire Council ,30.04.2023,24.04.2023,"Planning, Growth & Sustainability",AH&R - PGS Dir,EDMUNDSON ELECTRICAL,56.3,0,56.3,Awaiting Coding,Electrical parts & equipment
Buckinghamshire Council ,30.04.2023,24.04.2023,Children's Services,Education & Childrens Services - CS Dir,TALKTALK BUSINESS,37.95,7.59,45.54,Awaiting Coding,Computer network information services
Buckinghamshire Council ,30.04.2023,24.04.2023,Communities,Culture & Leisure - Communities Dir,TOOLSTATION UK,24.98,0,24.98,Awaiting Coding,Hardware stores
Buckinghamshire Council ,30.04.2023,24.04.2023,Communities,Culture & Leisure - Communities Dir,AMZNMktplace,10.98,0,10.98,Awaiting Coding,Miscellaneous retail
Buckinghamshire Council ,30.04.2023,24.04.2023,Communities,Culture & Leisure - Communities Dir,AMZNMktplace,9.94,0,9.94,Awaiting Coding,Miscellaneous retail
Buckinghamshire Council ,30.04.2023,24.04.2023,Communities,Climate Change & Environment - Community,AMZNMKTPLACE,17.56,0,17.56,Awaiting Coding,Miscellaneous retail
Buckinghamshire Council ,30.04.2023,24.04.2023,Children's Services,Education & Childrens Services - CS Dir,AMZNMKTPLACE,47.78,0,47.78,Awaiting Coding,Miscellaneous retail
Buckinghamshire Council ,30.04.2023,24.04.2023,Adults and Health,Health & Wellbeing - Adults & Health Dir,AMZNMKTPLACE,47.63,0,47.63,Awaiting Coding,Miscellaneous retail
Buckinghamshire Council ,30.04.2023,24.04.2023,Children's Services,Education & Childrens Services - CS Dir,AMZNMKTPLACE,5.99,0,5.99,Awaiting Coding,Miscellaneous retail
Buckinghamshire Council ,30.04.2023,24.04.2023,Children's Services,Education & Childrens Services - CS Dir,AMZNMKTPLACE,11.99,0,11.99,Awaiting Coding,Miscellaneous retail
Buckinghamshire Council ,30.04.2023,24.04.2023,Children's Services,artnerships - Children's Services,WAITROSE,17.85,0,17.85,Awaiting Coding,Grocery stores
Buckinghamshire Council ,30.04.2023,24.04.2023,"Planning, Growth & Sustainability",Planning & Regeneration - PGS,WESTMINSTER FORUM PROJ,312,0,312,Awaiting Coding,Consultants & public relation services
Buckinghamshire Council ,30.04.2023,24.04.2023,"Planning, Growth & Sustainability",Planning & Regeneration - PGS,RTPI,198,0,198,Awaiting Coding,"Member clubs, sport, recreation & golf"
Buckinghamshire Council ,30.04.2023,24.04.2023,"Planning, Growth & Sustainability",AH&R - PGS Dir,AMZNMKTPLACE,111.02,0,111.02,Awaiting Coding,Miscellaneous retail
Buckinghamshire Council ,30.04.2023,24.04.2023,"Planning, Growth & Sustainability",AH&R - PGS Dir,LONDIS,12.6,0,12.6,Awaiting Coding,Sweets & confectionary
Buckinghamshire Council ,30.04.2023,24.04.2023,"Planning, Growth & Sustainability",AH&R - PGS Dir,SAFETY SIGNS 4 LESS,36.1,7.22,43.32,Awaiting Coding,Misc commercial machines equipment
Buckinghamshire Council ,30.04.2023,24.04.2023,"Planning, Growth & Sustainability",AH&R - PGS Dir,SAFETY SIGNS 4 LESS,0.02,0,0.02,Awaiting Coding,Misc commercial machines equipment
Buckinghamshire Council ,30.04.2023,24.04.2023,Adults and Health,Health & Wellbeing - Adults & Health Dir,WM MORRISONS STORE,15.78,0,15.78,Awaiting Coding,Grocery stores
Buckinghamshire Council ,30.04.2023,24.04.2023,Children's Services,Education & Childrens Services - CS Dir,WWW.ARGOS.CO.UK,65.95,0,65.95,Awaiting Coding,Department stores
Buckinghamshire Council ,30.04.2023,24.04.2023,"Planning, Growth & Sustainability",Climate Change & Environment - PGS,PAYPAL,20,0,20,Awaiting Coding,Charitable organisations
Buckinghamshire Council ,30.04.2023,24.04.2023,"Planning, Growth & Sustainability",Climate Change & Environment - PGS,MAPMATE LTD,60,0,60,Awaiting Coding,Misc. personal services
Buckinghamshire Council ,30.04.2023,24.04.2023,Children's Services,Education & Childrens Services - CS Dir,ROOTS COFFEE FOOD,9.6,0,9.6,Awaiting Coding,Restaurants
Buckinghamshire Council ,30.04.2023,24.04.2023,Children's Services,Education & Childrens Services - CS Dir,AMZNMKTPLACE,49.98,0,49.98,Awaiting Coding,Miscellaneous retail
Buckinghamshire Council ,30.04.2023,24.04.2023,Children's Services,Education & Childrens Services - CS Dir,ARRIVA UK BUS,7.8,0,7.8,Awaiting Coding,"Buses, charter & tour"
Buckinghamshire Council ,30.04.2023,24.04.2023,Children's Services,Education & Childrens Services - CS Dir,WWW.NO1REMOVALS.CO.UK,210,0,210,Awaiting Coding,"Haulage, removals & delivery"
Buckinghamshire Council ,30.04.2023,24.04.2023,Children's Services,Education & Childrens Services - CS Dir,WWW.NO1REMOVALS.CO.UK,210,0,210,Awaiting Coding,"Haulage, removals & delivery"
Buckinghamshire Council ,30.04.2023,24.04.2023,Children's Services,Education & Childrens Services - CS Dir,WWW.NO1REMOVALS.CO.UK,210,0,210,Awaiting Coding,"Haulage, removals & delivery"
Buckinghamshire Council ,30.04.2023,24.04.2023,Children's Services,Education & Childrens Services - CS Dir,SP SCHOOL WELLBEING,50,0,50,Awaiting Coding,Schools
Buckinghamshire Council ,30.04.2023,24.04.2023,Children's Services,Education & Childrens Services - CS Dir,EB *INTRODUCTION TO SU,49.46,0,49.46,Awaiting Coding,Misc business services
Buckinghamshire Council ,30.04.2023,24.04.2023,Adults and Health,Health & Wellbeing - Adults & Health Dir,TESCO STORES 5135,90.42,0,90.42,Awaiting Coding,Grocery stores
Buckinghamshire Council ,30.04.2023,24.04.2023,Children's Services,Education & Childrens Services - CS Dir,YELLOW CARS HW LTD,30,0,30,Awaiting Coding,Taxicabs & limousines
Buckinghamshire Council ,30.04.2023,24.04.2023,Children's Services,Education & Childrens Services - CS Dir,TAXIPAY,49,0,49,Awaiting Coding,Taxicabs & limousines
Buckinghamshire Council ,30.04.2023,24.04.2023,Children's Services,Education & Childrens Services - CS Dir,AMAZON.CO.UK,21,0,21,Awaiting Coding,Direct sales companies
Buckinghamshire Council ,30.04.2023,24.04.2023,Adults and Health,Health & Wellbeing - Adults & Health Dir,LONDIS,21.5,0,21.5,Awaiting Coding,Newspapers / newsagents
Buckinghamshire Council ,30.04.2023,24.04.2023,Children's Services,Education & Childrens Services - CS Dir,TRAVELODGE GB0955,13,0,13,Awaiting Coding,Travelodge
Buckinghamshire Council ,30.04.2023,24.04.2023,Resources,AH&R - Res Dir,BUCKINGHAMSHIRE CNCL,11,0,11,Awaiting Coding,Government services
Buckinghamshire Council ,30.04.2023,24.04.2023,Children's Services,Education & Childrens Services - CS Dir,TRAINLINE,-13.9,0,-13.9,Awaiting Coding,Passenger railways
Buckinghamshire Council ,30.04.2023,24.04.2023,Children's Services,Education & Childrens Services - CS Dir,PREMIER INN,122.5,0,122.5,Awaiting Coding,Premier Inn
Buckinghamshire Council ,30.04.2023,24.04.2023,Resources,AH&R - Res Dir,PREMIER INN,52.5,0,52.5,Awaiting Coding,Premier Inn
Buckinghamshire Council ,30.04.2023,24.04.2023,Resources,AH&R - Res Dir,PREMIER INN,482,0,482,Awaiting Coding,Premier Inn
Buckinghamshire Council ,30.04.2023,24.04.2023,Resources,AH&R - Res Dir,PREMIER INN,323,0,323,Awaiting Coding,Premier Inn
Buckinghamshire Council ,30.04.2023,24.04.2023,Resources,AH&R - Res Dir,PREMIER INN,"1,001.00",0,"1,001.00",Awaiting Coding,Premier Inn
Buckinghamshire Council ,30.04.2023,24.04.2023,Children's Services,Education & Childrens Services - CS Dir,BUCKINGHAMSHIRE CNCL,11,0,11,Awaiting Coding,Government services
Buckinghamshire Council ,30.04.2023,23.04.2023,Children's Services,Education & Childrens Services - CS Dir,AMZNMKTPLACE,82.99,0,82.99,Awaiting Coding,Miscellaneous retail
Buckinghamshire Council ,30.04.2023,23.04.2023,Communities,Climate Change & Environment - Community,TWITTER ONLINE ADS,18.23,0,18.23,Awaiting Coding,Advertising services
Buckinghamshire Council ,30.04.2023,23.04.2023,Communities,Culture & Leisure - Communities Dir,EBAY O*02-09980-96066,23.3,4.66,27.96,Awaiting Coding,Department stores
Buckinghamshire Council ,30.04.2023,23.04.2023,Communities,Culture & Leisure - Communities Dir,EBAY O*02-09980-96066,0.02,0,0.02,Awaiting Coding,Department stores
Buckinghamshire Council ,30.04.2023,23.04.2023,Children's Services,Education & Childrens Services - CS Dir,AMAZON.CO.UK,327.99,0,327.99,Awaiting Coding,Direct sales companies
Buckinghamshire Council ,30.04.2023,22.04.2023,Adults and Health,Health & Wellbeing - Adults & Health Dir,CARD FACTORY,11.22,0,11.22,Awaiting Coding,"Gift, card & novelty shops"
Buckinghamshire Council ,30.04.2023,22.04.2023,Deputy Chief Executive,Communities - DCE,RINGGO PARKING,1.85,0,1.85,Awaiting Coding,Car parking & garages
Buckinghamshire Council ,30.04.2023,22.04.2023,"Planning, Growth & Sustainability",Climate Change & Environment - PGS,TWITTER ONLINE ADS,14.18,0,14.18,Awaiting Coding,Advertising services
Buckinghamshire Council ,30.04.2023,22.04.2023,"Planning, Growth & Sustainability",Planning & Regeneration - PGS,SAINSBURY'S S/MKT,3,0,3,Awaiting Coding,Grocery stores
Buckinghamshire Council ,30.04.2023,22.04.2023,Deputy Chief Executive,Communities - DCE,AO RETAIL LIMITED,-100,0,-100,Awaiting Coding,Household appliance stores
Buckinghamshire Council ,30.04.2023,22.04.2023,Children's Services,Education & Childrens Services - CS Dir,AMZNMKTPLACE,11.99,0,11.99,Awaiting Coding,Miscellaneous retail
Buckinghamshire Council ,30.04.2023,22.04.2023,Children's Services,Education & Childrens Services - CS Dir,THE WORKS,5,0,5,Awaiting Coding,Discount stores
Buckinghamshire Council ,30.04.2023,22.04.2023,Deputy Chief Executive,Communities - DCE,RINGGO PARKING,6.25,0,6.25,Awaiting Coding,Car parking & garages
Buckinghamshire Council ,30.04.2023,22.04.2023,Resources,AH&R - Res Dir,PAYPAL,13.19,0,13.19,Awaiting Coding,Computer network information services
Buckinghamshire Council ,30.04.2023,22.04.2023,Resources,AH&R - Res Dir,Amazon Prime,96,0,96,Awaiting Coding,Continuous subscriptions
Buckinghamshire Council ,30.04.2023,22.04.2023,"Planning, Growth & Sustainability",Planning & Regeneration - PGS,AMZNMKTPLACE,15.95,0,15.95,Awaiting Coding,Miscellaneous retail
Buckinghamshire Council ,30.04.2023,21.04.2023,Children's Services,Education & Childrens Services - CS Dir,APPLE.COM/UK,450,0,450,Awaiting Coding,Electronics shops
Buckinghamshire Council ,30.04.2023,21.04.2023,Children's Services,Education & Childrens Services - CS Dir,AMZNMKTPLACE,35.33,0,35.33,Awaiting Coding,Miscellaneous retail
Buckinghamshire Council ,30.04.2023,21.04.2023,Children's Services,Education & Childrens Services - CS Dir,ENTERPRISE RENT A CAR,168.94,0,168.94,Awaiting Coding,Enterprise Rent-a-Car
Buckinghamshire Council ,30.04.2023,21.04.2023,Children's Services,Education & Childrens Services - CS Dir,TRAVELODGE GB0000,121.36,0,121.36,Awaiting Coding,Travelodge
Buckinghamshire Council ,30.04.2023,21.04.2023,Children's Services,Education & Childrens Services - CS Dir,TRAVELODGE GB0000,799.79,0,799.79,Awaiting Coding,Travelodge
Buckinghamshire Council ,30.04.2023,21.04.2023,Children's Services,Education & Childrens Services - CS Dir,TAXIPAY,35,0,35,Awaiting Coding,Taxicabs & limousines
Buckinghamshire Council ,30.04.2023,21.04.2023,Deputy Chief Executive,Communities - DCE,AO RETAIL LIMITED,882,0,882,Awaiting Coding,Household appliance stores
Buckinghamshire Council ,30.04.2023,21.04.2023,Deputy Chief Executive,Communities - DCE,WWW.ARGOS.CO.UK,145.95,0,145.95,Awaiting Coding,Department stores
Buckinghamshire Council ,30.04.2023,21.04.2023,Deputy Chief Executive,Communities - DCE,AO RETAIL LIMITED,956,0,956,Awaiting Coding,Household appliance stores
Buckinghamshire Council ,30.04.2023,21.04.2023,Deputy Chief Executive,Communities - DCE,PAYPAL,447.95,0,447.95,Awaiting Coding,Variety stores
Buckinghamshire Council ,30.04.2023,21.04.2023,Deputy Chief Executive,Communities - DCE,PAYPAL,48,0,48,Awaiting Coding,Variety stores
Buckinghamshire Council ,30.04.2023,21.04.2023,Children's Services,Education & Childrens Services - CS Dir,IKEA LTD SHOP ONLINE,55,0,55,Awaiting Coding,Furniture & home furnishing
Buckinghamshire Council ,30.04.2023,21.04.2023,Children's Services,Education & Childrens Services - CS Dir,CURRYS ONLINE,534,0,534,Awaiting Coding,Electronics shops
Buckinghamshire Council ,30.04.2023,21.04.2023,Children's Services,Education & Childrens Services - CS Dir,TRAVELODGE GB0000,74.43,0,74.43,Awaiting Coding,Travelodge
Buckinghamshire Council ,30.04.2023,21.04.2023,Children's Services,Education & Childrens Services - CS Dir,AO RETAIL LIMITED,813,0,813,Awaiting Coding,Household appliance stores
Buckinghamshire Council ,30.04.2023,21.04.2023,Children's Services,Education & Childrens Services - CS Dir,TESCO GIFT CARD,80,0,80,Awaiting Coding,Grocery stores
Buckinghamshire Council ,30.04.2023,21.04.2023,Children's Services,Education & Childrens Services - CS Dir,BUCKINGHAM HOTELS,"1,890.00",0,"1,890.00",Awaiting Coding,"Hotels, motels & resorts"
Buckinghamshire Council ,30.04.2023,21.04.2023,Children's Services,Education & Childrens Services - CS Dir,AMAZON.CO.UK,83.99,0,83.99,Awaiting Coding,Direct sales companies
Buckinghamshire Council ,30.04.2023,21.04.2023,Children's Services,Education & Childrens Services - CS Dir,ZETTLE_*COOK FAMILY LT,99.98,0,99.98,Awaiting Coding,Misc. personal services
Buckinghamshire Council ,30.04.2023,21.04.2023,Communities,Housing & Homelessness & Regulatory Comm,INSULATION SUPERSTORE,121.78,0,121.78,Awaiting Coding,Timber & building supplies
Buckinghamshire Council ,30.04.2023,21.04.2023,Adults and Health,Health & Wellbeing - Adults & Health Dir,TESCO STORES 2020,87.11,0,87.11,Awaiting Coding,Grocery stores
Buckinghamshire Council ,30.04.2023,21.04.2023,Children's Services,Education & Childrens Services - CS Dir,PHS GROUP,364.86,0,364.86,Awaiting Coding,Misc business services
Buckinghamshire Council ,30.04.2023,21.04.2023,"Planning, Growth & Sustainability",AH&R - PGS Dir,TESCO STORES 5525,8.25,0,8.25,Awaiting Coding,Grocery stores
Buckinghamshire Council ,30.04.2023,21.04.2023,"Planning, Growth & Sustainability",AH&R - PGS Dir,LOCK & KEY CENTRE,100,0,100,Awaiting Coding,Shoe repairs
Buckinghamshire Council ,30.04.2023,21.04.2023,Children's Services,Education & Childrens Services - CS Dir,AMAZON.CO.UK,11.19,0,11.19,Awaiting Coding,Direct sales companies
Buckinghamshire Council ,30.04.2023,21.04.2023,Children's Services,Education & Childrens Services - CS Dir,AMAZON.CO.UK,11.99,0,11.99,Awaiting Coding,Direct sales companies
Buckinghamshire Council ,30.04.2023,21.04.2023,Communities,Climate Change & Environment - Community,AMZNMKTPLACE,121.98,0,121.98,Awaiting Coding,Miscellaneous retail
Buckinghamshire Council ,30.04.2023,21.04.2023,Deputy Chief Executive,Communities - DCE,TESCO STORES 2041,6,0,6,Awaiting Coding,Grocery stores
Buckinghamshire Council ,30.04.2023,21.04.2023,Deputy Chief Executive,Communities - DCE,LIDL GB OAKFIELD ROAD,2.69,0,2.69,Awaiting Coding,Grocery stores
Buckinghamshire Council ,30.04.2023,21.04.2023,Deputy Chief Executive,Communities - DCE,TESCO STORES 3309,21.25,0,21.25,Awaiting Coding,Grocery stores
Buckinghamshire Council ,30.04.2023,21.04.2023,Children's Services,Education & Childrens Services - CS Dir,AMZNMKTPLACE,47.72,0,47.72,Awaiting Coding,Miscellaneous retail
Buckinghamshire Council ,30.04.2023,21.04.2023,Children's Services,Education & Childrens Services - CS Dir,Amazon.co.uk,8.36,0,8.36,Awaiting Coding,Direct sales companies
Buckinghamshire Council ,30.04.2023,21.04.2023,Children's Services,Education & Childrens Services - CS Dir,ASDA GROCERIES ONLINE,87.7,0,87.7,Awaiting Coding,Grocery stores
Buckinghamshire Council ,30.04.2023,21.04.2023,Children's Services,Education & Childrens Services - CS Dir,ASDA GROCERIES ONLINE,-4.8,0,-4.8,Awaiting Coding,Grocery stores
Buckinghamshire Council ,30.04.2023,21.04.2023,Adults and Health,Health & Wellbeing - Adults & Health Dir,TRAVELODGE GB0000,513.86,0,513.86,Awaiting Coding,Travelodge
Buckinghamshire Council ,30.04.2023,21.04.2023,Children's Services,Education & Childrens Services - CS Dir,PAYPAL,250,0,250,Awaiting Coding,Department stores
Buckinghamshire Council ,30.04.2023,21.04.2023,Children's Services,Education & Childrens Services - CS Dir,PAYPAL,49.95,0,49.95,Awaiting Coding,Variety stores
Buckinghamshire Council ,30.04.2023,21.04.2023,Communities,Climate Change & Environment - Community,AMZNMKTPLACE,32.45,0,32.45,Awaiting Coding,Miscellaneous retail
Buckinghamshire Council ,30.04.2023,21.04.2023,Communities,Climate Change & Environment - Community,AMZNMKTPLACE,40.96,0,40.96,Awaiting Coding,Miscellaneous retail
Buckinghamshire Council ,30.04.2023,21.04.2023,Children's Services,Education & Childrens Services - CS Dir,WWW.UTILITA.CO.UK,600,0,600,Awaiting Coding,Utilities
Buckinghamshire Council ,30.04.2023,21.04.2023,Children's Services,Education & Childrens Services - CS Dir,RINGGO PARKING,8.45,0,8.45,Awaiting Coding,Car parking & garages
Buckinghamshire Council ,30.04.2023,21.04.2023,Children's Services,Education & Childrens Services - CS Dir,TAXIPAY,30,0,30,Awaiting Coding,Taxicabs & limousines
Buckinghamshire Council ,30.04.2023,21.04.2023,Children's Services,Education & Childrens Services - CS Dir,PAYPAL,95,0,95,Awaiting Coding,Variety stores
Buckinghamshire Council ,30.04.2023,21.04.2023,Children's Services,Education & Childrens Services - CS Dir,PAYPAL,327.95,0,327.95,Awaiting Coding,Variety stores
Buckinghamshire Council ,30.04.2023,21.04.2023,"Planning, Growth & Sustainability",Climate Change & Environment - PGS,LAND REGISTRY ECOM CCC,6,0,6,Awaiting Coding,Government services
Buckinghamshire Council ,30.04.2023,21.04.2023,"Planning, Growth & Sustainability",Climate Change & Environment - PGS,LAND REGISTRY ECOM CCC,6,0,6,Awaiting Coding,Government services
Buckinghamshire Council ,30.04.2023,21.04.2023,"Planning, Growth & Sustainability",Planning & Regeneration - PGS,POST OFFICE COUNTER,3.1,0,3.1,Awaiting Coding,Postal services
Buckinghamshire Council ,30.04.2023,21.04.2023,Children's Services,Education & Childrens Services - CS Dir,WWW.ARGOS.CO.UK,91.95,0,91.95,Awaiting Coding,Department stores
Buckinghamshire Council ,30.04.2023,21.04.2023,Children's Services,Education & Childrens Services - CS Dir,ARRIVA UK BUS,20.8,0,20.8,Awaiting Coding,"Buses, charter & tour"
Buckinghamshire Council ,30.04.2023,21.04.2023,Children's Services,Education & Childrens Services - CS Dir,WWW.NO1REMOVALS.CO.UK,78.75,0,78.75,Awaiting Coding,"Haulage, removals & delivery"
Buckinghamshire Council ,30.04.2023,21.04.2023,"Planning, Growth & Sustainability",Housing & Homelessness & Regulatory PGS,ROYAL MAIL ONLINE SHOP,121.6,0,121.6,Awaiting Coding,Postal services
Buckinghamshire Council ,30.04.2023,21.04.2023,Communities,ommunities - Trading Accounts,DVLA VEHICLE TAX,165,0,165,Awaiting Coding,Tax payments
Buckinghamshire Council ,30.04.2023,21.04.2023,Communities,ommunities - Trading Accounts,DVLA VEHICLE TAX,165,0,165,Awaiting Coding,Tax payments
Buckinghamshire Council ,30.04.2023,21.04.2023,Communities,ommunities - Trading Accounts,DVLA VEHICLE TAX,165,0,165,Awaiting Coding,Tax payments
Buckinghamshire Council ,30.04.2023,21.04.2023,Communities,ommunities - Trading Accounts,DVLA VEHICLE TAX,320,0,320,Awaiting Coding,Tax payments
Buckinghamshire Council ,30.04.2023,21.04.2023,Communities,ommunities - Trading Accounts,DVLA VEHICLE TAX,180,0,180,Awaiting Coding,Tax payments
Buckinghamshire Council ,30.04.2023,21.04.2023,Communities,ommunities - Trading Accounts,DVLA VEHICLE TAX,180,0,180,Awaiting Coding,Tax payments
Buckinghamshire Council ,30.04.2023,21.04.2023,Communities,ommunities - Trading Accounts,DVLA VEHICLE TAX,320,0,320,Awaiting Coding,Tax payments
Buckinghamshire Council ,30.04.2023,21.04.2023,Communities,ommunities - Trading Accounts,DVLA VEHICLE TAX,365,0,365,Awaiting Coding,Tax payments
Buckinghamshire Council ,30.04.2023,21.04.2023,Communities,ommunities - Trading Accounts,DVLA VEHICLE TAX,165,0,165,Awaiting Coding,Tax payments
Buckinghamshire Council ,30.04.2023,21.04.2023,Communities,ommunities - Trading Accounts,DVLA VEHICLE TAX,165,0,165,Awaiting Coding,Tax payments
Buckinghamshire Council ,30.04.2023,21.04.2023,Children's Services,Education & Childrens Services - CS Dir,TRAVELODGE GB0000,877.01,0,877.01,Awaiting Coding,Travelodge
Buckinghamshire Council ,30.04.2023,21.04.2023,Adults and Health,Health & Wellbeing - Adults & Health Dir,WM MORRISONS STORE,12.31,0,12.31,Awaiting Coding,Grocery stores
Buckinghamshire Council ,30.04.2023,21.04.2023,Adults and Health,Health & Wellbeing - Adults & Health Dir,WM MORRISONS STORE,31.3,0,31.3,Awaiting Coding,Grocery stores
Buckinghamshire Council ,30.04.2023,20.04.2023,Resources,AH&R - Res Dir,AMZNMKTPLACE,10.98,0,10.98,Awaiting Coding,Miscellaneous retail
Buckinghamshire Council ,30.04.2023,20.04.2023,"Planning, Growth & Sustainability",Housing & Homelessness & Regulatory PGS,ROYAL MAIL ONLINE SHOP,80,0,80,Awaiting Coding,Postal services
Buckinghamshire Council ,30.04.2023,20.04.2023,Children's Services,Education & Childrens Services - CS Dir,TRAVELODGE GB0000,597.61,0,597.61,Awaiting Coding,Travelodge
Buckinghamshire Council ,30.04.2023,20.04.2023,Children's Services,Education & Childrens Services - CS Dir,TAXIPAY,12,0,12,Awaiting Coding,Taxicabs & limousines
Buckinghamshire Council ,30.04.2023,20.04.2023,Deputy Chief Executive,Communities - DCE,AO RETAIL LIMITED,289,0,289,Awaiting Coding,Household appliance stores
Buckinghamshire Council ,30.04.2023,20.04.2023,Deputy Chief Executive,Communities - DCE,AO RETAIL LIMITED,543,0,543,Awaiting Coding,Household appliance stores
Buckinghamshire Council ,30.04.2023,20.04.2023,Deputy Chief Executive,Communities - DCE,WWW.ARGOS.CO.UK,39.95,0,39.95,Awaiting Coding,Department stores
Buckinghamshire Council ,30.04.2023,20.04.2023,Deputy Chief Executive,Communities - DCE,TU AT SAINSBURYS,95.45,0,95.45,Awaiting Coding,Grocery stores
Buckinghamshire Council ,30.04.2023,20.04.2023,Deputy Chief Executive,Communities - DCE,AO RETAIL LIMITED,159,0,159,Awaiting Coding,Household appliance stores
Buckinghamshire Council ,30.04.2023,20.04.2023,Deputy Chief Executive,Leader - DCE,PARKING EYE PARKING FE,3.5,0,3.5,Awaiting Coding,Car parking & garages
Buckinghamshire Council ,30.04.2023,20.04.2023,Children's Services,Education & Childrens Services - CS Dir,CURRYS BUSINESS,187.5,37.5,225,Awaiting Coding,Computer software stores
Buckinghamshire Council ,30.04.2023,20.04.2023,Children's Services,Education & Childrens Services - CS Dir,CURRYS BUSINESS,0.03,0,0.03,Awaiting Coding,Computer software stores
Buckinghamshire Council ,30.04.2023,20.04.2023,Communities,Climate Change & Environment - Community,DVLA VEHICLE TAX,167.5,0,167.5,Awaiting Coding,Government services
Buckinghamshire Council ,30.04.2023,20.04.2023,"Planning, Growth & Sustainability",AH&R - PGS Dir,SAFETY SIGNS 4 LESS,92.16,0,92.16,Awaiting Coding,Misc commercial machines equipment
Buckinghamshire Council ,30.04.2023,20.04.2023,"Planning, Growth & Sustainability",AH&R - PGS Dir,AMZNMKTPLACE,15.95,0,15.95,Awaiting Coding,Miscellaneous retail
Buckinghamshire Council ,30.04.2023,20.04.2023,Adults and Health,Health & Wellbeing - Adults & Health Dir,TESCO STORES 5135,144.55,0,144.55,Awaiting Coding,Grocery stores
Buckinghamshire Council ,30.04.2023,20.04.2023,"Planning, Growth & Sustainability",AH&R - PGS Dir,ASDA SUPERSTORE,3.33,0.67,4,Awaiting Coding,Grocery stores
Buckinghamshire Council ,30.04.2023,20.04.2023,Adults and Health,Health & Wellbeing - Adults & Health Dir,LEEDERS HARDWARE,11.28,0,11.28,Awaiting Coding,Hardware stores
Buckinghamshire Council ,30.04.2023,20.04.2023,Communities,Culture & Leisure - Communities Dir,TESCO STORES 2640,3.9,0,3.9,Awaiting Coding,Grocery stores
Buckinghamshire Council ,30.04.2023,20.04.2023,Communities,Housing & Homelessness & Regulatory Comm,AMAZON.CO.UK,44.1,8.82,52.92,Awaiting Coding,Direct sales companies
Buckinghamshire Council ,30.04.2023,20.04.2023,Communities,Housing & Homelessness & Regulatory Comm,AMAZON.CO.UK,0.04,0,0.04,Awaiting Coding,Direct sales companies
Buckinghamshire Council ,30.04.2023,20.04.2023,Adults and Health,Communities - Adults & Health,RADIO SOLUTIONS,124.75,0,124.75,Awaiting Coding,Electrical parts & equipment
Buckinghamshire Council ,30.04.2023,20.04.2023,Deputy Chief Executive,AH&R- DCE Dir,AMZNMKTPLACE,27.52,0,27.52,Awaiting Coding,Miscellaneous retail
Buckinghamshire Council ,30.04.2023,20.04.2023,Adults and Health,Health & Wellbeing - Adults & Health Dir,WICKES CHESHAM,24,0,24,Awaiting Coding,Timber & building supplies
Buckinghamshire Council ,30.04.2023,20.04.2023,Communities,Climate Change & Environment - Community,AMZNMKTPLACE,9.99,0,9.99,Awaiting Coding,Miscellaneous retail
Buckinghamshire Council ,30.04.2023,20.04.2023,Deputy Chief Executive,Communities - DCE,AMZNMKTPLACE,3.99,0,3.99,Awaiting Coding,Miscellaneous retail
Buckinghamshire Council ,30.04.2023,20.04.2023,Communities,Transport - Communities Dir,WWW.SCREWFIX.COM,167.72,0,167.72,Awaiting Coding,Timber & building supplies
Buckinghamshire Council ,30.04.2023,20.04.2023,Children's Services,Education & Childrens Services - CS Dir,AMZNMKTPLACE,21.98,0,21.98,Awaiting Coding,Miscellaneous retail
Buckinghamshire Council ,30.04.2023,20.04.2023,Children's Services,Education & Childrens Services - CS Dir,WM MORRISONS STORE,36.88,0,36.88,Awaiting Coding,Grocery stores
Buckinghamshire Council ,30.04.2023,20.04.2023,Adults and Health,Health & Wellbeing - Adults & Health Dir,WWW.GWR.COM,13.4,0,13.4,Awaiting Coding,Passenger railways
Buckinghamshire Council ,30.04.2023,20.04.2023,Adults and Health,Health & Wellbeing - Adults & Health Dir,TRAVELODGE GB0000,"1,281.92",0,"1,281.92",Awaiting Coding,Travelodge
Buckinghamshire Council ,30.04.2023,20.04.2023,Communities,Climate Change & Environment - Community,AMZNMKTPLACE,31.68,0,31.68,Awaiting Coding,Miscellaneous retail
Buckinghamshire Council ,30.04.2023,20.04.2023,Communities,Climate Change & Environment - Community,AMZNMKTPLACE,15.78,0,15.78,Awaiting Coding,Miscellaneous retail
Buckinghamshire Council ,30.04.2023,20.04.2023,Communities,Climate Change & Environment - Community,AMZNMKTPLACE,10.68,0,10.68,Awaiting Coding,Miscellaneous retail
Buckinghamshire Council ,30.04.2023,20.04.2023,Children's Services,Education & Childrens Services - CS Dir,TESCO STORES 2041,11.25,0,11.25,Awaiting Coding,Grocery stores
Buckinghamshire Council ,30.04.2023,20.04.2023,Children's Services,Education & Childrens Services - CS Dir,NEW YORK DELI (AYLESBURY),17.7,0,17.7,Awaiting Coding,Restaurants
Buckinghamshire Council ,30.04.2023,20.04.2023,Children's Services,Education & Childrens Services - CS Dir,TESCO STORES 2041,100,0,100,Awaiting Coding,Grocery stores
Buckinghamshire Council ,30.04.2023,20.04.2023,Children's Services,Education & Childrens Services - CS Dir,NEW YORK DELI (AYLESBURY),-1.95,0,-1.95,Awaiting Coding,Restaurants
Buckinghamshire Council ,30.04.2023,20.04.2023,Children's Services,Education & Childrens Services - CS Dir,TAXIPAY,30,0,30,Awaiting Coding,Taxicabs & limousines
Buckinghamshire Council ,30.04.2023,20.04.2023,"Planning, Growth & Sustainability",AH&R - PGS Dir,UK ELECTRICALSUPPLIERS,153.48,30.7,184.18,Awaiting Coding,Electrical parts & equipment
Buckinghamshire Council ,30.04.2023,20.04.2023,Children's Services,Education & Childrens Services - CS Dir,TESCO STORES 2038,48.04,0,48.04,Awaiting Coding,Grocery stores
Buckinghamshire Council ,30.04.2023,20.04.2023,Children's Services,Education & Childrens Services - CS Dir,WWW.ARGOS.CO.UK,66.95,0,66.95,Awaiting Coding,Department stores
Buckinghamshire Council ,30.04.2023,20.04.2023,Children's Services,Education & Childrens Services - CS Dir,AMZNMKTPLACE,35.98,0,35.98,Awaiting Coding,Miscellaneous retail
Buckinghamshire Council ,30.04.2023,20.04.2023,Communities,ommunities - Trust Accounts,WEXHAM MOWER SVCS,28.67,5.73,28.67,Awaiting Coding,Lawn & garden supply/nursery
Buckinghamshire Council ,30.04.2023,20.04.2023,Communities,ommunities - Trust Accounts,B & Q 1262,124,20.67,124,Awaiting Coding,Home supply warehouse stores
Buckinghamshire Council ,30.04.2023,20.04.2023,"Planning, Growth & Sustainability",Planning & Regeneration - PGS,TRAINLINE.COM,21.6,0,21.6,Awaiting Coding,Passenger railways
Buckinghamshire Council ,30.04.2023,20.04.2023,"Planning, Growth & Sustainability",Planning & Regeneration - PGS,TFL TRAVEL CH,5.4,0,5.4,Awaiting Coding,Local commuter transport
Buckinghamshire Council ,30.04.2023,20.04.2023,Resources,AH&R - Res Dir,FACEBK *CQBHJM3N72,5.07,0,5.07,Awaiting Coding,Advertising services
Buckinghamshire Council ,30.04.2023,20.04.2023,Children's Services,Education & Childrens Services - CS Dir,COOKSON PRECIOUS M,9.1,1.82,10.92,Awaiting Coding,"Precious stones, metals & jewellery"
Buckinghamshire Council ,30.04.2023,20.04.2023,Children's Services,Education & Childrens Services - CS Dir,COOKSON PRECIOUS M,0.01,0,0.01,Awaiting Coding,"Precious stones, metals & jewellery"
Buckinghamshire Council ,30.04.2023,20.04.2023,"Planning, Growth & Sustainability",AH&R - PGS Dir,ROCOCO LOUNGE,6.6,0,6.6,Awaiting Coding,"Bars, taverns, pubs & nightclubs"
Buckinghamshire Council ,30.04.2023,20.04.2023,"Planning, Growth & Sustainability",AH&R - PGS Dir,ROCOCO LOUNGE,19.1,0,19.1,Awaiting Coding,"Bars, taverns, pubs & nightclubs"
Buckinghamshire Council ,30.04.2023,20.04.2023,Children's Services,Education & Childrens Services - CS Dir,AMZNMKTPLACE,42.3,0,42.3,Awaiting Coding,Miscellaneous retail
Buckinghamshire Council ,30.04.2023,20.04.2023,"Planning, Growth & Sustainability",Housing & Homelessness & Regulatory PGS,DUNELM SOFTFURNISHINGS,815.95,0,815.95,Awaiting Coding,Furniture & home furnishing
Buckinghamshire Council ,30.04.2023,20.04.2023,"Planning, Growth & Sustainability",Housing & Homelessness & Regulatory PGS,IKEA LTD SHOP ONLINE,"1,730.00",0,"1,730.00",Awaiting Coding,Furniture & home furnishing
Buckinghamshire Council ,30.04.2023,20.04.2023,Communities,Climate Change & Environment - Community,GSF CAR PARTS,177.48,0,177.48,Awaiting Coding,Motor vehicle supplies & parts
Buckinghamshire Council ,30.04.2023,20.04.2023,Communities,Climate Change & Environment - Community,PERRYS AYLESBURY DACIA,26.9,0,26.9,Awaiting Coding,Automobile dealers - new & used
Buckinghamshire Council ,30.04.2023,20.04.2023,Children's Services,Education & Childrens Services - CS Dir,AMZNMKTPLACE,25.98,0,25.98,Awaiting Coding,Miscellaneous retail
Buckinghamshire Council ,30.04.2023,20.04.2023,Adults and Health,Health & Wellbeing - Adults & Health Dir,AMZNMKTPLACE,159.87,31.98,191.85,Awaiting Coding,Miscellaneous retail
Buckinghamshire Council ,30.04.2023,20.04.2023,Children's Services,Education & Childrens Services - CS Dir,BUCKINGHAMSHIRE CNCL,11,0,11,Awaiting Coding,Government services
Buckinghamshire Council ,30.04.2023,20.04.2023,Children's Services,Education & Childrens Services - CS Dir,LENOVO,37.5,7.5,45,Awaiting Coding,Direct sales companies
Buckinghamshire Council ,30.04.2023,20.04.2023,Children's Services,Education & Childrens Services - CS Dir,TRAVELODGE GB0846,13,0,13,Awaiting Coding,Travelodge
Buckinghamshire Council ,30.04.2023,19.04.2023,Children's Services,Education & Childrens Services - CS Dir,AFFINITY WATER CCP CON,145.55,0,145.55,Awaiting Coding,Utilities
Buckinghamshire Council ,30.04.2023,19.04.2023,"Planning, Growth & Sustainability",Housing & Homelessness & Regulatory PGS,WWW.ARGOS.CO.UK,350,0,350,Awaiting Coding,Department stores
Buckinghamshire Council ,30.04.2023,19.04.2023,Children's Services,Education & Childrens Services - CS Dir,TAXIPAY,26,0,26,Awaiting Coding,Taxicabs & limousines
Buckinghamshire Council ,30.04.2023,19.04.2023,Children's Services,Education & Childrens Services - CS Dir,BUCKINGHAMSHIRE CNCL,11,0,11,Awaiting Coding,Government services
Buckinghamshire Council ,30.04.2023,19.04.2023,Deputy Chief Executive,Communities - DCE,AO RETAIL LIMITED,485.8,97.16,582.96,Awaiting Coding,Household appliance stores
Buckinghamshire Council ,30.04.2023,19.04.2023,Deputy Chief Executive,Communities - DCE,AO RETAIL LIMITED,0.04,0,0.04,Awaiting Coding,Household appliance stores
Buckinghamshire Council ,30.04.2023,19.04.2023,Deputy Chief Executive,Communities - DCE,AO RETAIL LIMITED,361.66,72.34,434,Awaiting Coding,Household appliance stores
Buckinghamshire Council ,30.04.2023,19.04.2023,Deputy Chief Executive,Communities - DCE,WWW.ARGOS.CO.UK,254.1,50.82,304.92,Awaiting Coding,Department stores
Buckinghamshire Council ,30.04.2023,19.04.2023,Deputy Chief Executive,Communities - DCE,WWW.ARGOS.CO.UK,0.03,0,0.03,Awaiting Coding,Department stores
Buckinghamshire Council ,30.04.2023,19.04.2023,Deputy Chief Executive,Communities - DCE,AO RETAIL LIMITED,884.1,176.82,"1,060.92",Awaiting Coding,Household appliance stores
Buckinghamshire Council ,30.04.2023,19.04.2023,Deputy Chief Executive,Communities - DCE,AO RETAIL LIMITED,0.08,0,0.08,Awaiting Coding,Household appliance stores
Buckinghamshire Council ,30.04.2023,19.04.2023,Deputy Chief Executive,Communities - DCE,AO RETAIL LIMITED,315.83,63.17,379,Awaiting Coding,Household appliance stores
Buckinghamshire Council ,30.04.2023,19.04.2023,Deputy Chief Executive,Communities - DCE,AO RETAIL LIMITED,361.66,72.34,434,Awaiting Coding,Household appliance stores
Buckinghamshire Council ,30.04.2023,19.04.2023,Deputy Chief Executive,Communities - DCE,AO RETAIL LIMITED,265.83,53.17,319,Awaiting Coding,Household appliance stores
Buckinghamshire Council ,30.04.2023,19.04.2023,Deputy Chief Executive,Communities - DCE,AO RETAIL LIMITED,261.66,52.34,314,Awaiting Coding,Household appliance stores
Buckinghamshire Council ,30.04.2023,19.04.2023,Deputy Chief Executive,Communities - DCE,WWW.ARGOS.CO.UK,373.29,74.66,447.95,Awaiting Coding,Department stores
Buckinghamshire Council ,30.04.2023,19.04.2023,Deputy Chief Executive,Communities - DCE,AO RETAIL LIMITED,-30,0,-30,Awaiting Coding,Household appliance stores
Buckinghamshire Council ,30.04.2023,19.04.2023,Children's Services,Education & Childrens Services - CS Dir,AMZNMKTPLACE,10,0,10,Awaiting Coding,Miscellaneous retail
Buckinghamshire Council ,30.04.2023,19.04.2023,Deputy Chief Executive,Communities - DCE,NEW YORK DELI GATEHOUSE,7.6,0,7.6,Awaiting Coding,Restaurants
Buckinghamshire Council ,30.04.2023,19.04.2023,Communities,Culture & Leisure - Communities Dir,AMZNMKTPLACE,23.88,0,23.88,Awaiting Coding,Miscellaneous retail
Buckinghamshire Council ,30.04.2023,19.04.2023,Deputy Chief Executive,Leader - DCE,THE BUCKINGHAMSHIR,132.5,0,132.5,Awaiting Coding,Misc. recreational services
Buckinghamshire Council ,30.04.2023,19.04.2023,Communities,Climate Change & Environment - Community,DVLA VEHICLE TAX,322.5,0,322.5,Awaiting Coding,Government services
Buckinghamshire Council ,30.04.2023,19.04.2023,Communities,Climate Change & Environment - Community,DVLA VEHICLE TAX,322.5,0,322.5,Awaiting Coding,Government services
Buckinghamshire Council ,30.04.2023,19.04.2023,Communities,Climate Change & Environment - Community,DVLA VEHICLE TAX,302.5,0,302.5,Awaiting Coding,Government services
Buckinghamshire Council ,30.04.2023,19.04.2023,Communities,Climate Change & Environment - Community,DVLA VEHICLE TAX,322.5,0,322.5,Awaiting Coding,Government services
Buckinghamshire Council ,30.04.2023,19.04.2023,Communities,Climate Change & Environment - Community,DVLA VEHICLE TAX,322.5,0,322.5,Awaiting Coding,Government services
Buckinghamshire Council ,30.04.2023,19.04.2023,Communities,Climate Change & Environment - Community,AMZNMKTPLACE,129.9,0,129.9,Awaiting Coding,Miscellaneous retail
Buckinghamshire Council ,30.04.2023,19.04.2023,Communities,Climate Change & Environment - Community,DVLA VEHICLE TAX,322.5,0,322.5,Awaiting Coding,Government services
Buckinghamshire Council ,30.04.2023,19.04.2023,Communities,Climate Change & Environment - Community,DVLA VEHICLE TAX,97.5,0,97.5,Awaiting Coding,Government services
Buckinghamshire Council ,30.04.2023,19.04.2023,Communities,Climate Change & Environment - Community,DVLA VEHICLE TAX,302.5,0,302.5,Awaiting Coding,Government services
Buckinghamshire Council ,30.04.2023,19.04.2023,Communities,Climate Change & Environment - Community,DVLA VEHICLE TAX,302.5,0,302.5,Awaiting Coding,Government services
Buckinghamshire Council ,30.04.2023,19.04.2023,Communities,Climate Change & Environment - Community,DVLA VEHICLE TAX,302.5,0,302.5,Awaiting Coding,Government services
Buckinghamshire Council ,30.04.2023,19.04.2023,Deputy Chief Executive,AH&R- DCE Dir,TRAVELODGE GB0000,108.09,0,108.09,Awaiting Coding,Travelodge
Buckinghamshire Council ,30.04.2023,19.04.2023,Deputy Chief Executive,Communities - DCE,AO RETAIL LIMITED,-184,0,-184,Awaiting Coding,Household appliance stores
Buckinghamshire Council ,30.04.2023,19.04.2023,Communities,Housing & Homelessness & Regulatory Comm,SP DAVID AUSTIN RO,105.2,0,105.2,Awaiting Coding,Florist supplies & nursery stock
Buckinghamshire Council ,30.04.2023,19.04.2023,Resources,AH&R - Res Dir,ROYAL MAIL GROUP LTD,15.45,0,15.45,Awaiting Coding,Postal services
Buckinghamshire Council ,30.04.2023,19.04.2023,Communities,Transport - Communities Dir,PARKING-EASTONST,1.1,0,1.1,Awaiting Coding,Car parking & garages
Buckinghamshire Council ,30.04.2023,19.04.2023,Communities,Transport - Communities Dir,PARKING-EASTONST,0.8,0,0.8,Awaiting Coding,Car parking & garages
Buckinghamshire Council ,30.04.2023,19.04.2023,Communities,artnerships - Communities,AMZNMktplace,11.99,0,11.99,Awaiting Coding,Miscellaneous retail
Buckinghamshire Council ,30.04.2023,19.04.2023,"Planning, Growth & Sustainability",AH&R - PGS Dir,SCREWFIX DIR LTD,8.73,0,8.73,Awaiting Coding,Timber & building supplies
Buckinghamshire Council ,30.04.2023,19.04.2023,"Planning, Growth & Sustainability",AH&R - PGS Dir,WWW.SCREWFIX.COM,4.86,0,4.86,Awaiting Coding,Timber & building supplies
Buckinghamshire Council ,30.04.2023,19.04.2023,Communities,Culture & Leisure - Communities Dir,TESCO STORES 2640,28.57,0,28.57,Awaiting Coding,Grocery stores
Buckinghamshire Council ,30.04.2023,19.04.2023,Communities,Housing & Homelessness & Regulatory Comm,AMZNMKTPLACE,11.62,2.33,13.95,Awaiting Coding,Miscellaneous retail
Buckinghamshire Council ,30.04.2023,19.04.2023,"Planning, Growth & Sustainability",AH&R - PGS Dir,SAFETY FIRST,71.76,0,71.76,Awaiting Coding,Men & womens clothing shops
Buckinghamshire Council ,30.04.2023,19.04.2023,Adults and Health,Health & Wellbeing - Adults & Health Dir,B & Q 1305,58.75,0,58.75,Awaiting Coding,Home supply warehouse stores
Buckinghamshire Council ,30.04.2023,19.04.2023,Communities,Culture & Leisure - Communities Dir,CO-OP GROUP FOOD,6.45,0,6.45,Awaiting Coding,Grocery stores
Buckinghamshire Council ,30.04.2023,19.04.2023,Deputy Chief Executive,AH&R- DCE Dir,WORCESTERSHIRE MEDAL SERV,61.81,0,61.81,Awaiting Coding,Miscellaneous retail
Buckinghamshire Council ,30.04.2023,19.04.2023,Children's Services,Education & Childrens Services - CS Dir,HARTWELL RIDING STABLE,600,0,600,Awaiting Coding,Schools
Buckinghamshire Council ,30.04.2023,19.04.2023,Children's Services,Education & Childrens Services - CS Dir,MARKS&SPENCER PLC,35,0,35,Awaiting Coding,Grocery stores
Buckinghamshire Council ,30.04.2023,19.04.2023,Children's Services,Education & Childrens Services - CS Dir,AMZNMKTPLACE,31.77,0,31.77,Awaiting Coding,Miscellaneous retail
Buckinghamshire Council ,30.04.2023,19.04.2023,Children's Services,Education & Childrens Services - CS Dir,CARD FACTORY,5.08,0,5.08,Awaiting Coding,"Gift, card & novelty shops"
Buckinghamshire Council ,30.04.2023,19.04.2023,Children's Services,Education & Childrens Services - CS Dir,WM MORRISONS STORE,14.99,0,14.99,Awaiting Coding,Grocery stores
Buckinghamshire Council ,30.04.2023,19.04.2023,Children's Services,Education & Childrens Services - CS Dir,WATAN HALAL FOOD,22.3,0,22.3,Awaiting Coding,Misc Food stores
Buckinghamshire Council ,30.04.2023,19.04.2023,Adults and Health,Health & Wellbeing - Adults & Health Dir,GROUPSTAY,5.12,0,5.12,Awaiting Coding,Estate Agents & Property Management
Buckinghamshire Council ,30.04.2023,19.04.2023,Adults and Health,Health & Wellbeing - Adults & Health Dir,TRAVELODGE GB0000,100.99,0,100.99,Awaiting Coding,Travelodge
Buckinghamshire Council ,30.04.2023,19.04.2023,Communities,Climate Change & Environment - Community,HOBAN SKIPS,516,0,516,Awaiting Coding,Utilities
Buckinghamshire Council ,30.04.2023,19.04.2023,Communities,Culture & Leisure - Communities Dir,POST OFFICE COUNTER,60,0,60,Awaiting Coding,Postal services
Buckinghamshire Council ,30.04.2023,19.04.2023,Children's Services,Education & Childrens Services - CS Dir,ASDA  STORES 4396,3,0,3,Awaiting Coding,Grocery stores
Buckinghamshire Council ,30.04.2023,19.04.2023,"Planning, Growth & Sustainability",Leader - PGS,LANDOR LINKS LTD,360,0,360,Awaiting Coding,Misc business services
Buckinghamshire Council ,30.04.2023,19.04.2023,Children's Services,Education & Childrens Services - CS Dir,TESCO STORES 2038,77.8,0,77.8,Awaiting Coding,Grocery stores
Buckinghamshire Council ,30.04.2023,19.04.2023,Children's Services,Education & Childrens Services - CS Dir,IKEA LTD SHOP ONLINE,773,0,773,Awaiting Coding,Furniture & home furnishing
Buckinghamshire Council ,30.04.2023,19.04.2023,Children's Services,Education & Childrens Services - CS Dir,HOTEL AT BOOKING.COM,69,0,69,Awaiting Coding,"Hotels, motels & resorts"
Buckinghamshire Council ,30.04.2023,19.04.2023,Communities,ommunities - Trust Accounts,COSTCO WHOLESALE #102,29.94,0,29.94,Awaiting Coding,Buying & shopping services/clubs
Buckinghamshire Council ,30.04.2023,19.04.2023,Deputy Chief Executive,AH&R- DCE Dir,WWW.ARGOS.CO.UK,49.99,10,59.99,Awaiting Coding,Department stores
Buckinghamshire Council ,30.04.2023,19.04.2023,Deputy Chief Executive,AH&R- DCE Dir,WWW.ARGOS.CO.UK,382.35,76.47,458.82,Awaiting Coding,Department stores
Buckinghamshire Council ,30.04.2023,19.04.2023,Deputy Chief Executive,AH&R- DCE Dir,WWW.ARGOS.CO.UK,0.09,0,0.09,Awaiting Coding,Department stores
Buckinghamshire Council ,30.04.2023,19.04.2023,Deputy Chief Executive,AH&R- DCE Dir,CURRYS ONLINE,885.8,177.16,"1,062.96",Awaiting Coding,Electronics shops
Buckinghamshire Council ,30.04.2023,19.04.2023,Deputy Chief Executive,AH&R- DCE Dir,CURRYS ONLINE,0.01,0,0.01,Awaiting Coding,Electronics shops
Buckinghamshire Council ,30.04.2023,19.04.2023,Deputy Chief Executive,AH&R- DCE Dir,WWW.ARGOS.CO.UK,335.79,67.16,402.95,Awaiting Coding,Department stores
Buckinghamshire Council ,30.04.2023,19.04.2023,Deputy Chief Executive,AH&R- DCE Dir,WWW.ARGOS.CO.UK,224.12,44.83,268.95,Awaiting Coding,Department stores
Buckinghamshire Council ,30.04.2023,19.04.2023,Children's Services,Education & Childrens Services - CS Dir,UDEMY,13.32,2.67,15.99,Awaiting Coding,"Programming, data processing & system design"
Buckinghamshire Council ,30.04.2023,19.04.2023,Children's Services,Education & Childrens Services - CS Dir,UDEMY,13.32,2.67,15.99,Awaiting Coding,"Programming, data processing & system design"
Buckinghamshire Council ,30.04.2023,19.04.2023,Children's Services,Education & Childrens Services - CS Dir,UDEMY,13.32,2.67,15.99,Awaiting Coding,"Programming, data processing & system design"
Buckinghamshire Council ,30.04.2023,19.04.2023,Children's Services,Education & Childrens Services - CS Dir,UDEMY,14.15,2.83,16.98,Awaiting Coding,"Programming, data processing & system design"
Buckinghamshire Council ,30.04.2023,19.04.2023,Children's Services,Education & Childrens Services - CS Dir,UDEMY,0.01,0,0.01,Awaiting Coding,"Programming, data processing & system design"
Buckinghamshire Council ,30.04.2023,19.04.2023,"Planning, Growth & Sustainability",Housing & Homelessness & Regulatory PGS,BT BUSINESS BILL,82.24,0,82.24,Awaiting Coding,Phone services
Buckinghamshire Council ,30.04.2023,19.04.2023,"Planning, Growth & Sustainability",Housing & Homelessness & Regulatory PGS,AMAZON PRIME,8.99,0,8.99,Awaiting Coding,Continuous subscriptions
Buckinghamshire Council ,30.04.2023,19.04.2023,"Planning, Growth & Sustainability",Housing & Homelessness & Regulatory PGS,SAINSBURYS S/MKTS,28.65,0,28.65,Awaiting Coding,Grocery stores
Buckinghamshire Council ,30.04.2023,19.04.2023,Children's Services,Education & Childrens Services - CS Dir,TRAVELODGE GB0000,251.87,0,251.87,Awaiting Coding,Travelodge
Buckinghamshire Council ,30.04.2023,19.04.2023,Children's Services,Education & Childrens Services - CS Dir,TRAVELODGE GB0000,280.96,0,280.96,Awaiting Coding,Travelodge
Buckinghamshire Council ,30.04.2023,19.04.2023,Deputy Chief Executive,AH&R- DCE Dir,SQ *STEMS OF BEAUTY LIMIT,70,0,70,Awaiting Coding,Misc. general merchandise
Buckinghamshire Council ,30.04.2023,19.04.2023,Communities,Housing & Homelessness & Regulatory Comm,DEFIBSHOP.CO.UK,439.2,0,439.2,Awaiting Coding,"Laboratory, medical & hospital equipment"
Buckinghamshire Council ,30.04.2023,19.04.2023,Children's Services,Education & Childrens Services - CS Dir,UDEMY,-13.32,-2.67,-15.99,Awaiting Coding,"Programming, data processing & system design"
Buckinghamshire Council ,30.04.2023,19.04.2023,Children's Services,Education & Childrens Services - CS Dir,TRAVELODGE GB0862,13,0,13,Awaiting Coding,Travelodge
Buckinghamshire Council ,30.04.2023,19.04.2023,Children's Services,Education & Childrens Services - CS Dir,TRAVELODGE GB0846,13,0,13,Awaiting Coding,Travelodge
Buckinghamshire Council ,30.04.2023,19.04.2023,Deputy Chief Executive,Communities - DCE,PAYPAL,225,0,225,Awaiting Coding,Variety stores
Buckinghamshire Council ,30.04.2023,19.04.2023,Deputy Chief Executive,Communities - DCE,PAYPAL,155,0,155,Awaiting Coding,Variety stores
Buckinghamshire Council ,30.04.2023,19.04.2023,Deputy Chief Executive,Communities - DCE,PAYPAL,268.95,0,268.95,Awaiting Coding,Variety stores
Buckinghamshire Council ,30.04.2023,19.04.2023,Deputy Chief Executive,Communities - DCE,PAYPAL,33,0,33,Awaiting Coding,Variety stores
Buckinghamshire Council ,30.04.2023,19.04.2023,Deputy Chief Executive,Communities - DCE,PAYPAL,45.95,0,45.95,Awaiting Coding,Variety stores
Buckinghamshire Council ,30.04.2023,19.04.2023,Deputy Chief Executive,AH&R- DCE Dir,PAYPAL,448.29,89.66,537.95,Awaiting Coding,Variety stores
Buckinghamshire Council ,30.04.2023,19.04.2023,Deputy Chief Executive,AH&R- DCE Dir,PAYPAL,981.6,196.32,"1,177.92",Awaiting Coding,Variety stores
Buckinghamshire Council ,30.04.2023,19.04.2023,Deputy Chief Executive,AH&R- DCE Dir,PAYPAL,0.03,0,0.03,Awaiting Coding,Variety stores
Buckinghamshire Council ,30.04.2023,19.04.2023,Deputy Chief Executive,AH&R- DCE Dir,PAYPAL,341.65,68.33,409.98,Awaiting Coding,Variety stores
Buckinghamshire Council ,30.04.2023,19.04.2023,Deputy Chief Executive,AH&R- DCE Dir,PAYPAL,0.02,0,0.02,Awaiting Coding,Variety stores
Buckinghamshire Council ,30.04.2023,19.04.2023,Deputy Chief Executive,AH&R- DCE Dir,PAYPAL,"1,152.90",230.58,"1,383.48",Awaiting Coding,Variety stores
Buckinghamshire Council ,30.04.2023,19.04.2023,Deputy Chief Executive,AH&R- DCE Dir,PAYPAL,0.01,0,0.01,Awaiting Coding,Variety stores
Buckinghamshire Council ,30.04.2023,19.04.2023,"Planning, Growth & Sustainability",Housing & Homelessness & Regulatory PGS,,"-15,810.18",0,0,Awaiting Coding,Missing merchant category
Buckinghamshire Council ,30.04.2023,18.04.2023,Adults and Health,Health & Wellbeing - Adults & Health Dir,SAINSBURYS S/MKTS,6.25,0,6.25,Awaiting Coding,Grocery stores
Buckinghamshire Council ,30.04.2023,18.04.2023,Adults and Health,Health & Wellbeing - Adults & Health Dir,MENTIMETER BASIC,143.92,0,143.92,Awaiting Coding,Computer software stores
Buckinghamshire Council ,30.04.2023,18.04.2023,Deputy Chief Executive,Communities - DCE,AO RETAIL LIMITED,224.15,44.83,268.98,Awaiting Coding,Household appliance stores
Buckinghamshire Council ,30.04.2023,18.04.2023,Deputy Chief Executive,Communities - DCE,AO RETAIL LIMITED,0.02,0,0.02,Awaiting Coding,Household appliance stores
Buckinghamshire Council ,30.04.2023,18.04.2023,Deputy Chief Executive,Communities - DCE,AO RETAIL LIMITED,469.1,93.82,562.92,Awaiting Coding,Household appliance stores
Buckinghamshire Council ,30.04.2023,18.04.2023,Deputy Chief Executive,Communities - DCE,AO RETAIL LIMITED,0.08,0,0.08,Awaiting Coding,Household appliance stores
Buckinghamshire Council ,30.04.2023,18.04.2023,Deputy Chief Executive,Communities - DCE,AO RETAIL LIMITED,253.3,50.66,303.96,Awaiting Coding,Household appliance stores
Buckinghamshire Council ,30.04.2023,18.04.2023,Deputy Chief Executive,Communities - DCE,AO RETAIL LIMITED,0.04,0,0.04,Awaiting Coding,Household appliance stores
Buckinghamshire Council ,30.04.2023,18.04.2023,Deputy Chief Executive,Communities - DCE,AO RETAIL LIMITED,270,54,324,Awaiting Coding,Household appliance stores
Buckinghamshire Council ,30.04.2023,18.04.2023,Deputy Chief Executive,Communities - DCE,HARRINGTONS OF READING,78,0,78,Awaiting Coding,Fuel dealers
Buckinghamshire Council ,30.04.2023,18.04.2023,Deputy Chief Executive,Communities - DCE,WWW.ARGOS.CO.UK,254.1,50.82,304.92,Awaiting Coding,Department stores
Buckinghamshire Council ,30.04.2023,18.04.2023,Deputy Chief Executive,Communities - DCE,WWW.ARGOS.CO.UK,0.03,0,0.03,Awaiting Coding,Department stores
Buckinghamshire Council ,30.04.2023,18.04.2023,Deputy Chief Executive,Communities - DCE,WWW.ARGOS.CO.UK,209.1,41.82,250.92,Awaiting Coding,Department stores
Buckinghamshire Council ,30.04.2023,18.04.2023,Deputy Chief Executive,Communities - DCE,WWW.ARGOS.CO.UK,0.03,0,0.03,Awaiting Coding,Department stores
Buckinghamshire Council ,30.04.2023,18.04.2023,Children's Services,Education & Childrens Services - CS Dir,TESCO GIFT CARD,80,0,80,Awaiting Coding,Grocery stores
Buckinghamshire Council ,30.04.2023,18.04.2023,Deputy Chief Executive,Leader - DCE,NAPIER PARKING LTD TRA,10,0,10,Awaiting Coding,Car parking & garages
Buckinghamshire Council ,30.04.2023,18.04.2023,Deputy Chief Executive,Leader - DCE,SUMUP  *ROAST AND GREENS,18,0,18,Awaiting Coding,Restaurants
Buckinghamshire Council ,30.04.2023,18.04.2023,Deputy Chief Executive,Leader - DCE,ALLEN & OVERY (SEARCYS,4.2,0,4.2,Awaiting Coding,Caterers
Buckinghamshire Council ,30.04.2023,18.04.2023,Children's Services,Education & Childrens Services - CS Dir,EASYJET,154.98,0,154.98,Awaiting Coding,Easyjet
Buckinghamshire Council ,30.04.2023,18.04.2023,Children's Services,Education & Childrens Services - CS Dir,CURRYS BUSINESS,997.1,199.42,"1,196.52",Awaiting Coding,Computer software stores
Buckinghamshire Council ,30.04.2023,18.04.2023,Deputy Chief Executive,Communities - DCE,AO RETAIL LIMITED,502.5,100.5,603,Awaiting Coding,Household appliance stores
Buckinghamshire Council ,30.04.2023,18.04.2023,Deputy Chief Executive,Communities - DCE,WWW.ARGOS.CO.UK,276.95,0,276.95,Awaiting Coding,Department stores
Buckinghamshire Council ,30.04.2023,18.04.2023,Deputy Chief Executive,Communities - DCE,BED CARE LTD,249,0,249,Awaiting Coding,Furniture & home furnishing
Buckinghamshire Council ,30.04.2023,18.04.2023,Communities,Culture & Leisure - Communities Dir,AMZNMKTPLACE,43.28,0,43.28,Awaiting Coding,Miscellaneous retail
Buckinghamshire Council ,30.04.2023,18.04.2023,Communities,Housing & Homelessness & Regulatory Comm,SCREWFIX DIR LTD,45.99,0,45.99,Awaiting Coding,Timber & building supplies
Buckinghamshire Council ,30.04.2023,18.04.2023,"Planning, Growth & Sustainability",AH&R - PGS Dir,ONBUY.COM,18.2,0,18.2,Awaiting Coding,
Buckinghamshire Council ,30.04.2023,18.04.2023,"Planning, Growth & Sustainability",AH&R - PGS Dir,HALFORDS 0529,19.98,0,19.98,Awaiting Coding,"Bicycle shops, sales & service"
Buckinghamshire Council ,30.04.2023,18.04.2023,"Planning, Growth & Sustainability",AH&R - PGS Dir,HYGIENIC PLASTIC SUPPL,53.13,0,53.13,Awaiting Coding,Hardware Equipment & Suppliers
Buckinghamshire Council ,30.04.2023,18.04.2023,Communities,Culture & Leisure - Communities Dir,SP LGREENPSHOP,196.42,0,196.42,Awaiting Coding,Computer software stores
Buckinghamshire Council ,30.04.2023,18.04.2023,Children's Services,Education & Childrens Services - CS Dir,AMZNMKTPLACE,45.97,0,45.97,Awaiting Coding,Miscellaneous retail
Buckinghamshire Council ,30.04.2023,18.04.2023,Resources,AH&R - Res Dir,VOUCHER EXPRESS,100,0,100,Awaiting Coding,Misc business services
Buckinghamshire Council ,30.04.2023,18.04.2023,Communities,Climate Change & Environment - Community,WORLD OF MOWERS,21.3,0,21.3,Awaiting Coding,Lawn & garden supply/nursery
Buckinghamshire Council ,30.04.2023,18.04.2023,Communities,Climate Change & Environment - Community,WWW.PITCHCARE.COM,119.6,0,119.6,Awaiting Coding,Lawn & garden supply/nursery
Buckinghamshire Council ,30.04.2023,18.04.2023,Deputy Chief Executive,Communities - DCE,THE WORKS,1,0,1,Awaiting Coding,Discount stores
Buckinghamshire Council ,30.04.2023,18.04.2023,Children's Services,Education & Childrens Services - CS Dir,BUCKINGHAMSHIRE CNCL,11,0,11,Awaiting Coding,Government services
Buckinghamshire Council ,30.04.2023,18.04.2023,Children's Services,Education & Childrens Services - CS Dir,Amazon.co.uk,26.47,0,26.47,Awaiting Coding,Direct sales companies
Buckinghamshire Council ,30.04.2023,18.04.2023,Children's Services,Education & Childrens Services - CS Dir,B&M 426 - HS AYLESBURY,19.44,0,19.44,Awaiting Coding,Misc. general merchandise
Buckinghamshire Council ,30.04.2023,18.04.2023,Children's Services,Education & Childrens Services - CS Dir,FREEDOM PROGRAMME LIMITED,12,0,12,Awaiting Coding,Schools
Buckinghamshire Council ,30.04.2023,18.04.2023,Communities,Culture & Leisure - Communities Dir,HALFORDS 0529,29.15,5.83,34.98,Awaiting Coding,"Bicycle shops, sales & service"
Buckinghamshire Council ,30.04.2023,18.04.2023,Communities,Culture & Leisure - Communities Dir,EURO CAR PARTS P,32,6.4,38.4,Awaiting Coding,Automotive parts & accessories
Buckinghamshire Council ,30.04.2023,18.04.2023,"Planning, Growth & Sustainability",AH&R - PGS Dir,687 - WILMINGTON,8.25,0,8.25,Awaiting Coding,Misc. general merchandise
Buckinghamshire Council ,30.04.2023,18.04.2023,"Planning, Growth & Sustainability",AH&R - PGS Dir,ICELAND,1.55,0,1.55,Awaiting Coding,Grocery stores
Buckinghamshire Council ,30.04.2023,18.04.2023,"Planning, Growth & Sustainability",AH&R - PGS Dir,SP CUPSDIRECT.CO.UK,146.58,0,146.58,Awaiting Coding,Miscellaneous retail
Buckinghamshire Council ,30.04.2023,18.04.2023,"Planning, Growth & Sustainability",Climate Change & Environment - PGS,AMZNMKTPLACE,99.66,19.94,119.6,Awaiting Coding,Miscellaneous retail
Buckinghamshire Council ,30.04.2023,18.04.2023,Resources,AH&R - Res Dir,GMO GLOBALSIGN LIM,226.8,0,226.8,Awaiting Coding,Computer network information services
Buckinghamshire Council ,30.04.2023,18.04.2023,Children's Services,Education & Childrens Services - CS Dir,ASDA  STORES 4396,6,0,6,Awaiting Coding,Grocery stores
Buckinghamshire Council ,30.04.2023,18.04.2023,Resources,AH&R - Res Dir,C2E850900999B UKVI,"3,199.00",0,"3,199.00",Awaiting Coding,Government services
Buckinghamshire Council ,30.04.2023,18.04.2023,Children's Services,Education & Childrens Services - CS Dir,JUST BAGUETTES,296,0,296,Awaiting Coding,Fast food restaurants
Buckinghamshire Council ,30.04.2023,18.04.2023,Children's Services,Education & Childrens Services - CS Dir,TESCO STORES 2038,13.24,0,13.24,Awaiting Coding,Grocery stores
Buckinghamshire Council ,30.04.2023,18.04.2023,Children's Services,Education & Childrens Services - CS Dir,TRAINLINE,76.84,0,76.84,Awaiting Coding,Passenger railways
Buckinghamshire Council ,30.04.2023,18.04.2023,Deputy Chief Executive,AH&R- DCE Dir,MOONPIG,4.99,0,4.99,Awaiting Coding,Misc. general merchandise
Buckinghamshire Council ,30.04.2023,18.04.2023,Deputy Chief Executive,AH&R- DCE Dir,TAXIPAY,59.5,0,59.5,Awaiting Coding,Taxicabs & limousines
Buckinghamshire Council ,30.04.2023,18.04.2023,Children's Services,Education & Childrens Services - CS Dir,NYX*RANGEBALL UK LTD,9,0,9,Awaiting Coding,Fast food restaurants
Buckinghamshire Council ,30.04.2023,18.04.2023,"Planning, Growth & Sustainability",Housing & Homelessness & Regulatory PGS,AMZNMKTPLACE,26.81,0,26.81,Awaiting Coding,Miscellaneous retail
Buckinghamshire Council ,30.04.2023,18.04.2023,"Planning, Growth & Sustainability",Housing & Homelessness & Regulatory PGS,THE WINDOW FILM COMPANY U,354.85,0,354.85,Awaiting Coding,Drapery & upholstery shops
Buckinghamshire Council ,30.04.2023,18.04.2023,Children's Services,Education & Childrens Services - CS Dir,NEW YORK DELI (AYLESBURY),4.33,0.87,5.2,Awaiting Coding,Restaurants
Buckinghamshire Council ,30.04.2023,18.04.2023,Children's Services,Education & Childrens Services - CS Dir,AMZNMKTPLACE,92.91,0,92.91,Awaiting Coding,Miscellaneous retail
Buckinghamshire Council ,30.04.2023,18.04.2023,Children's Services,Education & Childrens Services - CS Dir,NEALES TAXIS LTD,253.2,0,253.2,Awaiting Coding,Taxicabs & limousines
Buckinghamshire Council ,30.04.2023,18.04.2023,Children's Services,Education & Childrens Services - CS Dir,LAZAAT HOTEL,85,0,85,Awaiting Coding,"Hotels, motels & resorts"
Buckinghamshire Council ,30.04.2023,18.04.2023,Children's Services,Education & Childrens Services - CS Dir,PREMIER INN,14.55,0,14.55,Awaiting Coding,Premier Inn
Buckinghamshire Council ,30.04.2023,18.04.2023,Deputy Chief Executive,Communities - DCE,PAYPAL,332.95,0,332.95,Awaiting Coding,Variety stores
Buckinghamshire Council ,30.04.2023,18.04.2023,Deputy Chief Executive,Communities - DCE,PAYPAL,47,0,47,Awaiting Coding,Variety stores
Buckinghamshire Council ,30.04.2023,18.04.2023,"Planning, Growth & Sustainability",Climate Change & Environment - PGS,AMZNMKTPLACE,45.4,9.08,54.48,Awaiting Coding,Miscellaneous retail
Buckinghamshire Council ,30.04.2023,17.04.2023,Children's Services,Education & Childrens Services - CS Dir,CANVA* 03758-16143562,22.99,0,22.99,Awaiting Coding,"Commercial photo, art & graphic"
Buckinghamshire Council ,30.04.2023,17.04.2023,Children's Services,Education & Childrens Services - CS Dir,PREMIER INN,12,0,12,Awaiting Coding,Premier Inn
Buckinghamshire Council ,30.04.2023,17.04.2023,Children's Services,Education & Childrens Services - CS Dir,PAYPAL,83.1,0,83.1,Awaiting Coding,Schools
Buckinghamshire Council ,30.04.2023,17.04.2023,Children's Services,Education & Childrens Services - CS Dir,PAYPAL,83.1,0,83.1,Awaiting Coding,Schools
Buckinghamshire Council ,30.04.2023,17.04.2023,Children's Services,Education & Childrens Services - CS Dir,PAYPAL,83.1,0,83.1,Awaiting Coding,Schools
Buckinghamshire Council ,30.04.2023,17.04.2023,Children's Services,Education & Childrens Services - CS Dir,VOUCHER EXPRESS,100,0,100,Awaiting Coding,Misc business services
Buckinghamshire Council ,30.04.2023,17.04.2023,Deputy Chief Executive,Communities - DCE,AO RETAIL LIMITED,825.83,165.17,991,Awaiting Coding,Household appliance stores
Buckinghamshire Council ,30.04.2023,17.04.2023,Deputy Chief Executive,Communities - DCE,AO RETAIL LIMITED,324.16,64.84,389,Awaiting Coding,Household appliance stores
Buckinghamshire Council ,30.04.2023,17.04.2023,Deputy Chief Executive,Communities - DCE,WWW.ARGOS.CO.UK,277.45,55.49,332.94,Awaiting Coding,Department stores
Buckinghamshire Council ,30.04.2023,17.04.2023,Deputy Chief Executive,Communities - DCE,WWW.ARGOS.CO.UK,0.01,0,0.01,Awaiting Coding,Department stores
Buckinghamshire Council ,30.04.2023,17.04.2023,Deputy Chief Executive,Communities - DCE,WWW.ARGOS.CO.UK,42.45,8.49,50.94,Awaiting Coding,Department stores
Buckinghamshire Council ,30.04.2023,17.04.2023,Deputy Chief Executive,Communities - DCE,WWW.ARGOS.CO.UK,0.01,0,0.01,Awaiting Coding,Department stores
Buckinghamshire Council ,30.04.2023,17.04.2023,Deputy Chief Executive,Communities - DCE,WWW.ARGOS.CO.UK,154.95,30.99,185.94,Awaiting Coding,Department stores
Buckinghamshire Council ,30.04.2023,17.04.2023,Deputy Chief Executive,Communities - DCE,WWW.ARGOS.CO.UK,0.01,0,0.01,Awaiting Coding,Department stores
Buckinghamshire Council ,30.04.2023,17.04.2023,Deputy Chief Executive,Communities - DCE,WWW.ARGOS.CO.UK,309.12,61.83,370.95,Awaiting Coding,Department stores
Buckinghamshire Council ,30.04.2023,17.04.2023,Deputy Chief Executive,Communities - DCE,WWW.ARGOS.CO.UK,144.95,28.99,173.94,Awaiting Coding,Department stores
Buckinghamshire Council ,30.04.2023,17.04.2023,Deputy Chief Executive,Communities - DCE,WWW.ARGOS.CO.UK,0.01,0,0.01,Awaiting Coding,Department stores
Buckinghamshire Council ,30.04.2023,17.04.2023,Deputy Chief Executive,Communities - DCE,FLOGAS BRITAIN LIMITED,99.35,0,99.35,Awaiting Coding,Fuel dealers
Buckinghamshire Council ,30.04.2023,17.04.2023,Deputy Chief Executive,Communities - DCE,AO RETAIL LIMITED,531.65,106.33,637.98,Awaiting Coding,Household appliance stores
Buckinghamshire Council ,30.04.2023,17.04.2023,Deputy Chief Executive,Communities - DCE,AO RETAIL LIMITED,0.02,0,0.02,Awaiting Coding,Household appliance stores
Buckinghamshire Council ,30.04.2023,17.04.2023,Deputy Chief Executive,Communities - DCE,AO RETAIL LIMITED,366.66,73.34,440,Awaiting Coding,Household appliance stores
Buckinghamshire Council ,30.04.2023,17.04.2023,Resources,AH&R - Res Dir,WWW.AAT-ORG.UK,240,0,240,Awaiting Coding,Accountants & auditors
Buckinghamshire Council ,30.04.2023,17.04.2023,Children's Services,Education & Childrens Services - CS Dir,UNILINK SOFTWARE LTD,10,0,10,Awaiting Coding,Computer software stores
Buckinghamshire Council ,30.04.2023,17.04.2023,Children's Services,Education & Childrens Services - CS Dir,WWW.BUCKINGHAMSHIRE.GOV,268.93,0,268.93,Awaiting Coding,Government services
Buckinghamshire Council ,30.04.2023,17.04.2023,Children's Services,Education & Childrens Services - CS Dir,AMZNMKTPLACE,45.92,0,45.92,Awaiting Coding,Miscellaneous retail
Buckinghamshire Council ,30.04.2023,17.04.2023,Children's Services,Education & Childrens Services - CS Dir,AMZNMKTPLACE,69.17,0,69.17,Awaiting Coding,Miscellaneous retail
Buckinghamshire Council ,30.04.2023,17.04.2023,"Planning, Growth & Sustainability",Climate Change & Environment - PGS,TRAINLINE,98.58,0,98.58,Awaiting Coding,Passenger railways
Buckinghamshire Council ,30.04.2023,17.04.2023,"Planning, Growth & Sustainability",Climate Change & Environment - PGS,TRAINLINE,69.15,0,69.15,Awaiting Coding,Passenger railways
Buckinghamshire Council ,30.04.2023,17.04.2023,"Planning, Growth & Sustainability",Climate Change & Environment - PGS,TRAINLINE,104.49,0,104.49,Awaiting Coding,Passenger railways
Buckinghamshire Council ,30.04.2023,17.04.2023,Children's Services,Education & Childrens Services - CS Dir,AMZNMKTPLACE,70.78,14.16,84.94,Awaiting Coding,Miscellaneous retail
Buckinghamshire Council ,30.04.2023,17.04.2023,Communities,Climate Change & Environment - Community,HALFORDS E.COMM,777,0,777,Awaiting Coding,Automotive parts & accessories
Buckinghamshire Council ,30.04.2023,17.04.2023,Communities,Climate Change & Environment - Community,HALFORDS E.COMM,815,0,815,Awaiting Coding,Automotive parts & accessories
Buckinghamshire Council ,30.04.2023,17.04.2023,"Planning, Growth & Sustainability",AH&R - PGS Dir,SCREWFIX DIR LTD,14.38,0,14.38,Awaiting Coding,Timber & building supplies
Buckinghamshire Council ,30.04.2023,17.04.2023,Deputy Chief Executive,Communities - DCE,WWW.ARGOS.CO.UK,-262.95,0,-262.95,Awaiting Coding,Department stores
Buckinghamshire Council ,30.04.2023,17.04.2023,"Planning, Growth & Sustainability",Housing & Homelessness & Regulatory PGS,LAND REGISTRY ECOM CCC,3,0,3,Awaiting Coding,Government services
Buckinghamshire Council ,30.04.2023,17.04.2023,Resources,AH&R - Res Dir,ROYAL MAIL GROUP LTD,15.45,0,15.45,Awaiting Coding,Postal services
Buckinghamshire Council ,30.04.2023,17.04.2023,Resources,AH&R - Res Dir,ROYAL MAIL GROUP LTD,15.45,0,15.45,Awaiting Coding,Postal services
Buckinghamshire Council ,30.04.2023,17.04.2023,Communities,artnerships - Communities,SAINSBURY S S/MKTS,13.2,0,13.2,Awaiting Coding,Grocery stores
Buckinghamshire Council ,30.04.2023,17.04.2023,Communities,artnerships - Communities,WWW.BUCKINGHAMSHIRE.GOV,186.8,0,186.8,Awaiting Coding,Government services
Buckinghamshire Council ,30.04.2023,17.04.2023,Communities,artnerships - Communities,AMZNMktplace,27.97,0,27.97,Awaiting Coding,Miscellaneous retail
Buckinghamshire Council ,30.04.2023,17.04.2023,"Planning, Growth & Sustainability",AH&R - PGS Dir,EDMUNDSON ELECTRICAL,121.9,0,121.9,Awaiting Coding,Electrical parts & equipment
Buckinghamshire Council ,30.04.2023,17.04.2023,Deputy Chief Executive,AH&R- DCE Dir,SEQUENCE  UK  LTD RE CONN,405,0,405,Awaiting Coding,Estate Agents & Property Management
Buckinghamshire Council ,30.04.2023,17.04.2023,Children's Services,Education & Childrens Services - CS Dir,AMZNMKTPLACE,37.99,0,37.99,Awaiting Coding,Miscellaneous retail
Buckinghamshire Council ,30.04.2023,17.04.2023,Communities,Climate Change & Environment - Community,DVLA DRIVERS TACHOGRAPH W,32,0,32,Awaiting Coding,Government services
Buckinghamshire Council ,30.04.2023,17.04.2023,Communities,Transport - Communities Dir,VIKING OFFICE UK LIMIT,52.31,13.08,65.39,Awaiting Coding,Stationery & office supplies
Buckinghamshire Council ,30.04.2023,17.04.2023,Children's Services,Education & Childrens Services - CS Dir,AMAZON.CO.UK,538.13,0,538.13,Awaiting Coding,Direct sales companies
Buckinghamshire Council ,30.04.2023,17.04.2023,Children's Services,Education & Childrens Services - CS Dir,AMZNMKTPLACE,392.48,0,392.48,Awaiting Coding,Miscellaneous retail
Buckinghamshire Council ,30.04.2023,17.04.2023,Children's Services,Education & Childrens Services - CS Dir,AMZNMKTPLACE,389.5,0,389.5,Awaiting Coding,Miscellaneous retail
Buckinghamshire Council ,30.04.2023,17.04.2023,Children's Services,Education & Childrens Services - CS Dir,AMZNMKTPLACE,15.96,0,15.96,Awaiting Coding,Miscellaneous retail
Buckinghamshire Council ,30.04.2023,17.04.2023,Children's Services,Education & Childrens Services - CS Dir,AMZ*CLICK PLUS,-15.96,0,-15.96,Awaiting Coding,Miscellaneous retail
Buckinghamshire Council ,30.04.2023,17.04.2023,Adults and Health,Health & Wellbeing - Adults & Health Dir,WICKES CHESHAM,20,0,20,Awaiting Coding,Timber & building supplies
Buckinghamshire Council ,30.04.2023,17.04.2023,Children's Services,Education & Childrens Services - CS Dir,AMZNMktplace,19.91,0,19.91,Awaiting Coding,Miscellaneous retail
Buckinghamshire Council ,30.04.2023,17.04.2023,Children's Services,Education & Childrens Services - CS Dir,PAYPAL,757.05,0,757.05,Awaiting Coding,"Hotels, motels & resorts"
Buckinghamshire Council ,30.04.2023,17.04.2023,"Planning, Growth & Sustainability",Climate Change & Environment - PGS,SCREWFIX DIRECT,886.33,177.27,"1,063.60",Awaiting Coding,Timber & building supplies
Buckinghamshire Council ,30.04.2023,17.04.2023,Resources,AH&R - Res Dir,PAYPAL,12,0,12,Awaiting Coding,Computer network information services
Buckinghamshire Council ,30.04.2023,17.04.2023,Deputy Chief Executive,AH&R- DCE Dir,AMZNMKTPLACE,26.23,0,26.23,Awaiting Coding,Miscellaneous retail
Buckinghamshire Council ,30.04.2023,17.04.2023,Children's Services,Education & Childrens Services - CS Dir,TRAINLINE,10.07,0,10.07,Awaiting Coding,Passenger railways
Buckinghamshire Council ,30.04.2023,17.04.2023,Children's Services,Education & Childrens Services - CS Dir,TRAINLINE.COM,10.07,0,10.07,Awaiting Coding,Passenger railways
Buckinghamshire Council ,30.04.2023,17.04.2023,Children's Services,Education & Childrens Services - CS Dir,BT BUSINESS BILL,"1,557.62",0,"1,557.62",Awaiting Coding,Phone services
Buckinghamshire Council ,30.04.2023,17.04.2023,Children's Services,Education & Childrens Services - CS Dir,TRAINLINE.COM,-2.1,0,-2.1,Awaiting Coding,Passenger railways
Buckinghamshire Council ,30.04.2023,17.04.2023,Children's Services,Education & Childrens Services - CS Dir,OSPREY CHARGING NETWOR,24.68,0,24.68,Awaiting Coding,
Buckinghamshire Council ,30.04.2023,17.04.2023,Children's Services,Education & Childrens Services - CS Dir,TAXIPAY,100,0,100,Awaiting Coding,Taxicabs & limousines
Buckinghamshire Council ,30.04.2023,17.04.2023,Communities,ommunities - Trust Accounts,B & Q 1262,93,0,93,Awaiting Coding,Home supply warehouse stores
Buckinghamshire Council ,30.04.2023,17.04.2023,Deputy Chief Executive,AH&R- DCE Dir,TAXIPAY,75,0,75,Awaiting Coding,Taxicabs & limousines
Buckinghamshire Council ,30.04.2023,17.04.2023,Deputy Chief Executive,AH&R- DCE Dir,TAXIPAY,100,0,100,Awaiting Coding,Taxicabs & limousines
Buckinghamshire Council ,30.04.2023,17.04.2023,Communities,Climate Change & Environment - Community,JUST BAGUETTES,288,0,288,Awaiting Coding,Fast food restaurants
Buckinghamshire Council ,30.04.2023,17.04.2023,Adults and Health,Health & Wellbeing - Adults & Health Dir,AMZNMktplace,69.41,0,69.41,Awaiting Coding,Miscellaneous retail
Buckinghamshire Council ,30.04.2023,17.04.2023,Adults and Health,Health & Wellbeing - Adults & Health Dir,TESCO STORES 5135,87.21,0,87.21,Awaiting Coding,Grocery stores
Buckinghamshire Council ,30.04.2023,17.04.2023,Adults and Health,Health & Wellbeing - Adults & Health Dir,ASDA  STORES 4396,3.1,0,3.1,Awaiting Coding,Grocery stores
Buckinghamshire Council ,30.04.2023,17.04.2023,Children's Services,Education & Childrens Services - CS Dir,FREEDOM PROGRAMME LIMITED,12,0,12,Awaiting Coding,Schools
Buckinghamshire Council ,30.04.2023,17.04.2023,Children's Services,Education & Childrens Services - CS Dir,FREEDOM PROGRAMME LIMITED,12,0,12,Awaiting Coding,Schools
Buckinghamshire Council ,30.04.2023,17.04.2023,Children's Services,Education & Childrens Services - CS Dir,FREEDOM PROGRAMME LIMITED,12,0,12,Awaiting Coding,Schools
Buckinghamshire Council ,30.04.2023,17.04.2023,Children's Services,Education & Childrens Services - CS Dir,TRAINLINE,-2.1,0,-2.1,Awaiting Coding,Passenger railways
Buckinghamshire Council ,30.04.2023,16.04.2023,Children's Services,Education & Childrens Services - CS Dir,AMZNMKTPLACE,14.99,0,14.99,Awaiting Coding,Miscellaneous retail
Buckinghamshire Council ,30.04.2023,16.04.2023,Children's Services,Education & Childrens Services - CS Dir,LEBARA MOBILE LIMITED,25,0,25,Awaiting Coding,Phone services
Buckinghamshire Council ,30.04.2023,16.04.2023,Communities,Climate Change & Environment - Community,TWITTER ONLINE ADS,10,0,10,Awaiting Coding,Advertising services
Buckinghamshire Council ,30.04.2023,16.04.2023,Children's Services,Education & Childrens Services - CS Dir,AMZNMKTPLACE,538.9,0,538.9,Awaiting Coding,Miscellaneous retail
Buckinghamshire Council ,30.04.2023,16.04.2023,Resources,AH&R - Res Dir,FACEBK *PKKF6PK4X2,97.77,0,97.77,Awaiting Coding,Advertising services
Buckinghamshire Council ,30.04.2023,16.04.2023,Communities,Climate Change & Environment - Community,ROADWARRIOR,8.31,0,8.31,Awaiting Coding,"Programming, data processing & system design"
Buckinghamshire Council ,30.04.2023,16.04.2023,Communities,Climate Change & Environment - Community,ROADWARRIOR,8.31,0,8.31,Awaiting Coding,"Programming, data processing & system design"
Buckinghamshire Council ,30.04.2023,16.04.2023,Children's Services,Education & Childrens Services - CS Dir,SAINSBURY S S/MKTS,15,0,15,Awaiting Coding,Grocery stores
Buckinghamshire Council ,30.04.2023,16.04.2023,Children's Services,Education & Childrens Services - CS Dir,SAINSBURY S S/MKTS,57.5,0,57.5,Awaiting Coding,Grocery stores
Buckinghamshire Council ,30.04.2023,16.04.2023,Children's Services,Education & Childrens Services - CS Dir,PREMIER INN,11,0,11,Awaiting Coding,Premier Inn
Buckinghamshire Council ,30.04.2023,15.04.2023,Communities,Culture & Leisure - Communities Dir,SAINSBURYS S/MKTS,3,0,3,Awaiting Coding,Grocery stores
Buckinghamshire Council ,30.04.2023,15.04.2023,Communities,Culture & Leisure - Communities Dir,WILKO.COM,16.95,0,16.95,Awaiting Coding,Misc. general merchandise
Buckinghamshire Council ,30.04.2023,15.04.2023,"Planning, Growth & Sustainability",Planning & Regeneration - PGS,TEXTANYWHERE,54,0,54,Awaiting Coding,Computer software stores
Buckinghamshire Council ,30.04.2023,15.04.2023,Communities,Culture & Leisure - Communities Dir,AMZNMKTPLACE,208.32,41.67,249.99,Awaiting Coding,Miscellaneous retail
Buckinghamshire Council ,30.04.2023,15.04.2023,Communities,Transport - Communities Dir,DB MASTER LOCKSMITH LT,102,0,102,Awaiting Coding,Computer software stores
Buckinghamshire Council ,30.04.2023,15.04.2023,Communities,Culture & Leisure - Communities Dir,WWW.SCREWFIX.COM,124.99,25,149.99,Awaiting Coding,Timber & building supplies
Buckinghamshire Council ,30.04.2023,15.04.2023,Resources,AH&R - Res Dir,NABLE TECHNOLOGIES,179.28,0,179.28,Awaiting Coding,Computer maintenance & repair
Buckinghamshire Council ,30.04.2023,15.04.2023,Children's Services,Education & Childrens Services - CS Dir,PEARSON EDUCATION LTD.,43.88,0,43.88,Awaiting Coding,Schools
Buckinghamshire Council ,30.04.2023,15.04.2023,Resources,AH&R - Res Dir,PAYPAL,8.4,0,8.4,Awaiting Coding,Computer network information services
Buckinghamshire Council ,30.04.2023,15.04.2023,Children's Services,Education & Childrens Services - CS Dir,AMZNMKTPLACE,24.94,0,24.94,Awaiting Coding,Miscellaneous retail
Buckinghamshire Council ,30.04.2023,14.04.2023,Children's Services,Education & Childrens Services - CS Dir,AMZNMKTPLACE,9.99,0,9.99,Awaiting Coding,Miscellaneous retail
Buckinghamshire Council ,30.04.2023,14.04.2023,Children's Services,Education & Childrens Services - CS Dir,AMZNMKTPLACE,482.12,0,482.12,Awaiting Coding,Miscellaneous retail
Buckinghamshire Council ,30.04.2023,14.04.2023,Children's Services,Education & Childrens Services - CS Dir,AMZNMKTPLACE,437.45,0,437.45,Awaiting Coding,Miscellaneous retail
Buckinghamshire Council ,30.04.2023,14.04.2023,Children's Services,Education & Childrens Services - CS Dir,AMAZON.CO.UK,207.44,0,207.44,Awaiting Coding,Direct sales companies
Buckinghamshire Council ,30.04.2023,14.04.2023,Communities,Climate Change & Environment - Community,AMZNMktplace,91.18,0,91.18,Awaiting Coding,Miscellaneous retail
Buckinghamshire Council ,30.04.2023,14.04.2023,Children's Services,Education & Childrens Services - CS Dir,YELLOW CARS HW LTD,75,0,75,Awaiting Coding,Taxicabs & limousines
Buckinghamshire Council ,30.04.2023,14.04.2023,Deputy Chief Executive,Communities - DCE,AO RETAIL LIMITED,278,0,278,Awaiting Coding,Household appliance stores
Buckinghamshire Council ,30.04.2023,14.04.2023,Deputy Chief Executive,Communities - DCE,AO RETAIL LIMITED,613,0,613,Awaiting Coding,Household appliance stores
Buckinghamshire Council ,30.04.2023,14.04.2023,Deputy Chief Executive,Communities - DCE,WWW.ARGOS.CO.UK,-220,0,-220,Awaiting Coding,Department stores
Buckinghamshire Council ,30.04.2023,14.04.2023,Deputy Chief Executive,Communities - DCE,WWW.ARGOS.CO.UK,-5.95,0,-5.95,Awaiting Coding,Department stores
Buckinghamshire Council ,30.04.2023,14.04.2023,Children's Services,Education & Childrens Services - CS Dir,WWW.ARGOS.CO.UK,21,0,21,Awaiting Coding,Department stores
Buckinghamshire Council ,30.04.2023,14.04.2023,Children's Services,Education & Childrens Services - CS Dir,WWW.BUCKINGHAMSHIRE.GOV,62.14,0,62.14,Awaiting Coding,Government services
Buckinghamshire Council ,30.04.2023,14.04.2023,Children's Services,Education & Childrens Services - CS Dir,TRAINLINE.COM,40.83,0,40.83,Awaiting Coding,Passenger railways
Buckinghamshire Council ,30.04.2023,14.04.2023,Children's Services,Education & Childrens Services - CS Dir,WWW.ARGOS.CO.UK,37,0,37,Awaiting Coding,Department stores
Buckinghamshire Council ,30.04.2023,14.04.2023,Children's Services,Education & Childrens Services - CS Dir,AMAZON PRIME,8.99,0,8.99,Awaiting Coding,Continuous subscriptions
Buckinghamshire Council ,30.04.2023,14.04.2023,Children's Services,Education & Childrens Services - CS Dir,SYMBOLS WORLDWIDE LTD,41.4,0,41.4,Awaiting Coding,Computer software stores
Buckinghamshire Council ,30.04.2023,14.04.2023,"Planning, Growth & Sustainability",AH&R - PGS Dir,ISAAC LORD LIMITED,34.6,0,34.6,Awaiting Coding,Hardware stores
Buckinghamshire Council ,30.04.2023,14.04.2023,Deputy Chief Executive,Communities - DCE,AO RETAIL LIMITED,640.83,128.17,769,Awaiting Coding,Household appliance stores
Buckinghamshire Council ,30.04.2023,14.04.2023,Deputy Chief Executive,Communities - DCE,WWW.ARGOS.CO.UK,78.29,15.66,93.95,Awaiting Coding,Department stores
Buckinghamshire Council ,30.04.2023,14.04.2023,Deputy Chief Executive,Communities - DCE,AO RETAIL LIMITED,391.66,78.34,470,Awaiting Coding,Household appliance stores
Buckinghamshire Council ,30.04.2023,14.04.2023,Deputy Chief Executive,Communities - DCE,WWW.ARGOS.CO.UK,240.79,48.16,288.95,Awaiting Coding,Department stores
Buckinghamshire Council ,30.04.2023,14.04.2023,Deputy Chief Executive,Communities - DCE,WWW.ARGOS.CO.UK,50.79,10.16,60.95,Awaiting Coding,Department stores
Buckinghamshire Council ,30.04.2023,14.04.2023,Deputy Chief Executive,Communities - DCE,AO RETAIL LIMITED,274.16,54.84,329,Awaiting Coding,Household appliance stores
Buckinghamshire Council ,30.04.2023,14.04.2023,Deputy Chief Executive,Communities - DCE,AO RETAIL LIMITED,278.3,55.66,333.96,Awaiting Coding,Household appliance stores
Buckinghamshire Council ,30.04.2023,14.04.2023,Deputy Chief Executive,Communities - DCE,AO RETAIL LIMITED,0.04,0,0.04,Awaiting Coding,Household appliance stores
Buckinghamshire Council ,30.04.2023,14.04.2023,Deputy Chief Executive,Communities - DCE,AO RETAIL LIMITED,184,0,184,Awaiting Coding,Household appliance stores
Buckinghamshire Council ,30.04.2023,14.04.2023,Deputy Chief Executive,Communities - DCE,AO RETAIL LIMITED,236.65,47.33,283.98,Awaiting Coding,Household appliance stores
Buckinghamshire Council ,30.04.2023,14.04.2023,Deputy Chief Executive,Communities - DCE,AO RETAIL LIMITED,0.02,0,0.02,Awaiting Coding,Household appliance stores
Buckinghamshire Council ,30.04.2023,14.04.2023,Deputy Chief Executive,Communities - DCE,WWW.ARGOS.CO.UK,-12.95,0,-12.95,Awaiting Coding,Department stores
Buckinghamshire Council ,30.04.2023,14.04.2023,Children's Services,Education & Childrens Services - CS Dir,BUCKINGHAM HOTELS,540,0,540,Awaiting Coding,"Hotels, motels & resorts"
Buckinghamshire Council ,30.04.2023,14.04.2023,Children's Services,Education & Childrens Services - CS Dir,BUCKINGHAM HOTELS,"1,350.00",0,"1,350.00",Awaiting Coding,"Hotels, motels & resorts"
Buckinghamshire Council ,30.04.2023,14.04.2023,Communities,Housing & Homelessness & Regulatory Comm,WWW.MEADOWMANIA.CO.UK,129,0,129,Awaiting Coding,Lawn & garden supply/nursery
Buckinghamshire Council ,30.04.2023,14.04.2023,Communities,Transport - Communities Dir,WWW.ARGOS.CO.UK,278.98,0,278.98,Awaiting Coding,Department stores
Buckinghamshire Council ,30.04.2023,14.04.2023,Adults and Health,Health & Wellbeing - Adults & Health Dir,TESCO STORES 5135,194.01,0,194.01,Awaiting Coding,Grocery stores
Buckinghamshire Council ,30.04.2023,14.04.2023,Communities,Housing & Homelessness & Regulatory Comm,HOMEBASE,5.83,1.17,7,Awaiting Coding,Home supply warehouse stores
Buckinghamshire Council ,30.04.2023,14.04.2023,Communities,Housing & Homelessness & Regulatory Comm,B & Q 1124,88.07,17.62,105.69,Awaiting Coding,Home supply warehouse stores
Buckinghamshire Council ,30.04.2023,14.04.2023,Adults and Health,Health & Wellbeing - Adults & Health Dir,SAINSBURYS S/MKTS,59.7,0,59.7,Awaiting Coding,Grocery stores
Buckinghamshire Council ,30.04.2023,14.04.2023,"Planning, Growth & Sustainability",AH&R - PGS Dir,TESCO STORES 2020,13.95,0,13.95,Awaiting Coding,Grocery stores
Buckinghamshire Council ,30.04.2023,14.04.2023,Children's Services,Education & Childrens Services - CS Dir,WWW.ARGOS.CO.UK,141,0,141,Awaiting Coding,Department stores
Buckinghamshire Council ,30.04.2023,14.04.2023,Adults and Health,Health & Wellbeing - Adults & Health Dir,ASDA GROCERIES ONLINE,86.77,0,86.77,Awaiting Coding,Grocery stores
Buckinghamshire Council ,30.04.2023,14.04.2023,Children's Services,Education & Childrens Services - CS Dir,AMZNMKTPLACE,13.99,0,13.99,Awaiting Coding,Miscellaneous retail
Buckinghamshire Council ,30.04.2023,14.04.2023,Adults and Health,Health & Wellbeing - Adults & Health Dir,HOTEL AT BOOKING.COM,312,0,312,Awaiting Coding,"Hotels, motels & resorts"
Buckinghamshire Council ,30.04.2023,14.04.2023,Communities,Culture & Leisure - Communities Dir,B & Q 1305,11.45,2.29,13.74,Awaiting Coding,Home supply warehouse stores
Buckinghamshire Council ,30.04.2023,14.04.2023,Communities,Culture & Leisure - Communities Dir,B & Q 1305,0.01,0,0.01,Awaiting Coding,Home supply warehouse stores
Buckinghamshire Council ,30.04.2023,14.04.2023,Children's Services,Education & Childrens Services - CS Dir,TRAINLINE,24.65,0,24.65,Awaiting Coding,Passenger railways
Buckinghamshire Council ,30.04.2023,14.04.2023,Children's Services,Education & Childrens Services - CS Dir,TRAINLINE,24.65,0,24.65,Awaiting Coding,Passenger railways
Buckinghamshire Council ,30.04.2023,14.04.2023,,,AMZ*LOWENERGYSUPERMARK,"-1,349.75",-269.95,"-1,619.70",Awaiting Coding,Miscellaneous retail
Buckinghamshire Council ,30.04.2023,14.04.2023,Children's Services,Education & Childrens Services - CS Dir,DOMINO S PIZZA,144.64,0,144.64,Awaiting Coding,Restaurants
Buckinghamshire Council ,30.04.2023,14.04.2023,Communities,Culture & Leisure - Communities Dir,POST OFFICE COUNTER,38.25,0,38.25,Awaiting Coding,Postal services
Buckinghamshire Council ,30.04.2023,14.04.2023,Children's Services,Education & Childrens Services - CS Dir,HOME BARGAINS,41.31,0,41.31,Awaiting Coding,Hardware stores
Buckinghamshire Council ,30.04.2023,14.04.2023,,,SPRINGBRIDGE,34.8,0,34.8,Awaiting Coding,Lawn & garden supply/nursery
Buckinghamshire Council ,30.04.2023,14.04.2023,Resources,AH&R - Res Dir,AMZNMKTPLACE,74.49,0,74.49,Awaiting Coding,Miscellaneous retail
Buckinghamshire Council ,30.04.2023,14.04.2023,Resources,AH&R - Res Dir,Mailchimp,50.52,0,50.52,Awaiting Coding,
Buckinghamshire Council ,30.04.2023,14.04.2023,Communities,Culture & Leisure - Communities Dir,AMZNMKTPLACE,14.95,0,14.95,Awaiting Coding,Miscellaneous retail
Buckinghamshire Council ,30.04.2023,14.04.2023,Children's Services,Education & Childrens Services - CS Dir,ARRIVA UK BUS,15.6,0,15.6,Awaiting Coding,"Buses, charter & tour"
Buckinghamshire Council ,30.04.2023,14.04.2023,Communities,Climate Change & Environment - Community,B & Q 1305,9.88,0,9.88,Awaiting Coding,Home supply warehouse stores
Buckinghamshire Council ,30.04.2023,14.04.2023,Children's Services,Education & Childrens Services - CS Dir,DRI*,679.99,0,679.99,Awaiting Coding,Computer software stores
Buckinghamshire Council ,30.04.2023,14.04.2023,Children's Services,Education & Childrens Services - CS Dir,THE OXFORDSHIRE TAXI COMP,435,0,435,Awaiting Coding,Taxicabs & limousines
Buckinghamshire Council ,30.04.2023,14.04.2023,Children's Services,Education & Childrens Services - CS Dir,PREMIER INN,13.29,0,13.29,Awaiting Coding,Premier Inn
Buckinghamshire Council ,30.04.2023,14.04.2023,Communities,Transport - Communities Dir,EPSON STORE UK,732.94,0,732.94,Awaiting Coding,Electronics shops
Buckinghamshire Council ,30.04.2023,13.04.2023,Adults and Health,Health & Wellbeing - Adults & Health Dir,ASDA SUPERSTORE,5.9,0,5.9,Awaiting Coding,Grocery stores
Buckinghamshire Council ,30.04.2023,13.04.2023,Children's Services,Education & Childrens Services - CS Dir,WWW.OVOENERGY.COM,"1,000.00",0,"1,000.00",Awaiting Coding,Utilities
Buckinghamshire Council ,30.04.2023,13.04.2023,Children's Services,Education & Childrens Services - CS Dir,TAXIPAY,116,0,116,Awaiting Coding,Taxicabs & limousines
Buckinghamshire Council ,30.04.2023,13.04.2023,Deputy Chief Executive,Communities - DCE,ARGOS LTD,-110,0,-110,Awaiting Coding,Discount stores
Buckinghamshire Council ,30.04.2023,13.04.2023,Children's Services,Education & Childrens Services - CS Dir,HOTEL AT BOOKING.COM,55,0,55,Awaiting Coding,"Hotels, motels & resorts"
Buckinghamshire Council ,30.04.2023,13.04.2023,Children's Services,Education & Childrens Services - CS Dir,AMZNMKTPLACE,43.99,0,43.99,Awaiting Coding,Miscellaneous retail
Buckinghamshire Council ,30.04.2023,13.04.2023,Children's Services,Education & Childrens Services - CS Dir,GEN REGISTER OFFICE,28,0,28,Awaiting Coding,Government services
Buckinghamshire Council ,30.04.2023,13.04.2023,Deputy Chief Executive,Communities - DCE,AO RETAIL LIMITED,240.83,48.17,289,Awaiting Coding,Household appliance stores
Buckinghamshire Council ,30.04.2023,13.04.2023,Deputy Chief Executive,Communities - DCE,AO RETAIL LIMITED,315.83,63.17,379,Awaiting Coding,Household appliance stores
Buckinghamshire Council ,30.04.2023,13.04.2023,Deputy Chief Executive,Communities - DCE,AO RETAIL LIMITED,120,24,144,Awaiting Coding,Household appliance stores
Buckinghamshire Council ,30.04.2023,13.04.2023,Deputy Chief Executive,Communities - DCE,AO RETAIL LIMITED,320.83,64.17,385,Awaiting Coding,Household appliance stores
Buckinghamshire Council ,30.04.2023,13.04.2023,Deputy Chief Executive,Communities - DCE,WWW.ARGOS.CO.UK,658.95,0,658.95,Awaiting Coding,Department stores
Buckinghamshire Council ,30.04.2023,13.04.2023,Deputy Chief Executive,Communities - DCE,AO RETAIL LIMITED,834.95,166.99,"1,001.94",Awaiting Coding,Household appliance stores
Buckinghamshire Council ,30.04.2023,13.04.2023,Deputy Chief Executive,Communities - DCE,AO RETAIL LIMITED,0.06,0,0.06,Awaiting Coding,Household appliance stores
Buckinghamshire Council ,30.04.2023,13.04.2023,Deputy Chief Executive,Communities - DCE,AO RETAIL LIMITED,843.3,168.66,"1,011.96",Awaiting Coding,Household appliance stores
Buckinghamshire Council ,30.04.2023,13.04.2023,Deputy Chief Executive,Communities - DCE,AO RETAIL LIMITED,0.04,0,0.04,Awaiting Coding,Household appliance stores
Buckinghamshire Council ,30.04.2023,13.04.2023,Deputy Chief Executive,Communities - DCE,AO RETAIL LIMITED,299.15,59.83,358.98,Awaiting Coding,Household appliance stores
Buckinghamshire Council ,30.04.2023,13.04.2023,Deputy Chief Executive,Communities - DCE,AO RETAIL LIMITED,0.02,0,0.02,Awaiting Coding,Household appliance stores
Buckinghamshire Council ,30.04.2023,13.04.2023,Deputy Chief Executive,Communities - DCE,WWW.ARGOS.CO.UK,262.95,0,262.95,Awaiting Coding,Department stores
Buckinghamshire Council ,30.04.2023,13.04.2023,Deputy Chief Executive,Communities - DCE,AO RETAIL LIMITED,211.65,42.33,253.98,Awaiting Coding,Household appliance stores
Buckinghamshire Council ,30.04.2023,13.04.2023,Deputy Chief Executive,Communities - DCE,AO RETAIL LIMITED,0.02,0,0.02,Awaiting Coding,Household appliance stores
Buckinghamshire Council ,30.04.2023,13.04.2023,Deputy Chief Executive,Communities - DCE,WWW.ARGOS.CO.UK,224.1,44.82,268.92,Awaiting Coding,Department stores
Buckinghamshire Council ,30.04.2023,13.04.2023,Deputy Chief Executive,Communities - DCE,WWW.ARGOS.CO.UK,0.03,0,0.03,Awaiting Coding,Department stores
Buckinghamshire Council ,30.04.2023,13.04.2023,Communities,Culture & Leisure - Communities Dir,HSQE LTD,43.2,0,43.2,Awaiting Coding,Schools
Buckinghamshire Council ,30.04.2023,13.04.2023,Adults and Health,Health & Wellbeing - Adults & Health Dir,POUNDLAND LTD - 2492,15.8,0,15.8,Awaiting Coding,Discount stores
Buckinghamshire Council ,30.04.2023,13.04.2023,Adults and Health,Health & Wellbeing - Adults & Health Dir,B&M 426 - HS AYLESBURY,38.3,0,38.3,Awaiting Coding,Misc. general merchandise
Buckinghamshire Council ,30.04.2023,13.04.2023,"Planning, Growth & Sustainability",AH&R - PGS Dir,SJA SUPPLIES MOTO EQUIPME,68.94,0,68.94,Awaiting Coding,Medical & health services
Buckinghamshire Council ,30.04.2023,13.04.2023,"Planning, Growth & Sustainability",AH&R - PGS Dir,SCREWFIX DIR LTD,43.16,0,43.16,Awaiting Coding,Timber & building supplies
Buckinghamshire Council ,30.04.2023,13.04.2023,Children's Services,Education & Childrens Services - CS Dir,TESCO GIFT CARD,100,0,100,Awaiting Coding,Grocery stores
Buckinghamshire Council ,30.04.2023,13.04.2023,"Planning, Growth & Sustainability",Planning & Regeneration - PGS,BPP PROFESSIONAL EDUCATIO,573.6,0,573.6,Awaiting Coding,Colleges & universities
Buckinghamshire Council ,30.04.2023,13.04.2023,Communities,Climate Change & Environment - Community,CARD FACTORY,2.58,0,2.58,Awaiting Coding,"Gift, card & novelty shops"
Buckinghamshire Council ,30.04.2023,13.04.2023,Deputy Chief Executive,Communities - DCE,RINGGO PARKING,1.65,0,1.65,Awaiting Coding,Car parking & garages
Buckinghamshire Council ,30.04.2023,13.04.2023,Adults and Health,Health & Wellbeing - Adults & Health Dir,CO-OPERATIVE FOOD,9.25,0,9.25,Awaiting Coding,Grocery stores
Buckinghamshire Council ,30.04.2023,13.04.2023,Children's Services,Education & Childrens Services - CS Dir,WM MORRISONS STORE,29.43,0,29.43,Awaiting Coding,Grocery stores
Buckinghamshire Council ,30.04.2023,13.04.2023,Children's Services,Education & Childrens Services - CS Dir,AMAZON.CO.UK,89.99,0,89.99,Awaiting Coding,Direct sales companies
Buckinghamshire Council ,30.04.2023,13.04.2023,Deputy Chief Executive,AH&R- DCE Dir,CLOUDFLARE,170.66,0,170.66,Awaiting Coding,Computer software stores
Buckinghamshire Council ,30.04.2023,13.04.2023,"Planning, Growth & Sustainability",AH&R - PGS Dir,VOUCHER EXPRESS,200,0,200,Awaiting Coding,Misc business services
Buckinghamshire Council ,30.04.2023,13.04.2023,Children's Services,Education & Childrens Services - CS Dir,ARGOS LTD,461.99,0,461.99,Awaiting Coding,Discount stores
Buckinghamshire Council ,30.04.2023,13.04.2023,Children's Services,Education & Childrens Services - CS Dir,UNITE STUDENTS,"1,076.00",0,"1,076.00",Awaiting Coding,Professional services
Buckinghamshire Council ,30.04.2023,13.04.2023,Children's Services,Education & Childrens Services - CS Dir,WWW.ARGOS.CO.UK,22,0,22,Awaiting Coding,Department stores
Buckinghamshire Council ,30.04.2023,13.04.2023,Children's Services,Education & Childrens Services - CS Dir,AMAZON.CO.UK,12.99,0,12.99,Awaiting Coding,Direct sales companies
Buckinghamshire Council ,30.04.2023,13.04.2023,Children's Services,Education & Childrens Services - CS Dir,GEN REGISTER OFFICE,14,0,14,Awaiting Coding,Government services
Buckinghamshire Council ,30.04.2023,13.04.2023,Communities,ommunities - Trust Accounts,COSTCO WHOLESALE #102,197.53,0,197.53,Awaiting Coding,Buying & shopping services/clubs
Buckinghamshire Council ,30.04.2023,13.04.2023,Adults and Health,Health & Wellbeing - Adults & Health Dir,BURNHAM BUDGENS,7.84,0,7.84,Awaiting Coding,Dairy produce stores
Buckinghamshire Council ,30.04.2023,13.04.2023,Children's Services,Education & Childrens Services - CS Dir,WICKES BUILDING,220,0,220,Awaiting Coding,Timber & building supplies
Buckinghamshire Council ,30.04.2023,13.04.2023,Children's Services,Education & Childrens Services - CS Dir,WWW.EVERYONEACTIVE.COM,5,0,5,Awaiting Coding,Sport & recreational camps
Buckinghamshire Council ,30.04.2023,13.04.2023,Resources,AH&R - Res Dir,PEMBERLEY BOOKS,97,0,97,Awaiting Coding,Book stores
Buckinghamshire Council ,30.04.2023,13.04.2023,Communities,Climate Change & Environment - Community,JAYNE RICHARDS FLOWERS,35,0,35,Awaiting Coding,Florist supplies & nursery stock
Buckinghamshire Council ,30.04.2023,13.04.2023,Communities,Climate Change & Environment - Community,CARD FACTORY,7.55,0,7.55,Awaiting Coding,"Gift, card & novelty shops"
Buckinghamshire Council ,30.04.2023,13.04.2023,Adults and Health,Health & Wellbeing - Adults & Health Dir,AMZNMKTPLACE,61.55,0,61.55,Awaiting Coding,Miscellaneous retail
Buckinghamshire Council ,30.04.2023,13.04.2023,Children's Services,Education & Childrens Services - CS Dir,TESCO STORES 2041,10.44,0,10.44,Awaiting Coding,Grocery stores
Buckinghamshire Council ,30.04.2023,13.04.2023,Adults and Health,Health & Wellbeing - Adults & Health Dir,HIGH STREET VOUCHERS,404.25,0,404.25,Awaiting Coding,Department stores
Buckinghamshire Council ,30.04.2023,13.04.2023,Resources,AH&R - Res Dir,HIGH STREET VOUCHERS,254.25,0,254.25,Awaiting Coding,Department stores
Buckinghamshire Council ,30.04.2023,13.04.2023,"Planning, Growth & Sustainability",Climate Change & Environment - PGS,WWW.HSSTRAINING.COM,232,46.4,278.4,Awaiting Coding,"Equipment, tool, furniture hire & leasing"
Buckinghamshire Council ,30.04.2023,13.04.2023,Children's Services,Education & Childrens Services - CS Dir,Just Eat,56.34,0,56.34,Awaiting Coding,Fast food restaurants
Buckinghamshire Council ,30.04.2023,13.04.2023,Deputy Chief Executive,AH&R- DCE Dir,ARGOS LTD,-60,0,-60,Awaiting Coding,Discount stores
Buckinghamshire Council ,30.04.2023,13.04.2023,Deputy Chief Executive,AH&R- DCE Dir,ARGOS LTD,-160,0,-160,Awaiting Coding,Discount stores
Buckinghamshire Council ,30.04.2023,13.04.2023,Children's Services,Education & Childrens Services - CS Dir,GEN REGISTER OFFICE,-7.5,0,-7.5,Awaiting Coding,Government services
Buckinghamshire Council ,30.04.2023,13.04.2023,Communities,Climate Change & Environment - Community,B & Q 1305,105.59,0,105.59,Awaiting Coding,Home supply warehouse stores
Buckinghamshire Council ,30.04.2023,13.04.2023,Children's Services,Education & Childrens Services - CS Dir,GEN REGISTER OFFICE,-7.5,0,-7.5,Awaiting Coding,Government services
Buckinghamshire Council ,30.04.2023,13.04.2023,Children's Services,Education & Childrens Services - CS Dir,AMZNMKTPLACE,29.99,0,29.99,Awaiting Coding,Miscellaneous retail
Buckinghamshire Council ,30.04.2023,13.04.2023,Children's Services,Education & Childrens Services - CS Dir,AMZNMKTPLACE,39.99,0,39.99,Awaiting Coding,Miscellaneous retail
Buckinghamshire Council ,30.04.2023,13.04.2023,Children's Services,Education & Childrens Services - CS Dir,APPLE.COM/UK,450,0,450,Awaiting Coding,Electronics shops
Buckinghamshire Council ,30.04.2023,13.04.2023,Children's Services,Education & Childrens Services - CS Dir,AMAZON.CO.UK,16.99,0,16.99,Awaiting Coding,Direct sales companies
Buckinghamshire Council ,30.04.2023,13.04.2023,Deputy Chief Executive,AH&R- DCE Dir,OPTIMAL WORKSHOP,206.79,0,206.79,Awaiting Coding,Computer software stores
Buckinghamshire Council ,30.04.2023,12.04.2023,Adults and Health,Health & Wellbeing - Adults & Health Dir,TESCO SUBSCRIPTION,7.99,0,7.99,Awaiting Coding,Continuous subscriptions
Buckinghamshire Council ,30.04.2023,12.04.2023,Children's Services,Education & Childrens Services - CS Dir,PAYMENT TO HDC,"1,224.50",0,"1,224.50",Awaiting Coding,Government services
Buckinghamshire Council ,30.04.2023,12.04.2023,Children's Services,Education & Childrens Services - CS Dir,PREMIER INN,49.98,0,49.98,Awaiting Coding,Premier Inn
Buckinghamshire Council ,30.04.2023,12.04.2023,Children's Services,Education & Childrens Services - CS Dir,PREMIER INN,100.3,0,100.3,Awaiting Coding,Premier Inn
Buckinghamshire Council ,30.04.2023,12.04.2023,Children's Services,Education & Childrens Services - CS Dir,PREMIER INN,778.88,0,778.88,Awaiting Coding,Premier Inn
Buckinghamshire Council ,30.04.2023,12.04.2023,Deputy Chief Executive,Communities - DCE,PAYPAL,39.15,7.83,46.98,Awaiting Coding,Variety stores
Buckinghamshire Council ,30.04.2023,12.04.2023,Deputy Chief Executive,Communities - DCE,PAYPAL,0.02,0,0.02,Awaiting Coding,Variety stores
Buckinghamshire Council ,30.04.2023,12.04.2023,Deputy Chief Executive,Communities - DCE,PAYPAL,332.95,0,332.95,Awaiting Coding,Variety stores
Buckinghamshire Council ,30.04.2023,12.04.2023,"Planning, Growth & Sustainability",Housing & Homelessness & Regulatory PGS,VIKING OFFICE UK LIMIT,723.83,144.77,868.6,Awaiting Coding,Stationery & office supplies
Buckinghamshire Council ,30.04.2023,12.04.2023,Deputy Chief Executive,Communities - DCE,WWW.BUCKINGHAMSHIRE.GOV,125.3,0,125.3,Awaiting Coding,Government services
Buckinghamshire Council ,30.04.2023,12.04.2023,Deputy Chief Executive,Communities - DCE,WWW.ARGOS.CO.UK,30.79,6.16,36.95,Awaiting Coding,Department stores
Buckinghamshire Council ,30.04.2023,12.04.2023,Deputy Chief Executive,Communities - DCE,WWW.ARGOS.CO.UK,225.95,0,225.95,Awaiting Coding,Department stores
Buckinghamshire Council ,30.04.2023,12.04.2023,Deputy Chief Executive,Communities - DCE,AO RETAIL LIMITED,826.65,165.33,991.98,Awaiting Coding,Household appliance stores
Buckinghamshire Council ,30.04.2023,12.04.2023,Deputy Chief Executive,Communities - DCE,AO RETAIL LIMITED,0.02,0,0.02,Awaiting Coding,Household appliance stores
Buckinghamshire Council ,30.04.2023,12.04.2023,Deputy Chief Executive,Communities - DCE,AO RETAIL LIMITED,207.5,41.5,249,Awaiting Coding,Household appliance stores
Buckinghamshire Council ,30.04.2023,12.04.2023,Deputy Chief Executive,Communities - DCE,WWW.ARGOS.CO.UK,173.29,34.66,207.95,Awaiting Coding,Department stores
Buckinghamshire Council ,30.04.2023,12.04.2023,Deputy Chief Executive,Communities - DCE,AO RETAIL LIMITED,-20,0,-20,Awaiting Coding,Household appliance stores
Buckinghamshire Council ,30.04.2023,12.04.2023,Deputy Chief Executive,Communities - DCE,AO RETAIL LIMITED,-20,0,-20,Awaiting Coding,Household appliance stores
Buckinghamshire Council ,30.04.2023,12.04.2023,Children's Services,Education & Childrens Services - CS Dir,AMZNMKTPLACE,13.95,0,13.95,Awaiting Coding,Miscellaneous retail
Buckinghamshire Council ,30.04.2023,12.04.2023,Children's Services,Education & Childrens Services - CS Dir,AMZNMKTPLACE,63.95,0,63.95,Awaiting Coding,Miscellaneous retail
Buckinghamshire Council ,30.04.2023,12.04.2023,Children's Services,Education & Childrens Services - CS Dir,WWW.BUCKINGHAMSHIRE.GOV,440.42,0,440.42,Awaiting Coding,Government services
Buckinghamshire Council ,30.04.2023,12.04.2023,Children's Services,Education & Childrens Services - CS Dir,AMZNMKTPLACE,377.99,0,377.99,Awaiting Coding,Miscellaneous retail
Buckinghamshire Council ,30.04.2023,12.04.2023,Children's Services,Education & Childrens Services - CS Dir,AMZNMKTPLACE,34.99,0,34.99,Awaiting Coding,Miscellaneous retail
Buckinghamshire Council ,30.04.2023,12.04.2023,"Planning, Growth & Sustainability",Climate Change & Environment - PGS,TRAINLINE,202.77,0,202.77,Awaiting Coding,Passenger railways
Buckinghamshire Council ,30.04.2023,12.04.2023,Children's Services,Education & Childrens Services - CS Dir,CURRYS BUSINESS,215.8,43.16,258.96,Awaiting Coding,Computer software stores
Buckinghamshire Council ,30.04.2023,12.04.2023,Children's Services,Education & Childrens Services - CS Dir,CURRYS BUSINESS,0.03,0,0.03,Awaiting Coding,Computer software stores
Buckinghamshire Council ,30.04.2023,12.04.2023,Children's Services,Education & Childrens Services - CS Dir,TWINKL,53.88,0,53.88,Awaiting Coding,Schools
Buckinghamshire Council ,30.04.2023,12.04.2023,"Planning, Growth & Sustainability",AH&R - PGS Dir,AMAZON.CO.UK,10.51,0,10.51,Awaiting Coding,Direct sales companies
Buckinghamshire Council ,30.04.2023,12.04.2023,"Planning, Growth & Sustainability",Housing & Homelessness & Regulatory PGS,LAND REGISTRY ECOM CCC,3,0,3,Awaiting Coding,Government services
Buckinghamshire Council ,30.04.2023,12.04.2023,"Planning, Growth & Sustainability",Housing & Homelessness & Regulatory PGS,LAND REGISTRY ECOM CCC,3,0,3,Awaiting Coding,Government services
Buckinghamshire Council ,30.04.2023,12.04.2023,Children's Services,Education & Childrens Services - CS Dir,NIRVANA SPA,150,0,150,Awaiting Coding,Health & beauty spas
Buckinghamshire Council ,30.04.2023,12.04.2023,Children's Services,Education & Childrens Services - CS Dir,MAILCHIMP,219.33,0,219.33,Awaiting Coding,
Buckinghamshire Council ,30.04.2023,12.04.2023,Children's Services,Education & Childrens Services - CS Dir,AMZNMKTPLACE,36.95,0,36.95,Awaiting Coding,Miscellaneous retail
Buckinghamshire Council ,30.04.2023,12.04.2023,Children's Services,Education & Childrens Services - CS Dir,SAINSBURYS S/MKTS,16.85,0,16.85,Awaiting Coding,Grocery stores
Buckinghamshire Council ,30.04.2023,12.04.2023,Children's Services,Education & Childrens Services - CS Dir,TESCO GIFT CARD,50,0,50,Awaiting Coding,Grocery stores
Buckinghamshire Council ,30.04.2023,12.04.2023,Children's Services,Education & Childrens Services - CS Dir,AMZNMKTPLACE,194.52,0,194.52,Awaiting Coding,Miscellaneous retail
Buckinghamshire Council ,30.04.2023,12.04.2023,Children's Services,Education & Childrens Services - CS Dir,AMZNMKTPLACE,131.82,0,131.82,Awaiting Coding,Miscellaneous retail
Buckinghamshire Council ,30.04.2023,12.04.2023,Children's Services,Education & Childrens Services - CS Dir,IKEA LTD 185 MILTON KEYNE,32,0,32,Awaiting Coding,Furniture & home furnishing
Buckinghamshire Council ,30.04.2023,12.04.2023,Communities,Culture & Leisure - Communities Dir,POST OFFICE COUNTER,2.6,0,2.6,Awaiting Coding,Postal services
Buckinghamshire Council ,30.04.2023,12.04.2023,Communities,Culture & Leisure - Communities Dir,TOOLSTATION UK,24.98,0,24.98,Awaiting Coding,Hardware stores
Buckinghamshire Council ,30.04.2023,12.04.2023,Communities,Culture & Leisure - Communities Dir,BRIANTS OF RISBOROUGH LT,316.2,0,316.2,Awaiting Coding,Furniture & home furnishing
Buckinghamshire Council ,30.04.2023,12.04.2023,Adults and Health,Health & Wellbeing - Adults & Health Dir,AMZNMKTPLACE,35.98,0,35.98,Awaiting Coding,Miscellaneous retail
Buckinghamshire Council ,30.04.2023,12.04.2023,Communities,Transport - Communities Dir,KWIK FIT,128.5,0,128.5,Awaiting Coding,Auto servicing
Buckinghamshire Council ,30.04.2023,12.04.2023,Communities,Climate Change & Environment - Community,GOOGLE ADS2753042584,365.56,0,365.56,Awaiting Coding,Advertising services
Buckinghamshire Council ,30.04.2023,12.04.2023,Communities,Climate Change & Environment - Community,PAYPAL,129.99,0,129.99,Awaiting Coding,Advertising services
Buckinghamshire Council ,30.04.2023,12.04.2023,Communities,Climate Change & Environment - Community,GOOGLE *ADS2753042584,465.56,0,465.56,Awaiting Coding,Advertising services
Buckinghamshire Council ,30.04.2023,12.04.2023,Children's Services,Education & Childrens Services - CS Dir,WM MORRISONS STORE,24.37,0,24.37,Awaiting Coding,Grocery stores
Buckinghamshire Council ,30.04.2023,12.04.2023,Children's Services,Education & Childrens Services - CS Dir,DOMINO S PIZZA,34.98,0,34.98,Awaiting Coding,Restaurants
Buckinghamshire Council ,30.04.2023,12.04.2023,Communities,artnerships - Communities,EB *CITY BREAKFAST CLU,27.8,0,27.8,Awaiting Coding,Misc business services
Buckinghamshire Council ,30.04.2023,12.04.2023,Children's Services,Education & Childrens Services - CS Dir,HELLO STUDENT,"3,285.00",0,"3,285.00",Awaiting Coding,Estate Agents & Property Management
Buckinghamshire Council ,30.04.2023,12.04.2023,Children's Services,Education & Childrens Services - CS Dir,WWW.EALING.GOV.UK,19.5,0,19.5,Awaiting Coding,Government services
Buckinghamshire Council ,30.04.2023,12.04.2023,Communities,ommunities - Trust Accounts,BOOKER LIMITED ECOM,901.71,0,901.71,Awaiting Coding,Grocery stores
Buckinghamshire Council ,30.04.2023,12.04.2023,Adults and Health,Health & Wellbeing - Adults & Health Dir,UK POINT OF SALE GROUP LT,116.2,23.24,139.44,Awaiting Coding,"Computers, peripherals & software"
Buckinghamshire Council ,30.04.2023,12.04.2023,Adults and Health,Health & Wellbeing - Adults & Health Dir,PIXARTPRINTING,22.24,4.45,26.69,Awaiting Coding,Publishing & printing services
Buckinghamshire Council ,30.04.2023,12.04.2023,"Planning, Growth & Sustainability",Housing & Homelessness & Regulatory PGS,DUNELM SOFTFURNISHINGS,265.95,0,265.95,Awaiting Coding,Furniture & home furnishing
Buckinghamshire Council ,30.04.2023,12.04.2023,"Planning, Growth & Sustainability",Housing & Homelessness & Regulatory PGS,DUNELM SOFTFURNISHINGS,205.95,0,205.95,Awaiting Coding,Furniture & home furnishing
Buckinghamshire Council ,30.04.2023,12.04.2023,"Planning, Growth & Sustainability",Housing & Homelessness & Regulatory PGS,SAFETYSUPPL,132.92,0,132.92,Awaiting Coding,Department stores
Buckinghamshire Council ,30.04.2023,12.04.2023,Communities,Climate Change & Environment - Community,WWW.MOTOR.ORG.UK,90,0,90,Awaiting Coding,Membership organisations
Buckinghamshire Council ,30.04.2023,12.04.2023,Communities,Climate Change & Environment - Community,WWW.MOTOR.ORG.UK,90,0,90,Awaiting Coding,Membership organisations
Buckinghamshire Council ,30.04.2023,12.04.2023,Children's Services,Education & Childrens Services - CS Dir,CS*MORRISONS GIFT CARD,100,0,100,Awaiting Coding,Misc business services
Buckinghamshire Council ,30.04.2023,12.04.2023,Children's Services,Education & Childrens Services - CS Dir,AMZNMKTPLACE,64.98,0,64.98,Awaiting Coding,Miscellaneous retail
Buckinghamshire Council ,30.04.2023,12.04.2023,Resources,AH&R - Res Dir,WWW.ARGOS.CO.UK,55,0,55,Awaiting Coding,Department stores
Buckinghamshire Council ,30.04.2023,12.04.2023,Children's Services,Education & Childrens Services - CS Dir,NEALES TAXIS LTD,15,0,15,Awaiting Coding,Taxicabs & limousines
Buckinghamshire Council ,30.04.2023,12.04.2023,Children's Services,Education & Childrens Services - CS Dir,YELLOW CARS HW LTD,150,30,180,Awaiting Coding,Taxicabs & limousines
Buckinghamshire Council ,30.04.2023,11.04.2023,Children's Services,Education & Childrens Services - CS Dir,AMZNMKTPLACE,28.98,0,28.98,Awaiting Coding,Miscellaneous retail
Buckinghamshire Council ,30.04.2023,11.04.2023,Children's Services,Education & Childrens Services - CS Dir,VOUCHER EXPRESS,100,0,100,Awaiting Coding,Misc business services
Buckinghamshire Council ,30.04.2023,11.04.2023,Resources,AH&R - Res Dir,ONLINE50 LTD,96,0,96,Awaiting Coding,Catalogue sales
Buckinghamshire Council ,30.04.2023,11.04.2023,Deputy Chief Executive,Communities - DCE,TINGEWICK FUELS,98,0,98,Awaiting Coding,Fuel dealers
Buckinghamshire Council ,30.04.2023,11.04.2023,Deputy Chief Executive,Communities - DCE,AO RETAIL LIMITED,224.15,44.83,268.98,Awaiting Coding,Household appliance stores
Buckinghamshire Council ,30.04.2023,11.04.2023,Deputy Chief Executive,Communities - DCE,AO RETAIL LIMITED,0.02,0,0.02,Awaiting Coding,Household appliance stores
Buckinghamshire Council ,30.04.2023,11.04.2023,Deputy Chief Executive,Communities - DCE,AO RETAIL LIMITED,224.15,44.83,268.98,Awaiting Coding,Household appliance stores
Buckinghamshire Council ,30.04.2023,11.04.2023,Deputy Chief Executive,Communities - DCE,AO RETAIL LIMITED,0.02,0,0.02,Awaiting Coding,Household appliance stores
Buckinghamshire Council ,30.04.2023,11.04.2023,Deputy Chief Executive,Communities - DCE,AO RETAIL LIMITED,444.15,88.83,532.98,Awaiting Coding,Household appliance stores
Buckinghamshire Council ,30.04.2023,11.04.2023,Deputy Chief Executive,Communities - DCE,AO RETAIL LIMITED,0.02,0,0.02,Awaiting Coding,Household appliance stores
Buckinghamshire Council ,30.04.2023,11.04.2023,Deputy Chief Executive,Communities - DCE,AO RETAIL LIMITED,136.65,27.33,163.98,Awaiting Coding,Household appliance stores
Buckinghamshire Council ,30.04.2023,11.04.2023,Deputy Chief Executive,Communities - DCE,AO RETAIL LIMITED,0.02,0,0.02,Awaiting Coding,Household appliance stores
Buckinghamshire Council ,30.04.2023,11.04.2023,Deputy Chief Executive,Communities - DCE,AO RETAIL LIMITED,282.5,56.5,339,Awaiting Coding,Household appliance stores
Buckinghamshire Council ,30.04.2023,11.04.2023,Deputy Chief Executive,Communities - DCE,AO RETAIL LIMITED,419.15,83.83,502.98,Awaiting Coding,Household appliance stores
Buckinghamshire Council ,30.04.2023,11.04.2023,Deputy Chief Executive,Communities - DCE,AO RETAIL LIMITED,0.02,0,0.02,Awaiting Coding,Household appliance stores
Buckinghamshire Council ,30.04.2023,11.04.2023,Deputy Chief Executive,Communities - DCE,AO RETAIL LIMITED,265.83,53.17,319,Awaiting Coding,Household appliance stores
Buckinghamshire Council ,30.04.2023,11.04.2023,Deputy Chief Executive,Communities - DCE,AO RETAIL LIMITED,22.5,0,22.5,Awaiting Coding,Household appliance stores
Buckinghamshire Council ,30.04.2023,11.04.2023,Deputy Chief Executive,Communities - DCE,AO RETAIL LIMITED,594.15,118.83,712.98,Awaiting Coding,Household appliance stores
Buckinghamshire Council ,30.04.2023,11.04.2023,Deputy Chief Executive,Communities - DCE,AO RETAIL LIMITED,0.02,0,0.02,Awaiting Coding,Household appliance stores
Buckinghamshire Council ,30.04.2023,11.04.2023,Deputy Chief Executive,Communities - DCE,AO RETAIL LIMITED,-100,0,-100,Awaiting Coding,Household appliance stores
Buckinghamshire Council ,30.04.2023,11.04.2023,Deputy Chief Executive,Communities - DCE,AO RETAIL LIMITED,-515,-103,-618,Awaiting Coding,Household appliance stores
Buckinghamshire Council ,30.04.2023,11.04.2023,Children's Services,Education & Childrens Services - CS Dir,SP SOFAPOINUKLTD,369,0,369,Awaiting Coding,Furniture & home furnishing
Buckinghamshire Council ,30.04.2023,11.04.2023,Children's Services,Education & Childrens Services - CS Dir,IKEA LTD SHOP ONLINE,169,0,169,Awaiting Coding,Furniture & home furnishing
Buckinghamshire Council ,30.04.2023,11.04.2023,Children's Services,Education & Childrens Services - CS Dir,WWW.ARGOS.CO.UK,31.95,0,31.95,Awaiting Coding,Department stores
Buckinghamshire Council ,30.04.2023,11.04.2023,Children's Services,Education & Childrens Services - CS Dir,WWW.BUCKINGHAMSHIRE.GOV,149.08,0,149.08,Awaiting Coding,Government services
Buckinghamshire Council ,30.04.2023,11.04.2023,Children's Services,Education & Childrens Services - CS Dir,AMZNMKTPLACE,31.99,0,31.99,Awaiting Coding,Miscellaneous retail
Buckinghamshire Council ,30.04.2023,11.04.2023,Children's Services,Education & Childrens Services - CS Dir,CURRYS BUSINESS,149.15,29.83,178.98,Awaiting Coding,Computer software stores
Buckinghamshire Council ,30.04.2023,11.04.2023,Children's Services,Education & Childrens Services - CS Dir,CURRYS BUSINESS,0.01,0,0.01,Awaiting Coding,Computer software stores
Buckinghamshire Council ,30.04.2023,11.04.2023,Children's Services,Education & Childrens Services - CS Dir,CURRYS BUSINESS,532.45,106.49,638.94,Awaiting Coding,Computer software stores
Buckinghamshire Council ,30.04.2023,11.04.2023,Children's Services,Education & Childrens Services - CS Dir,CURRYS BUSINESS,0.03,0,0.03,Awaiting Coding,Computer software stores
Buckinghamshire Council ,30.04.2023,11.04.2023,Children's Services,Education & Childrens Services - CS Dir,SCHUDIOTV,12,0,12,Awaiting Coding,Schools
Buckinghamshire Council ,30.04.2023,11.04.2023,Adults and Health,Health & Wellbeing - Adults & Health Dir,WWW.HEALTHCARECONFEREN,236,47.2,283.2,Awaiting Coding,Misc business services
Buckinghamshire Council ,30.04.2023,11.04.2023,"Planning, Growth & Sustainability",AH&R - PGS Dir,ISAAC LORD LIMITED,19.4,0,19.4,Awaiting Coding,Hardware stores
Buckinghamshire Council ,30.04.2023,11.04.2023,Resources,AH&R - Res Dir,GEN REGISTER OFFICE,11,0,11,Awaiting Coding,Government services
Buckinghamshire Council ,30.04.2023,11.04.2023,Children's Services,Education & Childrens Services - CS Dir,SCOTTISH POWER,480.79,0,480.79,Awaiting Coding,Fuel dealers
Buckinghamshire Council ,30.04.2023,11.04.2023,Children's Services,Education & Childrens Services - CS Dir,BT.COM CONSUMER BP,25.99,0,25.99,Awaiting Coding,Phone services
Buckinghamshire Council ,30.04.2023,11.04.2023,Children's Services,Education & Childrens Services - CS Dir,TESCO GIFT CARD,100,0,100,Awaiting Coding,Grocery stores
Buckinghamshire Council ,30.04.2023,11.04.2023,"Planning, Growth & Sustainability",AH&R - PGS Dir,TESCO STORES 5525,10.5,0,10.5,Awaiting Coding,Grocery stores
Buckinghamshire Council ,30.04.2023,11.04.2023,Children's Services,Education & Childrens Services - CS Dir,LAMPSHOPONLINE,22.3,4.46,26.76,Awaiting Coding,Electronics shops
Buckinghamshire Council ,30.04.2023,11.04.2023,Children's Services,Education & Childrens Services - CS Dir,LAMPSHOPONLINE,0.02,0,0.02,Awaiting Coding,Electronics shops
Buckinghamshire Council ,30.04.2023,11.04.2023,Children's Services,Education & Childrens Services - CS Dir,AMAZON.CO.UK,11.99,0,11.99,Awaiting Coding,Direct sales companies
Buckinghamshire Council ,30.04.2023,11.04.2023,Children's Services,Education & Childrens Services - CS Dir,AMZNMKTPLACE,123.9,0,123.9,Awaiting Coding,Miscellaneous retail
Buckinghamshire Council ,30.04.2023,11.04.2023,Deputy Chief Executive,Leader - DCE,SPECIALISED CANVAS,372.2,74.44,446.64,Awaiting Coding,Misc. general merchandise
Buckinghamshire Council ,30.04.2023,11.04.2023,Deputy Chief Executive,Leader - DCE,SPECIALISED CANVAS,0.1,0,0.1,Awaiting Coding,Misc. general merchandise
Buckinghamshire Council ,30.04.2023,11.04.2023,Deputy Chief Executive,Communities - DCE,RINGGO PARKING,2.75,0,2.75,Awaiting Coding,Car parking & garages
Buckinghamshire Council ,30.04.2023,11.04.2023,Deputy Chief Executive,Communities - DCE,WWW.CIVILCEREMONIES.COM,173.7,0,173.7,Awaiting Coding,Professional services
Buckinghamshire Council ,30.04.2023,11.04.2023,Deputy Chief Executive,Communities - DCE,AMZNMKTPLACE,7.93,0,7.93,Awaiting Coding,Miscellaneous retail
Buckinghamshire Council ,30.04.2023,11.04.2023,Adults and Health,Health & Wellbeing - Adults & Health Dir,AMZNMKTPLACE,25.96,0,25.96,Awaiting Coding,Miscellaneous retail
Buckinghamshire Council ,30.04.2023,11.04.2023,Children's Services,Education & Childrens Services - CS Dir,SAINSBURY S S/MKTS,9.25,0,9.25,Awaiting Coding,Grocery stores
Buckinghamshire Council ,30.04.2023,11.04.2023,Adults and Health,Health & Wellbeing - Adults & Health Dir,WWW.PAY.UKCRS.COM,150,0,150,Awaiting Coding,Misc business services
Buckinghamshire Council ,30.04.2023,11.04.2023,Communities,Climate Change & Environment - Community,LINKTREE* LINKTREE,42,0,42,Awaiting Coding,Computer software stores
Buckinghamshire Council ,30.04.2023,11.04.2023,Communities,Climate Change & Environment - Community,HELLOPRINT UNITED KINGDOM,116.54,0,116.54,Awaiting Coding,Photocopy & reproduction services
Buckinghamshire Council ,30.04.2023,11.04.2023,"Planning, Growth & Sustainability",AH&R - PGS Dir,687 - WILMINGTON,13.2,0,13.2,Awaiting Coding,Misc. general merchandise
Buckinghamshire Council ,30.04.2023,11.04.2023,Children's Services,Education & Childrens Services - CS Dir,BUCKINGHAMSHIRE CNCL,11,0,11,Awaiting Coding,Government services
Buckinghamshire Council ,30.04.2023,11.04.2023,Children's Services,Education & Childrens Services - CS Dir,ASDA  STORES 4396,4,0,4,Awaiting Coding,Grocery stores
Buckinghamshire Council ,30.04.2023,11.04.2023,Children's Services,Education & Childrens Services - CS Dir,DOMINOS PIZZA,5.28,0,5.28,Awaiting Coding,Fast food restaurants
Buckinghamshire Council ,30.04.2023,11.04.2023,Children's Services,Education & Childrens Services - CS Dir,DOMINOS PIZZA,23.97,0,23.97,Awaiting Coding,Fast food restaurants
Buckinghamshire Council ,30.04.2023,11.04.2023,Communities,Culture & Leisure - Communities Dir,CO-OP GROUP 350090,7.3,0,7.3,Awaiting Coding,Grocery stores
Buckinghamshire Council ,30.04.2023,11.04.2023,Children's Services,Education & Childrens Services - CS Dir,WWW.BUCKINGHAMSHIRE.GOV,41.63,0,41.63,Awaiting Coding,Government services
Buckinghamshire Council ,30.04.2023,11.04.2023,Children's Services,Education & Childrens Services - CS Dir,WWW.BUCKINGHAMSHIRE.GOV,70.45,0,70.45,Awaiting Coding,Government services
Buckinghamshire Council ,30.04.2023,11.04.2023,Children's Services,Education & Childrens Services - CS Dir,WWW.BUCKINGHAMSHIRE.GOV,165.25,0,165.25,Awaiting Coding,Government services
Buckinghamshire Council ,30.04.2023,11.04.2023,,,TOOLSTATION UK,52.75,0,52.75,Awaiting Coding,Hardware stores
Buckinghamshire Council ,30.04.2023,11.04.2023,,,WICKES BUILDING,88,0,88,Awaiting Coding,Timber & building supplies
Buckinghamshire Council ,30.04.2023,11.04.2023,Communities,ommunities - Trust Accounts,COSTCO WHOLESALE #102,59.2,0,59.2,Awaiting Coding,Buying & shopping services/clubs
Buckinghamshire Council ,30.04.2023,11.04.2023,Communities,ommunities - Trust Accounts,SOUTH BUCKS GOLF COURSE,1.2,0,1.2,Awaiting Coding,Public golf courses
Buckinghamshire Council ,30.04.2023,11.04.2023,Deputy Chief Executive,AH&R- DCE Dir,WWW.ARGOS.CO.UK,287.45,57.5,344.95,Awaiting Coding,Department stores
Buckinghamshire Council ,30.04.2023,11.04.2023,Deputy Chief Executive,AH&R- DCE Dir,WWW.ARGOS.CO.UK,90.79,18.16,108.95,Awaiting Coding,Department stores
Buckinghamshire Council ,30.04.2023,11.04.2023,"Planning, Growth & Sustainability",Planning & Regeneration - PGS,TRAINLINE,16.5,0,16.5,Awaiting Coding,Passenger railways
Buckinghamshire Council ,30.04.2023,11.04.2023,"Planning, Growth & Sustainability",Planning & Regeneration - PGS,AMZNMKTPLACE,100.95,0,100.95,Awaiting Coding,Miscellaneous retail
Buckinghamshire Council ,30.04.2023,11.04.2023,Communities,Culture & Leisure - Communities Dir,WWW.PLANNING.CO,128.2,0,128.2,Awaiting Coding,Misc business services
Buckinghamshire Council ,30.04.2023,11.04.2023,Communities,Culture & Leisure - Communities Dir,AMZNMKTPLACE,6.29,0,6.29,Awaiting Coding,Miscellaneous retail
Buckinghamshire Council ,30.04.2023,11.04.2023,"Planning, Growth & Sustainability",Housing & Homelessness & Regulatory PGS,AMZNMKTPLACE,129.9,0,129.9,Awaiting Coding,Miscellaneous retail
Buckinghamshire Council ,30.04.2023,11.04.2023,"Planning, Growth & Sustainability",Housing & Homelessness & Regulatory PGS,WWW.ARGOS.CO.UK,390.45,0,390.45,Awaiting Coding,Department stores
Buckinghamshire Council ,30.04.2023,11.04.2023,Communities,Climate Change & Environment - Community,SKIPPER TM LIMITED,103.08,0,103.08,Awaiting Coding,Construction materials
Buckinghamshire Council ,30.04.2023,11.04.2023,Adults and Health,Health & Wellbeing - Adults & Health Dir,TESCO STORES 5135,76.65,0,76.65,Awaiting Coding,Grocery stores
Buckinghamshire Council ,30.04.2023,11.04.2023,Adults and Health,Health & Wellbeing - Adults & Health Dir,AMAZON.CO.UK,19.13,0,19.13,Awaiting Coding,Direct sales companies
Buckinghamshire Council ,30.04.2023,11.04.2023,Adults and Health,Health & Wellbeing - Adults & Health Dir,VIKING OFFICE UK LIMIT,209,41.8,250.8,Awaiting Coding,Stationery & office supplies
Buckinghamshire Council ,30.04.2023,11.04.2023,Deputy Chief Executive,AH&R- DCE Dir,SLACK T181RTHAL,8.4,0,8.4,Awaiting Coding,Computer software stores
Buckinghamshire Council ,30.04.2023,11.04.2023,Communities,artnerships - Communities,BT PLC BUSINESS MOTO BPAY,64,12.8,76.8,Awaiting Coding,Phone services
Buckinghamshire Council ,30.04.2023,11.04.2023,Communities,artnerships - Communities,BT PLC BUSINESS MOTO BPAY,0.01,0,0.01,Awaiting Coding,Phone services
Buckinghamshire Council ,30.04.2023,11.04.2023,Deputy Chief Executive,Communities - DCE,PAYPAL,219.12,43.83,262.95,Awaiting Coding,Variety stores
Buckinghamshire Council ,30.04.2023,11.04.2023,Deputy Chief Executive,Communities - DCE,PAYPAL,37.5,7.5,45,Awaiting Coding,Variety stores
Buckinghamshire Council ,30.04.2023,11.04.2023,Deputy Chief Executive,AH&R- DCE Dir,PAYPAL,417.5,83.5,501,Awaiting Coding,Variety stores
Buckinghamshire Council ,30.04.2023,11.04.2023,Deputy Chief Executive,AH&R- DCE Dir,PAYPAL,411.62,82.33,493.95,Awaiting Coding,Variety stores
Buckinghamshire Council ,30.04.2023,11.04.2023,Children's Services,Education & Childrens Services - CS Dir,PREMIER INN,99.45,0,99.45,Awaiting Coding,Premier Inn
Buckinghamshire Council ,30.04.2023,11.04.2023,Children's Services,Education & Childrens Services - CS Dir,PREMIER INN,93.99,0,93.99,Awaiting Coding,Premier Inn
Buckinghamshire Council ,30.04.2023,11.04.2023,Children's Services,Education & Childrens Services - CS Dir,TRAINLINE,24.65,0,24.65,Awaiting Coding,Passenger railways
Buckinghamshire Council ,30.04.2023,11.04.2023,Communities,Climate Change & Environment - Community,WWW.MY.CHUBB.CO.UK,929.3,0,929.3,Awaiting Coding,Detective & security services
Buckinghamshire Council ,30.04.2023,11.04.2023,Communities,Climate Change & Environment - Community,WWW.MY.CHUBB.CO.UK,135.19,0,135.19,Awaiting Coding,Detective & security services
Buckinghamshire Council ,30.04.2023,10.04.2023,"Planning, Growth & Sustainability",AH&R - PGS Dir,AMZNMKTPLACE,25.47,0,25.47,Awaiting Coding,Miscellaneous retail
Buckinghamshire Council ,30.04.2023,10.04.2023,"Planning, Growth & Sustainability",AH&R - PGS Dir,AMZNMKTPLACE,49.08,0,49.08,Awaiting Coding,Miscellaneous retail
Buckinghamshire Council ,30.04.2023,10.04.2023,Children's Services,Education & Childrens Services - CS Dir,AMAZON PRIME,8.99,0,8.99,Awaiting Coding,Continuous subscriptions
Buckinghamshire Council ,30.04.2023,10.04.2023,Adults and Health,Health & Wellbeing - Adults & Health Dir,AMAZON.CO.UK,2.99,0,2.99,Awaiting Coding,Direct sales companies
Buckinghamshire Council ,30.04.2023,10.04.2023,Communities,Climate Change & Environment - Community,AMZNMKTPLACE,20.98,0,20.98,Awaiting Coding,Miscellaneous retail
Buckinghamshire Council ,30.04.2023,10.04.2023,Communities,Culture & Leisure - Communities Dir,WWW.SCREWFIX.COM,42.12,8.43,50.55,Awaiting Coding,Timber & building supplies
Buckinghamshire Council ,30.04.2023,10.04.2023,Communities,Culture & Leisure - Communities Dir,FACEBK C6MGZLKJB2,3.15,0,3.15,Awaiting Coding,Advertising services
Buckinghamshire Council ,30.04.2023,09.04.2023,"Planning, Growth & Sustainability",Climate Change & Environment - PGS,HTTPS://SCRIBE.HOW/B,24.1,0,24.1,Awaiting Coding,Computer software stores
Buckinghamshire Council ,30.04.2023,09.04.2023,Communities,artnerships - Communities,ADOBE CREATIVE CLOUD,43.32,0,43.32,Awaiting Coding,Computer software stores
Buckinghamshire Council ,30.04.2023,09.04.2023,Communities,artnerships - Communities,MAILCHIMP,9.3,1.86,11.16,Awaiting Coding,
Buckinghamshire Council ,30.04.2023,09.04.2023,Children's Services,Education & Childrens Services - CS Dir,MAILCHIMP,48.68,0,48.68,Awaiting Coding,
Buckinghamshire Council ,30.04.2023,09.04.2023,Children's Services,Education & Childrens Services - CS Dir,AMZNMKTPLACE,7.49,0,7.49,Awaiting Coding,Miscellaneous retail
Buckinghamshire Council ,30.04.2023,09.04.2023,Children's Services,Education & Childrens Services - CS Dir,WWW.THERANGE.CO.UK,-107.95,0,-107.95,Awaiting Coding,Misc. home furnishing
Buckinghamshire Council ,30.04.2023,09.04.2023,Communities,Climate Change & Environment - Community,ROADWARRIOR,8.31,0,8.31,Awaiting Coding,"Programming, data processing & system design"
Buckinghamshire Council ,30.04.2023,09.04.2023,Adults and Health,Health & Wellbeing - Adults & Health Dir,AMZNMKTPLACE,55.06,0,55.06,Awaiting Coding,Miscellaneous retail
Buckinghamshire Council ,30.04.2023,08.04.2023,Deputy Chief Executive,Communities - DCE,AO RETAIL LIMITED,-25,0,-25,Awaiting Coding,Household appliance stores
Buckinghamshire Council ,30.04.2023,08.04.2023,Deputy Chief Executive,Communities - DCE,AO RETAIL LIMITED,-115,0,-115,Awaiting Coding,Household appliance stores
Buckinghamshire Council ,30.04.2023,08.04.2023,Deputy Chief Executive,Communities - DCE,SUMUP  *COOPERS CRAFTS,8.5,0,8.5,Awaiting Coding,Miscellaneous retail
Buckinghamshire Council ,30.04.2023,08.04.2023,Communities,Transport - Communities Dir,ONE BELOW,4,0,4,Awaiting Coding,Grocery stores
Buckinghamshire Council ,30.04.2023,08.04.2023,Children's Services,Education & Childrens Services - CS Dir,PRIME VIDEO,7.99,0,7.99,Awaiting Coding,Record shops
Buckinghamshire Council ,30.04.2023,08.04.2023,Children's Services,Education & Childrens Services - CS Dir,GIFFGAFF,35,0,35,Awaiting Coding,Phone services
Buckinghamshire Council ,30.04.2023,08.04.2023,Communities,Culture & Leisure - Communities Dir,EBAY O*05-09922-65348,49.5,0,49.5,Awaiting Coding,Department stores
Buckinghamshire Council ,30.04.2023,08.04.2023,Communities,Culture & Leisure - Communities Dir,EBAY O*05-09922-65351,13.2,2.64,15.84,Awaiting Coding,Department stores
Buckinghamshire Council ,30.04.2023,08.04.2023,Communities,Culture & Leisure - Communities Dir,EBAY O*05-09922-65351,0.01,0,0.01,Awaiting Coding,Department stores
Buckinghamshire Council ,30.04.2023,08.04.2023,Communities,Culture & Leisure - Communities Dir,EBAY O*05-09922-65349,6.8,1.36,8.16,Awaiting Coding,Department stores
Buckinghamshire Council ,30.04.2023,08.04.2023,Communities,Culture & Leisure - Communities Dir,EBAY O*05-09922-65347,9.5,0,9.5,Awaiting Coding,Department stores
Buckinghamshire Council ,30.04.2023,08.04.2023,Communities,Culture & Leisure - Communities Dir,EBAY O*05-09922-65350,55.42,11.09,66.51,Awaiting Coding,Department stores
Buckinghamshire Council ,30.04.2023,08.04.2023,Resources,AH&R - Res Dir,FACEBK USDCZNXUH2,38.05,0,38.05,Awaiting Coding,Advertising services
Buckinghamshire Council ,30.04.2023,07.04.2023,Deputy Chief Executive,Communities - DCE,AO RETAIL LIMITED,-20,0,-20,Awaiting Coding,Household appliance stores
Buckinghamshire Council ,30.04.2023,07.04.2023,Communities,Transport - Communities Dir,POUNDLAND LTD 1301,2.5,0,2.5,Awaiting Coding,Discount stores
Buckinghamshire Council ,30.04.2023,07.04.2023,Children's Services,Education & Childrens Services - CS Dir,AMZNMKTPLACE,13.99,0,13.99,Awaiting Coding,Miscellaneous retail
Buckinghamshire Council ,30.04.2023,07.04.2023,Children's Services,Education & Childrens Services - CS Dir,AMZNMKTPLACE,111.9,0,111.9,Awaiting Coding,Miscellaneous retail
Buckinghamshire Council ,30.04.2023,07.04.2023,Deputy Chief Executive,AH&R- DCE Dir,WWW.ARGOS.CO.UK,225.79,45.16,270.95,Awaiting Coding,Department stores
Buckinghamshire Council ,30.04.2023,07.04.2023,Deputy Chief Executive,AH&R- DCE Dir,WWW.ARGOS.CO.UK,281.6,56.32,337.92,Awaiting Coding,Department stores
Buckinghamshire Council ,30.04.2023,07.04.2023,Deputy Chief Executive,AH&R- DCE Dir,WWW.ARGOS.CO.UK,0.03,0,0.03,Awaiting Coding,Department stores
Buckinghamshire Council ,30.04.2023,07.04.2023,Deputy Chief Executive,AH&R- DCE Dir,PAYPAL,135.79,27.16,162.95,Awaiting Coding,Variety stores
Buckinghamshire Council ,30.04.2023,07.04.2023,Deputy Chief Executive,AH&R- DCE Dir,PAYPAL,125,25,150,Awaiting Coding,Variety stores
Buckinghamshire Council ,30.04.2023,06.04.2023,Children's Services,Education & Childrens Services - CS Dir,AMZNMKTPLACE,66.6,13.32,79.92,Awaiting Coding,Miscellaneous retail
Buckinghamshire Council ,30.04.2023,06.04.2023,Children's Services,Education & Childrens Services - CS Dir,AMZNMKTPLACE,0.03,0,0.03,Awaiting Coding,Miscellaneous retail
Buckinghamshire Council ,30.04.2023,06.04.2023,Children's Services,Education & Childrens Services - CS Dir,AMZNMKTPLACE,63.86,0,63.86,Awaiting Coding,Miscellaneous retail
Buckinghamshire Council ,30.04.2023,06.04.2023,Children's Services,Education & Childrens Services - CS Dir,JJM TAXIS & ZULU CARS,210,0,210,Awaiting Coding,Taxicabs & limousines
Buckinghamshire Council ,30.04.2023,06.04.2023,Deputy Chief Executive,Communities - DCE,WWW.ARGOS.CO.UK,152.45,30.49,182.94,Awaiting Coding,Department stores
Buckinghamshire Council ,30.04.2023,06.04.2023,Deputy Chief Executive,Communities - DCE,WWW.ARGOS.CO.UK,0.01,0,0.01,Awaiting Coding,Department stores
Buckinghamshire Council ,30.04.2023,06.04.2023,Deputy Chief Executive,Communities - DCE,WWW.ARGOS.CO.UK,35.79,7.16,42.95,Awaiting Coding,Department stores
Buckinghamshire Council ,30.04.2023,06.04.2023,Deputy Chief Executive,Communities - DCE,AO RETAIL LIMITED,195,39,234,Awaiting Coding,Household appliance stores
Buckinghamshire Council ,30.04.2023,06.04.2023,Deputy Chief Executive,Communities - DCE,AO RETAIL LIMITED,215.8,43.16,258.96,Awaiting Coding,Household appliance stores
Buckinghamshire Council ,30.04.2023,06.04.2023,Deputy Chief Executive,Communities - DCE,AO RETAIL LIMITED,0.04,0,0.04,Awaiting Coding,Household appliance stores
Buckinghamshire Council ,30.04.2023,06.04.2023,Deputy Chief Executive,Communities - DCE,WWW.ARGOS.CO.UK,277.45,55.49,332.94,Awaiting Coding,Department stores
Buckinghamshire Council ,30.04.2023,06.04.2023,Deputy Chief Executive,Communities - DCE,WWW.ARGOS.CO.UK,0.01,0,0.01,Awaiting Coding,Department stores
Buckinghamshire Council ,30.04.2023,06.04.2023,Deputy Chief Executive,Communities - DCE,AO RETAIL LIMITED,576.66,115.34,692,Awaiting Coding,Household appliance stores
Buckinghamshire Council ,30.04.2023,06.04.2023,Children's Services,Education & Childrens Services - CS Dir,TESCO GIFT CARD,70,0,70,Awaiting Coding,Grocery stores
Buckinghamshire Council ,30.04.2023,06.04.2023,Children's Services,Education & Childrens Services - CS Dir,HOTEL AT BOOKING.COM,95,0,95,Awaiting Coding,"Hotels, motels & resorts"
Buckinghamshire Council ,30.04.2023,06.04.2023,Children's Services,Education & Childrens Services - CS Dir,BKG*HOTEL AT BOOKING.C,105.2,0,105.2,Awaiting Coding,Travel agencies
Buckinghamshire Council ,30.04.2023,06.04.2023,Children's Services,Education & Childrens Services - CS Dir,BRENTWOOD BOROUGH COUN,"1,199.00",0,"1,199.00",Awaiting Coding,Government services
Buckinghamshire Council ,30.04.2023,06.04.2023,Children's Services,Education & Childrens Services - CS Dir,P L SCHOOLWEAR,108.5,0,108.5,Awaiting Coding,Children/infants shops
Buckinghamshire Council ,30.04.2023,06.04.2023,Resources,AH&R - Res Dir,C2E849700081A UKVI,"1,199.00",0,"1,199.00",Awaiting Coding,Government services
Buckinghamshire Council ,30.04.2023,06.04.2023,Communities,Transport - Communities Dir,EPSON STORE UK,390.44,0,390.44,Awaiting Coding,Electronics shops
Buckinghamshire Council ,30.04.2023,06.04.2023,"Planning, Growth & Sustainability",AH&R - PGS Dir,SURELOCK HOMES SECURITY,18,0,18,Awaiting Coding,Shoe repairs
Buckinghamshire Council ,30.04.2023,06.04.2023,Children's Services,Education & Childrens Services - CS Dir,CHESSINGTON ADVENTURES,127,0,127,Awaiting Coding,Theatres and ticket agencies
Buckinghamshire Council ,30.04.2023,06.04.2023,Adults and Health,Health & Wellbeing - Adults & Health Dir,SAINSBURYS S/MKTS,47.67,0,47.67,Awaiting Coding,Grocery stores
Buckinghamshire Council ,30.04.2023,06.04.2023,Children's Services,Education & Childrens Services - CS Dir,HOLIDAY PAYMENT AVR,757,0,757,Awaiting Coding,Travel agencies
Buckinghamshire Council ,30.04.2023,06.04.2023,Children's Services,Education & Childrens Services - CS Dir,HOLIDAY PAYMENT AVR,25,0,25,Awaiting Coding,Travel agencies
Buckinghamshire Council ,30.04.2023,06.04.2023,Children's Services,Education & Childrens Services - CS Dir,HOLIDAY PAYMENT AVR,782,0,782,Awaiting Coding,Travel agencies
Buckinghamshire Council ,30.04.2023,06.04.2023,"Planning, Growth & Sustainability",AH&R - PGS Dir,CARROLS IRONMONG,12,0,12,Awaiting Coding,Hardware Equipment & Suppliers
Buckinghamshire Council ,30.04.2023,06.04.2023,Communities,Housing & Homelessness & Regulatory Comm,WWW.PLANNING.CO,148.2,0,148.2,Awaiting Coding,Misc business services
Buckinghamshire Council ,30.04.2023,06.04.2023,Children's Services,Education & Childrens Services - CS Dir,AMZNMKTPLACE,257.36,0,257.36,Awaiting Coding,Miscellaneous retail
Buckinghamshire Council ,30.04.2023,06.04.2023,"Planning, Growth & Sustainability",Planning & Regeneration - PGS,WWW.BONDSOLON.COM,342,0,342,Awaiting Coding,Colleges & universities
Buckinghamshire Council ,30.04.2023,06.04.2023,"Planning, Growth & Sustainability",Planning & Regeneration - PGS,RTPI,330,0,330,Awaiting Coding,"Member clubs, sport, recreation & golf"
Buckinghamshire Council ,30.04.2023,06.04.2023,"Planning, Growth & Sustainability",Planning & Regeneration - PGS,RTPI,330,0,330,Awaiting Coding,"Member clubs, sport, recreation & golf"
Buckinghamshire Council ,30.04.2023,06.04.2023,Communities,Climate Change & Environment - Community,WWW.LSENGINEERS.CO.UK,84.08,0,84.08,Awaiting Coding,Hardware stores
Buckinghamshire Council ,30.04.2023,06.04.2023,Communities,Culture & Leisure - Communities Dir,AMZNMKTPLACE,10.81,2.17,12.98,Awaiting Coding,Miscellaneous retail
Buckinghamshire Council ,30.04.2023,06.04.2023,Adults and Health,Health & Wellbeing - Adults & Health Dir,TESCO STORES 2162,34.85,0,34.85,Awaiting Coding,Grocery stores
Buckinghamshire Council ,30.04.2023,06.04.2023,Children's Services,Education & Childrens Services - CS Dir,ARGOS  AYLESBURY GATEHOU,219,0,219,Awaiting Coding,Discount stores
Buckinghamshire Council ,30.04.2023,06.04.2023,Adults and Health,Health & Wellbeing - Adults & Health Dir,HOTEL AT BOOKING.COM,868,0,868,Awaiting Coding,"Hotels, motels & resorts"
Buckinghamshire Council ,30.04.2023,06.04.2023,Deputy Chief Executive,AH&R- DCE Dir,CABCO CHESHAM,15,0,15,Awaiting Coding,Taxicabs & limousines
Buckinghamshire Council ,30.04.2023,06.04.2023,Resources,AH&R - Res Dir,GMO GLOBALSIGN LIM,226.8,0,226.8,Awaiting Coding,Computer network information services
Buckinghamshire Council ,30.04.2023,06.04.2023,Resources,AH&R - Res Dir,GMO GLOBALSIGN LIM,421.2,0,421.2,Awaiting Coding,Computer network information services
Buckinghamshire Council ,30.04.2023,06.04.2023,Resources,AH&R - Res Dir,GMO GLOBALSIGN LIM,226.8,0,226.8,Awaiting Coding,Computer network information services
Buckinghamshire Council ,30.04.2023,06.04.2023,Resources,AH&R - Res Dir,GMO GLOBALSIGN LIM,421.2,0,421.2,Awaiting Coding,Computer network information services
Buckinghamshire Council ,30.04.2023,06.04.2023,Deputy Chief Executive,AH&R- DCE Dir,EB *MEAM ANNUAL CONFER,198,0,198,Awaiting Coding,Misc business services
Buckinghamshire Council ,30.04.2023,06.04.2023,Children's Services,Education & Childrens Services - CS Dir,TESCO STORES 2041,15.08,0,15.08,Awaiting Coding,Grocery stores
Buckinghamshire Council ,30.04.2023,06.04.2023,Children's Services,Education & Childrens Services - CS Dir,HSE* ID-7521791,12.49,2.5,14.99,Awaiting Coding,Book stores
Buckinghamshire Council ,30.04.2023,06.04.2023,Children's Services,Education & Childrens Services - CS Dir,UK CARS (HIGH WYCOMBE) LT,10,0,10,Awaiting Coding,Taxicabs & limousines
Buckinghamshire Council ,30.04.2023,06.04.2023,Children's Services,Education & Childrens Services - CS Dir,UK CARS (HIGH WYCOMBE) LT,10,0,10,Awaiting Coding,Taxicabs & limousines
Buckinghamshire Council ,30.04.2023,06.04.2023,"Planning, Growth & Sustainability",AH&R - PGS Dir,AMZNMKTPLACE,105,0,105,Awaiting Coding,Miscellaneous retail
Buckinghamshire Council ,30.04.2023,06.04.2023,Children's Services,Education & Childrens Services - CS Dir,ALLPAY *HIGHTOWN HOUSING,190.42,0,190.42,Awaiting Coding,Charitable organisations
Buckinghamshire Council ,30.04.2023,06.04.2023,Children's Services,Education & Childrens Services - CS Dir,ARGOS LTD,-461.99,0,-461.99,Awaiting Coding,Discount stores
Buckinghamshire Council ,30.04.2023,06.04.2023,Children's Services,Education & Childrens Services - CS Dir,HM PASSPORT OFFICE,53.5,0,53.5,Awaiting Coding,Government services
Buckinghamshire Council ,30.04.2023,06.04.2023,Children's Services,Education & Childrens Services - CS Dir,LIDL GB OAKFIELD ROAD,29.7,0,29.7,Awaiting Coding,Grocery stores
Buckinghamshire Council ,30.04.2023,06.04.2023,Communities,Climate Change & Environment - Community,AMAZON.CO.UK,12.98,0,12.98,Awaiting Coding,Direct sales companies
Buckinghamshire Council ,30.04.2023,06.04.2023,"Planning, Growth & Sustainability",Housing & Homelessness & Regulatory PGS,AO RETAIL LIMITED,968,0,968,Awaiting Coding,Household appliance stores
Buckinghamshire Council ,30.04.2023,06.04.2023,"Planning, Growth & Sustainability",Housing & Homelessness & Regulatory PGS,AO RETAIL LIMITED,308,0,308,Awaiting Coding,Household appliance stores
Buckinghamshire Council ,30.04.2023,06.04.2023,"Planning, Growth & Sustainability",Housing & Homelessness & Regulatory PGS,WILKO RETAIL LIMITED,8.85,0,8.85,Awaiting Coding,Misc. general merchandise
Buckinghamshire Council ,30.04.2023,06.04.2023,Children's Services,Education & Childrens Services - CS Dir,ARRIVA UK BUS,13,0,13,Awaiting Coding,"Buses, charter & tour"
Buckinghamshire Council ,30.04.2023,06.04.2023,Communities,Climate Change & Environment - Community,CH MORGAN,50.84,0,50.84,Awaiting Coding,"Architectural, engineering & surveying"
Buckinghamshire Council ,30.04.2023,06.04.2023,Adults and Health,Health & Wellbeing - Adults & Health Dir,AMZNMKTPLACE,11.27,0,11.27,Awaiting Coding,Miscellaneous retail
Buckinghamshire Council ,30.04.2023,06.04.2023,Adults and Health,Health & Wellbeing - Adults & Health Dir,NORDIC-CARE+HEALTH,19.76,0,19.76,Awaiting Coding,Computer software stores
Buckinghamshire Council ,30.04.2023,06.04.2023,Adults and Health,Health & Wellbeing - Adults & Health Dir,AMZNMKTPLACE,119.99,0,119.99,Awaiting Coding,Miscellaneous retail
Buckinghamshire Council ,30.04.2023,06.04.2023,Children's Services,Education & Childrens Services - CS Dir,HOLIDAY INN,787.02,0,787.02,Awaiting Coding,"Hotels, motels & resorts"
Buckinghamshire Council ,30.04.2023,06.04.2023,Adults and Health,Health & Wellbeing - Adults & Health Dir,AMZNMKTPLACE,17.95,0,17.95,Awaiting Coding,Miscellaneous retail
Buckinghamshire Council ,30.04.2023,06.04.2023,Communities,Culture & Leisure - Communities Dir,PAYPAL,42.04,8.41,50.45,Awaiting Coding,Misc Durable goods
Buckinghamshire Council ,30.04.2023,06.04.2023,Communities,Culture & Leisure - Communities Dir,PAYPAL,67.9,0,67.9,Awaiting Coding,Sporting goods shops
Buckinghamshire Council ,30.04.2023,06.04.2023,Children's Services,Education & Childrens Services - CS Dir,TRAINLINE,105.45,0,105.45,Awaiting Coding,Passenger railways
Buckinghamshire Council ,30.04.2023,06.04.2023,Children's Services,Education & Childrens Services - CS Dir,TRAINLINE,31.65,0,31.65,Awaiting Coding,Passenger railways
Buckinghamshire Council ,30.04.2023,06.04.2023,Children's Services,Education & Childrens Services - CS Dir,PREMIER INN,691.73,0,691.73,Awaiting Coding,Premier Inn
Buckinghamshire Council ,30.04.2023,05.04.2023,Children's Services,Education & Childrens Services - CS Dir,AMZNMKTPLACE,34.98,0,34.98,Awaiting Coding,Miscellaneous retail
Buckinghamshire Council ,30.04.2023,05.04.2023,Children's Services,Education & Childrens Services - CS Dir,JUST EAT,48.33,0,48.33,Awaiting Coding,Fast food restaurants
Buckinghamshire Council ,30.04.2023,05.04.2023,Children's Services,Education & Childrens Services - CS Dir,AMZNMKTPLACE,66.72,0,66.72,Awaiting Coding,Miscellaneous retail
Buckinghamshire Council ,30.04.2023,05.04.2023,Resources,AH&R - Res Dir,FACEBK *QPX47MTV82,213.35,0,213.35,Awaiting Coding,Advertising services
Buckinghamshire Council ,30.04.2023,05.04.2023,"Planning, Growth & Sustainability",AH&R - PGS Dir,INSTIT OF OCCPTNL SAFE,216,0,216,Awaiting Coding,Membership organisations
Buckinghamshire Council ,30.04.2023,05.04.2023,Resources,AH&R - Res Dir,POSTURITE LTD,346.8,0,346.8,Awaiting Coding,Misc. home furnishing
Buckinghamshire Council ,30.04.2023,05.04.2023,Children's Services,Education & Childrens Services - CS Dir,CARD FACTORY,4.95,0,4.95,Awaiting Coding,"Gift, card & novelty shops"
Buckinghamshire Council ,30.04.2023,05.04.2023,Deputy Chief Executive,Communities - DCE,AO RETAIL LIMITED,502.5,100.5,603,Awaiting Coding,Household appliance stores
Buckinghamshire Council ,30.04.2023,05.04.2023,Deputy Chief Executive,Communities - DCE,AO RETAIL LIMITED,256.65,51.33,307.98,Awaiting Coding,Household appliance stores
Buckinghamshire Council ,30.04.2023,05.04.2023,Deputy Chief Executive,Communities - DCE,AO RETAIL LIMITED,0.02,0,0.02,Awaiting Coding,Household appliance stores
Buckinghamshire Council ,30.04.2023,05.04.2023,Deputy Chief Executive,Communities - DCE,WONDE LTD,"4,998.00",0,"4,998.00",Awaiting Coding,
Buckinghamshire Council ,30.04.2023,05.04.2023,Deputy Chief Executive,Communities - DCE,WWW.ARGOS.CO.UK,-78.95,0,-78.95,Awaiting Coding,Department stores
Buckinghamshire Council ,30.04.2023,05.04.2023,Children's Services,Education & Childrens Services - CS Dir,AMZNMKTPLACE,24.05,0,24.05,Awaiting Coding,Miscellaneous retail
Buckinghamshire Council ,30.04.2023,05.04.2023,Children's Services,Education & Childrens Services - CS Dir,BKG*HOTEL AT BOOKING.C,105.2,0,105.2,Awaiting Coding,Travel agencies
Buckinghamshire Council ,30.04.2023,05.04.2023,Children's Services,Education & Childrens Services - CS Dir,BKG*HOTEL AT BOOKING.C,187.2,0,187.2,Awaiting Coding,Travel agencies
Buckinghamshire Council ,30.04.2023,05.04.2023,Children's Services,Education & Childrens Services - CS Dir,NEALES TAXIS LTD,84,0,84,Awaiting Coding,Taxicabs & limousines
Buckinghamshire Council ,30.04.2023,05.04.2023,"Planning, Growth & Sustainability",Planning & Regeneration - PGS,TRAINLINE,27.39,0,27.39,Awaiting Coding,Passenger railways
Buckinghamshire Council ,30.04.2023,05.04.2023,Communities,Culture & Leisure - Communities Dir,AMZNMKTPLACE,77.4,15.48,92.88,Awaiting Coding,Miscellaneous retail
Buckinghamshire Council ,30.04.2023,05.04.2023,Communities,Culture & Leisure - Communities Dir,AMZNMKTPLACE,0.02,0,0.02,Awaiting Coding,Miscellaneous retail
Buckinghamshire Council ,30.04.2023,05.04.2023,"Planning, Growth & Sustainability",Climate Change & Environment - PGS,NHBS LTD,117.5,0,117.5,Awaiting Coding,"Books, periodicals & newspapers"
Buckinghamshire Council ,30.04.2023,05.04.2023,Children's Services,Education & Childrens Services - CS Dir,JPR ELECTRONICS,18.35,3.67,22.02,Awaiting Coding,Household appliance stores
Buckinghamshire Council ,30.04.2023,05.04.2023,Children's Services,Education & Childrens Services - CS Dir,JPR ELECTRONICS,0.02,0,0.02,Awaiting Coding,Household appliance stores
Buckinghamshire Council ,30.04.2023,05.04.2023,Children's Services,Education & Childrens Services - CS Dir,CURRYS BUSINESS,349.45,69.89,419.34,Awaiting Coding,Computer software stores
Buckinghamshire Council ,30.04.2023,05.04.2023,Children's Services,Education & Childrens Services - CS Dir,CURRYS BUSINESS,0.04,0,0.04,Awaiting Coding,Computer software stores
Buckinghamshire Council ,30.04.2023,05.04.2023,Deputy Chief Executive,Communities - DCE,AO RETAIL LIMITED,-35,0,-35,Awaiting Coding,Household appliance stores
Buckinghamshire Council ,30.04.2023,05.04.2023,Children's Services,Education & Childrens Services - CS Dir,TESCO GIFT CARD,100,0,100,Awaiting Coding,Grocery stores
Buckinghamshire Council ,30.04.2023,05.04.2023,Communities,Transport - Communities Dir,WH SMITH HIGH WYCOMBE,3.99,0,3.99,Awaiting Coding,Newspapers / newsagents
Buckinghamshire Council ,30.04.2023,05.04.2023,Communities,Housing & Homelessness & Regulatory Comm,SP EASY GARDEN IRRIG,99.93,0,99.93,Awaiting Coding,Landscape & horticultural services
Buckinghamshire Council ,30.04.2023,05.04.2023,"Planning, Growth & Sustainability",AH&R - PGS Dir,AMZNMKTPLACE,35.96,0,35.96,Awaiting Coding,Miscellaneous retail
Buckinghamshire Council ,30.04.2023,05.04.2023,"Planning, Growth & Sustainability",AH&R - PGS Dir,SP FIRE AND SAFETY C,32.34,0,32.34,Awaiting Coding,Hardware Equipment & Suppliers
Buckinghamshire Council ,30.04.2023,05.04.2023,"Planning, Growth & Sustainability",AH&R - PGS Dir,WWW.SCREWFIX.COM,12.98,0,12.98,Awaiting Coding,Timber & building supplies
Buckinghamshire Council ,30.04.2023,05.04.2023,"Planning, Growth & Sustainability",AH&R - PGS Dir,WWW.SCREWFIX.COM,12.99,0,12.99,Awaiting Coding,Timber & building supplies
Buckinghamshire Council ,30.04.2023,05.04.2023,Children's Services,Education & Childrens Services - CS Dir,AMZNMKTPLACE,23.77,0,23.77,Awaiting Coding,Miscellaneous retail
Buckinghamshire Council ,30.04.2023,05.04.2023,"Planning, Growth & Sustainability",AH&R - PGS Dir,TIMPSON LTD,15,0,15,Awaiting Coding,Miscellaneous retail
Buckinghamshire Council ,30.04.2023,05.04.2023,Communities,Culture & Leisure - Communities Dir,AMZNMKTPLACE,19.45,3.9,23.35,Awaiting Coding,Miscellaneous retail
Buckinghamshire Council ,30.04.2023,05.04.2023,Communities,Culture & Leisure - Communities Dir,AMZNMKTPLACE,24.4,4.88,29.28,Awaiting Coding,Miscellaneous retail
Buckinghamshire Council ,30.04.2023,05.04.2023,Communities,Culture & Leisure - Communities Dir,AMZNMKTPLACE,0.01,0,0.01,Awaiting Coding,Miscellaneous retail
Buckinghamshire Council ,30.04.2023,05.04.2023,Deputy Chief Executive,Communities - DCE,RINGGO PARKING,0.95,0,0.95,Awaiting Coding,Car parking & garages
Buckinghamshire Council ,30.04.2023,05.04.2023,Deputy Chief Executive,Communities - DCE,TESCO STORES 5525,4.05,0,4.05,Awaiting Coding,Grocery stores
Buckinghamshire Council ,30.04.2023,05.04.2023,Children's Services,Education & Childrens Services - CS Dir,AMZNMKTPLACE,19.98,0,19.98,Awaiting Coding,Miscellaneous retail
Buckinghamshire Council ,30.04.2023,05.04.2023,Children's Services,Education & Childrens Services - CS Dir,AMAZON PRIME,8.99,0,8.99,Awaiting Coding,Continuous subscriptions
Buckinghamshire Council ,30.04.2023,05.04.2023,Children's Services,Education & Childrens Services - CS Dir,TRAINLINE.COM,191.77,0,191.77,Awaiting Coding,Passenger railways
Buckinghamshire Council ,30.04.2023,05.04.2023,Children's Services,Education & Childrens Services - CS Dir,TRAVELODGE GB0000,124.53,0,124.53,Awaiting Coding,Travelodge
Buckinghamshire Council ,30.04.2023,05.04.2023,Children's Services,Education & Childrens Services - CS Dir,WM MORRISONS STORE,3.99,0,3.99,Awaiting Coding,Grocery stores
Buckinghamshire Council ,30.04.2023,05.04.2023,Children's Services,Education & Childrens Services - CS Dir,WM MORRISONS STORE,35.11,0,35.11,Awaiting Coding,Grocery stores
Buckinghamshire Council ,30.04.2023,05.04.2023,Deputy Chief Executive,AH&R- DCE Dir,360 PROPERTY MANAGEMENT S,-200,0,-200,Awaiting Coding,"Cleaning, maintenance & janitorial services"
Buckinghamshire Council ,30.04.2023,05.04.2023,Children's Services,Education & Childrens Services - CS Dir,DOMINO S PIZZA,85.94,0,85.94,Awaiting Coding,Restaurants
Buckinghamshire Council ,30.04.2023,05.04.2023,Children's Services,Education & Childrens Services - CS Dir,AMZNMKTPLACE,3.99,0,3.99,Awaiting Coding,Miscellaneous retail
Buckinghamshire Council ,30.04.2023,05.04.2023,Children's Services,Education & Childrens Services - CS Dir,ASDA  STORES 4396,11.74,0,11.74,Awaiting Coding,Grocery stores
Buckinghamshire Council ,30.04.2023,05.04.2023,Children's Services,Education & Childrens Services - CS Dir,TESCO STORES 2038,59.25,0,59.25,Awaiting Coding,Grocery stores
Buckinghamshire Council ,30.04.2023,05.04.2023,Adults and Health,Health & Wellbeing - Adults & Health Dir,LIDL GB AYLESBURY,30,0,30,Awaiting Coding,Grocery stores
Buckinghamshire Council ,30.04.2023,05.04.2023,Children's Services,Education & Childrens Services - CS Dir,WWW.BUCKINGHAMSHIRE.GOV,236.81,0,236.81,Awaiting Coding,Government services
Buckinghamshire Council ,30.04.2023,05.04.2023,Children's Services,Education & Childrens Services - CS Dir,BUCKINGHAMSHIRE CNCL,11,0,11,Awaiting Coding,Government services
Buckinghamshire Council ,30.04.2023,05.04.2023,Children's Services,Education & Childrens Services - CS Dir,ABBEY HILL GC,30.25,0,30.25,Awaiting Coding,Public golf courses
Buckinghamshire Council ,30.04.2023,05.04.2023,Children's Services,Education & Childrens Services - CS Dir,ABBEY HILL GC,19.6,0,19.6,Awaiting Coding,Public golf courses
Buckinghamshire Council ,30.04.2023,05.04.2023,Resources,AH&R - Res Dir,WWW.BANNERWORLD.CO.UK,904.8,0,904.8,Awaiting Coding,Publishing & printing services
Buckinghamshire Council ,30.04.2023,05.04.2023,Deputy Chief Executive,AH&R- DCE Dir,TAXIPAY,18,0,18,Awaiting Coding,Taxicabs & limousines
Buckinghamshire Council ,30.04.2023,05.04.2023,Resources,AH&R - Res Dir,AMAZON.CO.UK,100,0,100,Awaiting Coding,Direct sales companies
Buckinghamshire Council ,30.04.2023,05.04.2023,Communities,Culture & Leisure - Communities Dir,AMZNMKTPLACE,17.33,0,17.33,Awaiting Coding,Miscellaneous retail
Buckinghamshire Council ,30.04.2023,05.04.2023,Adults and Health,Health & Wellbeing - Adults & Health Dir,LYRECO UK LTD,30.75,6.15,36.9,Awaiting Coding,Stationery & office supplies
Buckinghamshire Council ,30.04.2023,05.04.2023,"Planning, Growth & Sustainability",Housing & Homelessness & Regulatory PGS,AMZNMKTPLACE,37.99,0,37.99,Awaiting Coding,Miscellaneous retail
